Workbook

Sheet Report
B2: Date: | C2: 2016-04-07
C3: Revenue | D3: Cost | E3: C / R
B4: Total | C4: =SUM(Data!B:B) -> 1958788.526 | D4: =SUM(Data!C:C) -> 208387.7546 | E4: =D4/C4 -> 0.1063860401
B5: Daily Average Total | C5: =AVERAGE(Data!B:B) -> 873.6790928 | D5: =AVERAGE(Data!C:C) -> 92.94725897 | E5: =D5/C5 -> 0.1063860401
B6: 1-week | C6: =VLOOKUP($C$2,Data!AL:AU,5) -> 5680.21 | D6: =VLOOKUP($C$2,Data!AL:AU,8) -> 746.24233 | E6: =D6/C6 -> 0.1313758347
B7: 2-week | C7: =VLOOKUP($C$2,Data!AL:AU,6) -> 14291.16 | D7: =VLOOKUP($C$2,Data!AL:AU,9) -> 1310.361202 | E7: =D7/C7 -> 0.09169033179
B8: 4-week | C8: =VLOOKUP($C$2,Data!AL:AU,7) -> 28105.02 | D8: =VLOOKUP($C$2,Data!AL:AU,10) -> 2104.661399 | E8: 0.07488560403

Sheet Data
A1: Date | B1: Revenue | C1: Web Cost | D1: Cost / Rev | K1: Facebook | O1: Adroll | W1: Historical Revenue (Daily Averages) | AB1: Historical Cost (Daily Averages) | AG1: Historical Profit (Daily Averages) | AM1: C/R Ratios | AP1: Revenue | AS1: Cost
A2: 2010-02-17 | B2: 1000 | C2: =SUM(K2:Q2) -> 21 | D2: =C2/B2 -> 0.021 | K2: 11 | O2: 10 | W2: Date | X2: 1-week | Y2: 2-week | Z2: 4-week | AB2: Date | AC2: 1-week | AD2: 2-week | AE2: 4-week | AG2: Date | AH2: 1-week | AI2: 2-week | AJ2: 4-week | AL2: Date | AM2: 1-week ratio | AN2: 2-week ratio | AO2: 4-week ratio | AP2: 1-week rev | AQ2: 2-week rev | AR2: 4-week rev | AS2: 1-week cost | AT2: 2-week cost | AU2: 4-week cost
A3: 2010-02-18 | B3: 777 | C3: 44.000001 | D3: =C3/B3 -> 0.05662805792 | K3: =K2+0.000001 -> 11.000001 | O3: 33 | W3: 2010-02-22 | X3: =(VLOOKUP($W3,$AG:$AU,10))/7 -> 0 | AB3: 2010-02-22 | AC3: =(VLOOKUP($AB3,$AG:$AU,8))/7 -> 0 | AG3: 2010-02-22 | AH3: =X3-AC3 -> 0 | AL3: 2010-02-22
A4: 2010-02-19 | B4: =B3+0.0001 -> 777.0001 | C4: 44.010002 | D4: 0.05664092193 | K4: =K3+0.000001 -> 11.000002 | O4: =O3+0.01 -> 33.01 | W4: =W3+7 -> 2010-03-01 | X4: =(VLOOKUP($W4,$AG:$AU,10))/7 -> 0 | Y4: =VLOOKUP($W4,$AG:$AU,11)/14 -> 0 | AB4: =AB3+7 -> 2010-03-01 | AC4: =(VLOOKUP($AB4,$AG:$AU,8))/7 -> 0 | AD4: =VLOOKUP($AB4,$AG:$AU,9)/14 -> 0 | AG4: =AG3+7 -> 2010-03-01 | AH4: =X4-AC4 -> 0 | AI4: =Y4-AD4 -> 0 | AL4: 2010-02-23
A5: 2010-02-20 | B5: 754 | C5: 44.020003 | D5: 0.05838196684 | K5: 11.000003 | O5: 33.02 | W5: =W4+7 -> 2010-03-08 | X5: =(VLOOKUP($W5,$AG:$AU,10))/7 -> 0 | Y5: =VLOOKUP($W5,$AG:$AU,11)/14 -> 0 | AB5: =AB4+7 -> 2010-03-08 | AC5: =(VLOOKUP($AB5,$AG:$AU,8))/7 -> 0 | AD5: =VLOOKUP($AB5,$AG:$AU,9)/14 -> 0 | AG5: =AG4+7 -> 2010-03-08 | AH5: 0 | AI5: =Y5-AD5 -> 0 | AL5: 2010-02-24
A6: 2010-02-21 | B6: 888 | C6: 22.000004 | D6: 0.02477477928 | K6: 11.000004 | O6: 11 | W6: 2010-03-15 | X6: =(VLOOKUP($W6,$AG:$AU,10))/7 -> 0 | Y6: =VLOOKUP($W6,$AG:$AU,11)/14 -> 0 | Z6: =VLOOKUP($W6,$AG:$AU,12)/28 -> 0 | AB6: 2010-03-15 | AC6: =(VLOOKUP($AB6,$AG:$AU,8))/7 -> 0 | AD6: =VLOOKUP($AB6,$AG:$AU,9)/14 -> 0 | AE6: =VLOOKUP($AB6,$AG:$AU,10)/28 -> 0 | AG6: 2010-03-15 | AH6: 0 | AI6: 0 | AJ6: 0 | AL6: 2010-02-25
A7: 2010-02-22 | B7: 888.0001 | C7: 22.010005 | D7: 0.02478603888 | K7: 11.000005 | O7: =O6+0.01 -> 11.01 | W7: 2010-03-22 | X7: =(VLOOKUP($W7,$AG:$AU,10))/7 -> 0 | Y7: =VLOOKUP($W7,$AG:$AU,11)/14 -> 0 | Z7: =VLOOKUP($W7,$AG:$AU,12)/28 -> 0 | AB7: 2010-03-22 | AC7: =(VLOOKUP($AB7,$AG:$AU,8))/7 -> 0 | AD7: =VLOOKUP($AB7,$AG:$AU,9)/14 -> 0 | AE7: =VLOOKUP($AB7,$AG:$AU,10)/28 -> 0 | AG7: 2010-03-22 | AH7: 0 | AI7: 0 | AJ7: 0 | AL7: 2010-02-26
A8: 2010-02-23 | B8: 999 | C8: 22.020006 | D8: 0.02204204805 | K8: 11.000006 | O8: 11.02 | W8: 2010-03-29 | X8: =(VLOOKUP($W8,$AG:$AU,10))/7 -> 0 | Y8: =VLOOKUP($W8,$AG:$AU,11)/14 -> 0 | Z8: =VLOOKUP($W8,$AG:$AU,12)/28 -> 0 | AB8: 2010-03-29 | AC8: =(VLOOKUP($AB8,$AG:$AU,8))/7 -> 0 | AD8: =VLOOKUP($AB8,$AG:$AU,9)/14 -> 0 | AE8: =VLOOKUP($AB8,$AG:$AU,10)/28 -> 0 | AG8: 2010-03-29 | AH8: 0 | AI8: 0 | AJ8: 0 | AL8: 2010-02-27
A9: 2010-02-24 | B9: 999.0001 | C9: 22.030007 | D9: 0.02205205685 | K9: 11.000007 | O9: 11.03 | W9: 2010-04-05 | X9: =(VLOOKUP($W9,$AG:$AU,10))/7 -> 868.8571857 | Y9: =VLOOKUP($W9,$AG:$AU,11)/14 -> 0 | Z9: =VLOOKUP($W9,$AG:$AU,12)/28 -> 0 | AB9: 2010-04-05 | AC9: =(VLOOKUP($AB9,$AG:$AU,8))/7 -> 0 | AD9: =VLOOKUP($AB9,$AG:$AU,9)/14 -> 0 | AE9: =VLOOKUP($AB9,$AG:$AU,10)/28 -> 217.2142964 | AG9: 2010-04-05 | AH9: 868.8571857 | AI9: 0 | AJ9: -217.2142964 | AL9: 2010-02-28 | AM9: =AS9/AP9 -> 0.03618711232 | AP9: =SUM(B3:B9) -> 6082.0003 | AS9: =SUM(C3:C9) -> 220.090028
A10: 2010-02-25 | B10: 999.0002 | C10: 23.000008 | D10: 0.02302302642 | K10: 11.000008 | O10: 12 | W10: 2010-04-12 | X10: =(VLOOKUP($W10,$AG:$AU,10))/7 -> 900.5715 | Y10: =VLOOKUP($W10,$AG:$AU,11)/14 -> 0 | Z10: =VLOOKUP($W10,$AG:$AU,12)/28 -> 0 | AB10: 2010-04-12 | AC10: =(VLOOKUP($AB10,$AG:$AU,8))/7 -> 0 | AD10: =VLOOKUP($AB10,$AG:$AU,9)/14 -> 0 | AE10: =VLOOKUP($AB10,$AG:$AU,10)/28 -> 225.142875 | AG10: 2010-04-12 | AH10: 900.5715 | AI10: 0 | AJ10: -225.142875 | AL10: 2010-03-01 | AM10: =AS10/AP10 -> 0.03158153858 | AP10: =SUM(B4:B10) -> 6304.0005 | AS10: =SUM(C4:C10) -> 199.090035
A11: 2010-02-26 | B11: 999.0003 | C11: 23.010009 | D11: 0.02303303513 | K11: 11.000009 | O11: =O10+0.01 -> 12.01 | W11: 2010-04-19 | X11: =(VLOOKUP($W11,$AG:$AU,10))/7 -> 932.2858143 | Y11: =VLOOKUP($W11,$AG:$AU,11)/14 -> 0 | Z11: =VLOOKUP($W11,$AG:$AU,12)/28 -> 0 | AB11: 2010-04-19 | AC11: =(VLOOKUP($AB11,$AG:$AU,8))/7 -> 0 | AD11: =VLOOKUP($AB11,$AG:$AU,9)/14 -> 0 | AE11: =VLOOKUP($AB11,$AG:$AU,10)/28 -> 233.0714536 | AG11: 2010-04-19 | AH11: 932.2858143 | AI11: 0 | AJ11: -233.0714536 | AL11: 2010-03-02 | AM11: 0.02728930783 | AP11: 6526.0007 | AS11: 178.090042
A12: 2010-02-27 | B12: 999.0004 | C12: 23.02001 | D12: 0.02304304383 | K12: 11.00001 | O12: 12.02 | W12: 2010-04-26 | X12: =(VLOOKUP($W12,$AG:$AU,10))/7 -> 967.2858714 | Y12: =VLOOKUP($W12,$AG:$AU,11)/14 -> 0 | Z12: =VLOOKUP($W12,$AG:$AU,12)/28 -> 0 | AB12: 2010-04-26 | AC12: =(VLOOKUP($AB12,$AG:$AU,8))/7 -> 0 | AD12: =VLOOKUP($AB12,$AG:$AU,9)/14 -> 0 | AE12: =VLOOKUP($AB12,$AG:$AU,10)/28 -> 241.8214679 | AG12: 2010-04-26 | AH12: 967.2858714 | AI12: 0 | AJ12: -241.8214679 | AL12: 2010-03-03 | AM12: 0.023200417 | AP12: 6771.0011 | AS12: 157.090049
A13: 2010-02-28 | B13: 666 | C13: 23.030011 | D13: 0.0345795961 | K13: 11.000011 | O13: 12.03 | W13: 2010-05-03 | X13: =(VLOOKUP($W13,$AG:$AU,10))/7 -> 935.5715857 | Y13: =VLOOKUP($W13,$AG:$AU,11)/14 -> 0 | Z13: =VLOOKUP($W13,$AG:$AU,12)/28 -> 0 | AB13: 2010-05-03 | AC13: =(VLOOKUP($AB13,$AG:$AU,8))/7 -> 0 | AD13: =VLOOKUP($AB13,$AG:$AU,9)/14 -> 0 | AE13: =VLOOKUP($AB13,$AG:$AU,10)/28 -> 233.8928964 | AG13: 2010-05-03 | AH13: 935.5715857 | AI13: 0 | AJ13: -233.8928964 | AL13: 2010-03-04 | AM13: 0.02414414864 | AP13: 6549.0011 | AS13: 158.120056
A14: 2010-03-01 | B14: 666.0001 | C14: 24.000012 | D14: 0.03603604864 | K14: 11.000012 | O14: 13 | W14: 2010-05-10 | X14: =(VLOOKUP($W14,$AG:$AU,10))/7 -> 903.8573 | Y14: =VLOOKUP($W14,$AG:$AU,11)/14 -> 0 | Z14: =VLOOKUP($W14,$AG:$AU,12)/28 -> 0 | AB14: 2010-05-10 | AC14: =(VLOOKUP($AB14,$AG:$AU,8))/7 -> 0 | AD14: =VLOOKUP($AB14,$AG:$AU,9)/14 -> 0 | AE14: =VLOOKUP($AB14,$AG:$AU,10)/28 -> 225.964325 | AG14: 2010-05-10 | AH14: 903.8573 | AI14: 0 | AJ14: -225.964325 | AL14: 2010-03-05 | AM14: 0.02530583771 | AP14: 6327.0011 | AS14: 160.110063
A15: 2010-03-02 | B15: 666.0002 | C15: 24.010013 | D15: 0.03605105974 | K15: 11.000013 | O15: =O14+0.01 -> 13.01 | W15: 2010-05-17 | X15: =(VLOOKUP($W15,$AG:$AU,10))/7 -> 856.2859 | Y15: =VLOOKUP($W15,$AG:$AU,11)/14 -> 0 | Z15: =VLOOKUP($W15,$AG:$AU,12)/28 -> 0 | AB15: 2010-05-17 | AC15: =(VLOOKUP($AB15,$AG:$AU,8))/7 -> 0 | AD15: =VLOOKUP($AB15,$AG:$AU,9)/14 -> 0 | AE15: =VLOOKUP($AB15,$AG:$AU,10)/28 -> 214.071475 | AG15: 2010-05-17 | AH15: 856.2859 | AI15: 0 | AJ15: -214.071475 | AL15: 2010-03-06 | AM15: 0.02704371619 | AP15: 5994.0013 | AS15: 162.10007
A16: 2010-03-03 | B16: 666.0003 | C16: 24.020014 | D16: 0.03606607084 | K16: 11.000014 | O16: 13.02 | W16: 2010-05-24 | X16: =(VLOOKUP($W16,$AG:$AU,10))/7 -> 808.7145 | Y16: =VLOOKUP($W16,$AG:$AU,11)/14 -> 838.7858429 | Z16: =VLOOKUP($W16,$AG:$AU,12)/28 -> 0 | AB16: 2010-05-24 | AC16: =(VLOOKUP($AB16,$AG:$AU,8))/7 -> 0.004673666331 | AD16: =VLOOKUP($AB16,$AG:$AU,9)/14 -> 0 | AE16: =VLOOKUP($AB16,$AG:$AU,10)/28 -> 202.178625 | AG16: 2010-05-24 | AH16: 808.7098263 | AI16: 838.7858429 | AJ16: -202.178625 | AL16: 2010-03-07 | AM16: 0.02898605079 | AN16: =AT16/AQ16 -> 0.03271566432 | AP16: 5661.0015 | AQ16: =SUM(B3:B16) -> 11743.0018 | AS16: 164.090077 | AT16: =SUM(C3:C16) -> 384.180105
A17: 2010-03-04 | B17: 888 | C17: 24.030015 | D17: 0.0270608277 | K17: 11.000015 | O17: 13.03 | W17: 2010-05-31 | X17: =(VLOOKUP($W17,$AG:$AU,10))/7 -> 792.8573286 | Y17: =VLOOKUP($W17,$AG:$AU,11)/14 -> 846.7144143 | Z17: =VLOOKUP($W17,$AG:$AU,12)/28 -> 0 | AB17: 2010-05-31 | AC17: =(VLOOKUP($AB17,$AG:$AU,8))/7 -> 0.004389236469 | AD17: =VLOOKUP($AB17,$AG:$AU,9)/14 -> 0 | AE17: =VLOOKUP($AB17,$AG:$AU,10)/28 -> 198.2143321 | AG17: 2010-05-31 | AH17: 792.8529393 | AI17: 846.7144143 | AJ17: -198.2143321 | AL17: 2010-03-08 | AM17: 0.02975135952 | AN17: =AT17/AQ17 -> 0.03072465528 | AP17: 5550.0013 | AQ17: =SUM(B4:B17) -> 11854.0018 | AS17: 165.120084 | AT17: =SUM(C4:C17) -> 364.210119
A18: 2010-03-05 | B18: 888.0001 | C18: 25.000016 | D18: 0.028153168 | K18: 11.000016 | O18: 14 | W18: 2010-06-07 | X18: =(VLOOKUP($W18,$AG:$AU,10))/7 -> 777.0001571 | Y18: =VLOOKUP($W18,$AG:$AU,11)/14 -> 854.6429857 | Z18: =VLOOKUP($W18,$AG:$AU,12)/28 -> 0 | AB18: 2010-06-07 | AC18: =(VLOOKUP($AB18,$AG:$AU,8))/7 -> 0.00412154595 | AD18: =VLOOKUP($AB18,$AG:$AU,9)/14 -> 0 | AE18: =VLOOKUP($AB18,$AG:$AU,10)/28 -> 194.2500393 | AG18: 2010-06-07 | AH18: 776.9960356 | AI18: 854.6429857 | AJ18: -194.2500393 | AL18: 2010-03-09 | AM18: 0.03072440838 | AN18: 0.02885082165 | AP18: 5439.0011 | AQ18: 11965.0018 | AS18: 167.110091 | AT18: 345.200133
A19: 2010-03-06 | B19: 778 | C19: 25.010017 | D19: 0.03214655141 | K19: 11.000017 | O19: =O18+0.01 -> 14.01 | W19: 2010-06-14 | X19: =(VLOOKUP($W19,$AG:$AU,10))/7 -> 745.4286714 | Y19: =VLOOKUP($W19,$AG:$AU,11)/14 -> 856.3572714 | Z19: =VLOOKUP($W19,$AG:$AU,12)/28 -> 0 | AB19: 2010-06-14 | AC19: =(VLOOKUP($AB19,$AG:$AU,8))/7 -> 0.003886778333 | AD19: =VLOOKUP($AB19,$AG:$AU,9)/14 -> 0 | AE19: =VLOOKUP($AB19,$AG:$AU,10)/28 -> 186.3571679 | AG19: 2010-06-14 | AH19: 745.4247847 | AI19: 856.3572714 | AJ19: -186.3571679 | AL19: 2010-03-10 | AM19: 0.03240706694 | AN19: 0.02720744833 | AP19: 5218.0007 | AQ19: 11989.0018 | AS19: 169.100098 | AT19: 326.190147
A20: 2010-03-07 | B20: 888 | C20: 25.020018 | D20: 0.02817569595 | K20: 11.000018 | O20: 14.02 | W20: 2010-06-21 | X20: =(VLOOKUP($W20,$AG:$AU,10))/7 -> 777.1429571 | Y20: =VLOOKUP($W20,$AG:$AU,11)/14 -> 856.3572714 | Z20: =VLOOKUP($W20,$AG:$AU,12)/28 -> 0 | AB20: 2010-06-21 | AC20: =(VLOOKUP($AB20,$AG:$AU,8))/7 -> 0.003922763862 | AD20: =VLOOKUP($AB20,$AG:$AU,9)/14 -> 0 | AE20: =VLOOKUP($AB20,$AG:$AU,10)/28 -> 194.2857393 | AG20: 2010-06-21 | AH20: 777.1390344 | AI20: =Y20-AD20 -> 856.3572714 | AJ20: -194.2857393 | AL20: 2010-03-11 | AM20: 0.0314503829 | AN20: 0.02745934703 | AP20: 5440.0007 | AQ20: 11989.0018 | AS20: 171.090105 | AT20: 329.210161
A21: 2010-03-08 | B21: 888.0001 | C21: 25.030019 | D21: 0.02818695516 | K21: 11.000019 | O21: 14.03 | W21: 2010-06-28 | X21: =(VLOOKUP($W21,$AG:$AU,10))/7 -> 808.8572429 | Y21: =VLOOKUP($W21,$AG:$AU,11)/14 -> 856.3572714 | Z21: =VLOOKUP($W21,$AG:$AU,12)/28 -> 0 | AB21: 2010-06-28 | AC21: =(VLOOKUP($AB21,$AG:$AU,8))/7 -> 0.003958749391 | AD21: =VLOOKUP($AB21,$AG:$AU,9)/14 -> 0 | AE21: =VLOOKUP($AB21,$AG:$AU,10)/28 -> 202.2143107 | AG21: 2010-06-28 | AH21: 808.8532841 | AI21: 856.3572714 | AJ21: -202.2143107 | AL21: 2010-03-12 | AM21: 0.03039916827 | AN21: 0.02771124574 | AP21: 5662.0007 | AQ21: 11989.0018 | AS21: 172.120112 | AT21: 332.230175
A22: 2010-03-09 | B22: 888.0002 | C22: 26.00002 | D22: 0.02927929521 | K22: 11.00002 | O22: 15 | W22: 2010-07-05 | X22: =(VLOOKUP($W22,$AG:$AU,10))/7 -> 840.5715286 | Y22: =VLOOKUP($W22,$AG:$AU,11)/14 -> 848.4287143 | Z22: =VLOOKUP($W22,$AG:$AU,12)/28 -> 0 | AB22: 2010-07-05 | AC22: =(VLOOKUP($AB22,$AG:$AU,8))/7 -> 0.004043611628 | AD22: =VLOOKUP($AB22,$AG:$AU,9)/14 -> 0 | AE22: =VLOOKUP($AB22,$AG:$AU,10)/28 -> 210.1428821 | AG22: 2010-07-05 | AH22: 840.567485 | AI22: 848.4287143 | AJ22: -210.1428821 | AL22: 2010-03-13 | AM22: 0.02959043139 | AN22: 0.02830528139 | AP22: 5884.0007 | AQ22: 11878.002 | AS22: 174.110119 | AT22: 336.210189
A23: 2010-03-10 | B23: 888.0003 | C23: 26.010021 | D23: 0.02929055429 | K23: 11.000021 | O23: =O22+0.01 -> 15.01 | W23: 2010-07-12 | X23: =(VLOOKUP($W23,$AG:$AU,10))/7 -> 872.2858143 | Y23: =VLOOKUP($W23,$AG:$AU,11)/14 -> 840.5001571 | Z23: =VLOOKUP($W23,$AG:$AU,12)/28 -> 0 | AB23: 2010-07-12 | AC23: =(VLOOKUP($AB23,$AG:$AU,8))/7 -> 0.004130074899 | AD23: =VLOOKUP($AB23,$AG:$AU,9)/14 -> 0 | AE23: =VLOOKUP($AB23,$AG:$AU,10)/28 -> 218.0714536 | AG23: 2010-07-12 | AH23: 872.2816842 | AI23: 840.5001571 | AJ23: -218.0714536 | AL23: 2010-03-14 | AM23: 0.0288405021 | AN23: 0.0289105243 | AP23: 6106.0007 | AQ23: 11767.0022 | AS23: 176.100126 | AT23: 340.190203
A24: 2010-03-11 | B24: 888.0004 | C24: 26.020022 | D24: 0.02930181338 | K24: 11.000022 | O24: 15.02 | W24: 2010-07-19 | X24: =(VLOOKUP($W24,$AG:$AU,10))/7 -> 872.2858714 | Y24: =VLOOKUP($W24,$AG:$AU,11)/14 -> 832.5716 | Z24: =VLOOKUP($W24,$AG:$AU,12)/28 -> 0 | AB24: 2010-07-19 | AC24: =(VLOOKUP($AB24,$AG:$AU,8))/7 -> 0.004206419089 | AD24: =VLOOKUP($AB24,$AG:$AU,9)/14 -> 0 | AE24: =VLOOKUP($AB24,$AG:$AU,10)/28 -> 218.0714679 | AG24: 2010-07-19 | AH24: 872.281665 | AI24: 832.5716 | AJ24: -218.0714679 | AL24: 2010-03-15 | AM24: 0.02916641024 | AN24: 0.02944493362 | AP24: 6106.0011 | AQ24: 11656.0024 | AS24: 178.090133 | AT24: 343.210217
A25: 2010-03-12 | B25: 888.0005 | C25: 55.000023 | D25: 0.06193692796 | K25: 11.000023 | O25: 44 | W25: 2010-07-26 | X25: =(VLOOKUP($W25,$AG:$AU,10))/7 -> 872.2859286 | Y25: =VLOOKUP($W25,$AG:$AU,11)/14 -> 824.6430429 | Z25: =VLOOKUP($W25,$AG:$AU,12)/28 -> 0 | AB25: 2010-07-26 | AC25: =(VLOOKUP($AB25,$AG:$AU,8))/7 -> 0.004642704281 | AD25: =VLOOKUP($AB25,$AG:$AU,9)/14 -> 0 | AE25: =VLOOKUP($AB25,$AG:$AU,10)/28 -> 218.0714821 | AG25: 2010-07-26 | AH25: 872.2812859 | AI25: 824.6430429 | AJ25: -218.0714821 | AL25: 2010-03-16 | AM25: 0.0340796084 | AN25: 0.03249892997 | AP25: 6106.0015 | AQ25: 11545.0026 | AS25: 208.09014 | AT25: 375.200231
A26: 2010-03-13 | B26: 888.0006 | C26: 27.000024 | D26: 0.03040541189 | K26: 11.000024 | O26: 16 | W26: 2010-08-02 | X26: =(VLOOKUP($W26,$AG:$AU,10))/7 -> 888.0003 | Y26: =VLOOKUP($W26,$AG:$AU,11)/14 -> 816.7144857 | Z26: =VLOOKUP($W26,$AG:$AU,12)/28 -> 0 | AB26: 2010-08-02 | AC26: =(VLOOKUP($AB26,$AG:$AU,8))/7 -> 0.004737501589 | AD26: =VLOOKUP($AB26,$AG:$AU,9)/14 -> 0 | AE26: =VLOOKUP($AB26,$AG:$AU,10)/28 -> 222.000075 | AG26: 2010-08-02 | AH26: 887.9955625 | AI26: 816.7144857 | AJ26: -222.000075 | AL26: 2010-03-17 | AM26: 0.03379666603 | AN26: 0.03316251112 | AP26: 6216.0021 | AQ26: 11434.0028 | AS26: 210.080147 | AT26: 379.180245
A27: 2010-03-14 | B27: 888.0007 | C27: 27.010025 | D27: 0.03041667084 | K27: 11.000025 | O27: =O26+0.01 -> 16.01 | W27: 2010-08-09 | X27: =(VLOOKUP($W27,$AG:$AU,10))/7 -> 888.0004 | Y27: =VLOOKUP($W27,$AG:$AU,11)/14 -> 832.5716786 | Z27: =VLOOKUP($W27,$AG:$AU,12)/28 -> 0 | AB27: 2010-08-09 | AC27: =(VLOOKUP($AB27,$AG:$AU,8))/7 -> 0.004696050396 | AD27: =VLOOKUP($AB27,$AG:$AU,9)/14 -> 0 | AE27: =VLOOKUP($AB27,$AG:$AU,10)/28 -> 222.0001 | AG27: 2010-08-09 | AH27: 887.9957039 | AI27: 832.5716786 | AJ27: -222.0001 | AL27: 2010-03-18 | AM27: 0.03411680477 | AN27: 0.03287235278 | AP27: 6216.0028 | AQ27: 11656.0035 | AS27: 212.070154 | AT27: 383.160259
A28: 2010-03-15 | B28: 888.0008 | C28: 27.020026 | D28: 0.03042792979 | K28: 11.000026 | O28: 16.02 | W28: 2010-08-16 | X28: =(VLOOKUP($W28,$AG:$AU,10))/7 -> 888.0005 | Y28: =VLOOKUP($W28,$AG:$AU,11)/14 -> 848.4288714 | Z28: =VLOOKUP($W28,$AG:$AU,12)/28 -> 0 | AA28: =AC28/X28 -> 5.230405506e-06 | AB28: 2010-08-16 | AC28: =(VLOOKUP($AB28,$AG:$AU,8))/7 -> 0.004644602704 | AD28: =VLOOKUP($AB28,$AG:$AU,9)/14 -> 0 | AE28: =VLOOKUP($AB28,$AG:$AU,10)/28 -> 222.000125 | AG28: 2010-08-16 | AH28: 887.9958554 | AI28: 848.4288714 | AJ28: -222.000125 | AL28: 2010-03-19 | AM28: 0.03443694345 | AN28: 0.03251221893 | AP28: 6216.0035 | AQ28: 11878.0042 | AS28: 214.060161 | AT28: 386.180273
A29: 2010-03-16 | B29: 888.0009 | C29: 27.030027 | D29: 0.03043918874 | K29: 11.000027 | O29: 16.03 | W29: 2010-08-23 | X29: =(VLOOKUP($W29,$AG:$AU,10))/7 -> 888.0006 | Y29: =VLOOKUP($W29,$AG:$AU,11)/14 -> 864.2860643 | Z29: =VLOOKUP($W29,$AG:$AU,12)/28 -> 0 | AA29: 5.174594308e-06 | AB29: 2010-08-23 | AC29: =(VLOOKUP($AB29,$AG:$AU,8))/7 -> 0.00459504285 | AD29: =VLOOKUP($AB29,$AG:$AU,9)/14 -> 0 | AE29: =VLOOKUP($AB29,$AG:$AU,10)/28 -> 222.00015 | AG29: 2010-08-23 | AH29: 887.996005 | AI29: 864.2860643 | AJ29: -222.00015 | AL29: 2010-03-20 | AM29: 0.034602642 | AN29: 0.03216529995 | AP29: 6216.0042 | AQ29: 12100.0049 | AS29: 215.090168 | AT29: 389.200287
A30: 2010-03-17 | B30: 888.001 | C30: 28.000028 | D30: 0.03153152755 | K30: 11.000028 | O30: 17 | W30: 2010-08-30 | X30: =(VLOOKUP($W30,$AG:$AU,10))/7 -> 888.0007 | Y30: =VLOOKUP($W30,$AG:$AU,11)/14 -> 880.1432571 | Z30: =VLOOKUP($W30,$AG:$AU,12)/28 -> 859.46455 | AA30: 5.133327834e-06 | AB30: 2010-08-30 | AC30: =(VLOOKUP($AB30,$AG:$AU,8))/7 -> 0.00455839871 | AD30: =VLOOKUP($AB30,$AG:$AU,9)/14 -> 0.002307322926 | AE30: =VLOOKUP($AB30,$AG:$AU,10)/28 -> 222.000175 | AG30: 2010-08-30 | AH30: 887.9961416 | AI30: 880.1409498 | AJ30: 637.464375 | AL30: 2010-03-21 | AM30: 0.03492278055 | AN30: 0.03190879097 | AO30: =AU30/AR30 -> 0.03230252096 | AP30: 6216.0049 | AQ30: 12322.0056 | AR30: =SUM(B3:B30) -> 24065.0074 | AS30: 217.080175 | AT30: 393.180301 | AU30: =SUM(C3:C30) -> 777.360406
A31: 2010-03-18 | B31: 888.0011 | C31: 28.010029 | D31: 0.03154278638 | K31: 11.000029 | O31: =O30+0.01 -> 17.01 | W31: 2010-09-06 | X31: =(VLOOKUP($W31,$AG:$AU,10))/7 -> 888.0008 | Y31: =VLOOKUP($W31,$AG:$AU,11)/14 -> 880.1433357 | Z31: =VLOOKUP($W31,$AG:$AU,12)/28 -> 863.428875 | AA31: 5.185289504e-06 | AB31: 2010-09-06 | AC31: =(VLOOKUP($AB31,$AG:$AU,8))/7 -> 0.004604541228 | AD31: =VLOOKUP($AB31,$AG:$AU,9)/14 -> 0.002249486404 | AE31: =VLOOKUP($AB31,$AG:$AU,10)/28 -> 222.0002 | AG31: 2010-09-06 | AH31: 887.9961955 | AI31: 880.1410862 | AJ31: 641.428675 | AL31: 2010-03-22 | AM31: 0.03524291902 | AN31: 0.03223178859 | AO31: =AU31/AR31 -> 0.03149280966 | AP31: 6216.0056 | AQ31: 12322.0067 | AR31: =SUM(B4:B31) -> 24176.0085 | AS31: 219.070182 | AT31: 397.160315 | AU31: =SUM(C4:C31) -> 761.370434
A32: 2010-03-19 | B32: 888.0012 | C32: 28.02003 | D32: 0.0315540452 | K32: 11.00003 | O32: 17.02 | W32: 2010-09-13 | X32: =(VLOOKUP($W32,$AG:$AU,10))/7 -> 888.0009 | Y32: =VLOOKUP($W32,$AG:$AU,11)/14 -> 880.1434143 | Z32: =VLOOKUP($W32,$AG:$AU,12)/28 -> 867.3932 | AA32: 5.224717481e-06 | AB32: 2010-09-13 | AC32: =(VLOOKUP($AB32,$AG:$AU,8))/7 -> 0.004639553826 | AD32: =VLOOKUP($AB32,$AG:$AU,9)/14 -> 0.002192178553 | AE32: =VLOOKUP($AB32,$AG:$AU,10)/28 -> 222.000225 | AG32: 2010-09-13 | AH32: 887.9962604 | AI32: 880.1412221 | AJ32: 645.392975 | AL32: 2010-03-23 | AM32: 0.03090250874 | AN32: 0.03247687678 | AO32: 0.03069049975 | AP32: 6216.0063 | AQ32: 12322.0078 | AR32: 24287.0096 | AS32: 192.090189 | AT32: 400.180329 | AU32: 745.380462
A33: 2010-03-20 | B33: 777 | C33: 28.030031 | D33: 0.03607468597 | K33: 11.000031 | O33: 17.03 | W33: 2010-09-20 | X33: =(VLOOKUP($W33,$AG:$AU,10))/7 -> 872.1436714 | Y33: =VLOOKUP($W33,$AG:$AU,11)/14 -> 880.0719857 | Z33: =VLOOKUP($W33,$AG:$AU,12)/28 -> 868.2146286 | AA33: 5.360293706e-06 | AB33: 2010-09-20 | AC33: =(VLOOKUP($AB33,$AG:$AU,8))/7 -> 0.004674946233 | AD33: =VLOOKUP($AB33,$AG:$AU,9)/14 -> 0.002143122178 | AE33: =VLOOKUP($AB33,$AG:$AU,10)/28 -> 218.0359179 | AG33: 2010-09-20 | AH33: 872.1389965 | AI33: 880.0698426 | AJ33: 650.1787107 | AL33: 2010-03-24 | AM33: 0.0316330902 | AN33: 0.03272462363 | AO33: 0.03000371049 | AP33: 6105.0057 | AQ33: 12321.0078 | AR33: 24310.0096 | AS33: 193.120196 | AT33: 403.200343 | AU33: 729.39049
A34: 2010-03-21 | B34: 777.0001 | C34: 29.000032 | D34: 0.0373230737 | K34: 11.000032 | O34: 18 | W34: 2010-09-27 | X34: =(VLOOKUP($W34,$AG:$AU,10))/7 -> 856.2864429 | Y34: =VLOOKUP($W34,$AG:$AU,11)/14 -> 872.1434214 | Z34: =VLOOKUP($W34,$AG:$AU,12)/28 -> 864.2503464 | AA34: 5.563572679e-06 | AB34: 2010-09-27 | AC34: =(VLOOKUP($AB34,$AG:$AU,8))/7 -> 0.004764011859 | AD34: =VLOOKUP($AB34,$AG:$AU,9)/14 -> 0.00217361468 | AE34: =VLOOKUP($AB34,$AG:$AU,10)/28 -> 214.0716107 | AG34: 2010-09-27 | AH34: 856.2816788 | AI34: 872.1412478 | AJ34: 650.1787357 | AL34: 2010-03-25 | AM34: 0.03255089039 | AN34: 0.03334808301 | AO34: 0.03043060551 | AP34: 5994.0051 | AQ34: 12210.0079 | AR34: 24199.0097 | AS34: 195.110203 | AT34: 407.180357 | AU34: 736.390518
A35: 2010-03-22 | B35: 777.0002 | C35: 29.010033 | D35: 0.0373359402 | K35: 11.000033 | O35: =O34+0.01 -> 18.01 | W35: 2010-10-04 | X35: =(VLOOKUP($W35,$AG:$AU,10))/7 -> 840.4292143 | Y35: =VLOOKUP($W35,$AG:$AU,11)/14 -> 864.2148571 | Z35: =VLOOKUP($W35,$AG:$AU,12)/28 -> 860.2860643 | AA35: 5.776467108e-06 | AB35: 2010-10-04 | AC35: =(VLOOKUP($AB35,$AG:$AU,8))/7 -> 0.004854711713 | AD35: =VLOOKUP($AB35,$AG:$AU,9)/14 -> 0.002204388206 | AE35: =VLOOKUP($AB35,$AG:$AU,10)/28 -> 210.1073036 | AG35: 2010-10-04 | AH35: 840.4243596 | AI35: 864.2126528 | AJ35: 650.1787607 | AL35: 2010-03-26 | AM35: 0.0335033247 | AN35: 0.03398298199 | AO35: 0.03086143489 | AP35: 5883.0045 | AQ35: 12099.008 | AR35: 24088.0098 | AS35: 197.10021 | AT35: 411.160371 | AU35: 743.390546
A36: 2010-03-23 | B36: 777.0003 | C36: 29.020034 | D36: 0.03734880669 | K36: 11.000034 | O36: 18.02 | W36: 2010-10-11 | X36: =(VLOOKUP($W36,$AG:$AU,10))/7 -> 824.5719857 | Y36: =VLOOKUP($W36,$AG:$AU,11)/14 -> 856.2862929 | Z36: =VLOOKUP($W36,$AG:$AU,12)/28 -> 852.3575036 | AA36: 5.98571292e-06 | AB36: 2010-10-11 | AC36: =(VLOOKUP($AB36,$AG:$AU,8))/7 -> 0.004935651189 | AD36: =VLOOKUP($AB36,$AG:$AU,9)/14 -> 0.002245843628 | AE36: =VLOOKUP($AB36,$AG:$AU,10)/28 -> 206.1429964 | AG36: 2010-10-11 | AH36: 824.5670501 | AI36: =Y36-AD36 -> 856.284047 | AJ36: 646.2145071 | AL36: 2010-03-27 | AM36: 0.03449239128 | AN36: 0.03454955832 | AO36: 0.0314418108 | AP36: 5772.0039 | AQ36: 11988.0081 | AR36: 23866.0101 | AS36: 199.090217 | AT36: 414.180385 | AU36: 750.390574
A37: 2010-03-24 | B37: 777.0004 | C37: 29.030035 | D37: 0.03736167317 | K37: 11.000035 | O37: 18.03 | W37: 2010-10-18 | X37: =(VLOOKUP($W37,$AG:$AU,10))/7 -> 808.7147571 | Y37: =VLOOKUP($W37,$AG:$AU,11)/14 -> 848.3577286 | Z37: =VLOOKUP($W37,$AG:$AU,12)/28 -> 844.4289429 | AA37: 6.205035218e-06 | AB37: 2010-10-18 | AC37: =(VLOOKUP($AB37,$AG:$AU,8))/7 -> 0.005018103549 | AD37: =VLOOKUP($AB37,$AG:$AU,9)/14 -> 0.002288077521 | AE37: =VLOOKUP($AB37,$AG:$AU,10)/28 -> 202.1786893 | AG37: 2010-10-18 | AH37: 808.709739 | AI37: 848.3554405 | AJ37: 642.2502536 | AL37: 2010-03-28 | AM37: 0.03535066372 | AN37: 0.03512672484 | AO37: 0.0320330853 | AP37: 5661.0033 | AQ37: 11877.0082 | AR37: 23644.0104 | AS37: 200.120224 | AT37: 417.200399 | AU37: 757.390602
A38: 2010-03-25 | B38: 777.0005 | C38: 30.000036 | D38: 0.0386100601 | K38: 11.000036 | O38: 19 | W38: 2010-10-25 | X38: =(VLOOKUP($W38,$AG:$AU,10))/7 -> 792.8575286 | Y38: =VLOOKUP($W38,$AG:$AU,11)/14 -> 840.4291643 | Z38: =VLOOKUP($W38,$AG:$AU,12)/28 -> 836.5003821 | AA38: 6.449793664e-06 | AB38: 2010-10-25 | AC38: =(VLOOKUP($AB38,$AG:$AU,8))/7 -> 0.005113767464 | AD38: =VLOOKUP($AB38,$AG:$AU,9)/14 -> 0.002331112022 | AE38: =VLOOKUP($AB38,$AG:$AU,10)/28 -> 198.2143821 | AG38: 2010-10-25 | AH38: 792.8524148 | AI38: 840.4268332 | AJ38: 638.286 | AL38: 2010-03-29 | AM38: 0.03641624012 | AN38: 0.03579637225 | AO38: 0.0326355683 | AP38: 5550.0027 | AQ38: 11766.0083 | AR38: 23422.0107 | AS38: 202.110231 | AT38: 421.180413 | AU38: 764.39063
A39: 2010-03-26 | B39: 777.0006 | C39: 30.010037 | D39: 0.03862292642 | K39: 11.000037 | O39: =O38+0.01 -> 19.01 | W39: 2010-11-01 | X39: =(VLOOKUP($W39,$AG:$AU,10))/7 -> 777.0003 | Y39: =VLOOKUP($W39,$AG:$AU,11)/14 -> 832.5006 | Z39: =VLOOKUP($W39,$AG:$AU,12)/28 -> 828.5718214 | AA39: 6.249886929e-06 | AB39: 2010-11-01 | AC39: =(VLOOKUP($AB39,$AG:$AU,8))/7 -> 0.004856164019 | AD39: =VLOOKUP($AB39,$AG:$AU,9)/14 -> 0.002374970112 | AE39: =VLOOKUP($AB39,$AG:$AU,10)/28 -> 194.250075 | AG39: 2010-11-01 | AH39: 776.9954438 | AI39: 832.498225 | AJ39: 634.3217464 | AL39: 2010-03-30 | AM39: 0.03752530965 | AN39: 0.03399314813 | AO39: 0.03324958156 | AP39: 5439.0021 | AQ39: 11655.0084 | AR39: 23200.011 | AS39: 204.100238 | AT39: 396.190427 | AU39: 771.390658
A40: 2010-03-27 | B40: 777.0007 | C40: 30.020038 | D40: 0.03863579273 | K40: 11.000038 | O40: 19.02 | W40: 2010-11-08 | X40: =(VLOOKUP($W40,$AG:$AU,10))/7 -> 777.0004 | Y40: =VLOOKUP($W40,$AG:$AU,11)/14 -> 824.5720357 | Z40: =VLOOKUP($W40,$AG:$AU,12)/28 -> 820.6432607 | AA40: 6.358079751e-06 | AB40: 2010-11-08 | AC40: =(VLOOKUP($AB40,$AG:$AU,8))/7 -> 0.00494023051 | AD40: =VLOOKUP($AB40,$AG:$AU,9)/14 -> 0.002419675662 | AE40: =VLOOKUP($AB40,$AG:$AU,10)/28 -> 194.2501 | AG40: 2010-11-08 | AH40: 776.9954598 | AI40: 824.569616 | AJ40: 626.3931607 | AL40: 2010-03-31 | AM40: 0.037891182 | AN40: 0.03458161357 | AO40: 0.03387545927 | AP40: 5439.0028 | AQ40: 11544.0085 | AR40: 22978.0113 | AS40: 206.090245 | AT40: 399.210441 | AU40: 778.390686
A41: 2010-03-28 | B41: 777.0008 | C41: 30.030039 | D41: 0.03864865905 | K41: 11.000039 | O41: 19.03 | W41: 2010-11-15 | X41: =(VLOOKUP($W41,$AG:$AU,10))/7 -> 777.0005 | Y41: =VLOOKUP($W41,$AG:$AU,11)/14 -> 816.6434714 | Z41: =VLOOKUP($W41,$AG:$AU,12)/28 -> 824.607575 | AA41: 6.46837339e-06 | AB41: 2010-11-15 | AC41: =(VLOOKUP($AB41,$AG:$AU,8))/7 -> 0.005025929358 | AD41: =VLOOKUP($AB41,$AG:$AU,9)/14 -> 0.002429698441 | AE41: =VLOOKUP($AB41,$AG:$AU,10)/28 -> 194.250125 | AG41: 2010-11-15 | AH41: 776.9954741 | AI41: 816.6410417 | AJ41: 630.35745 | AL41: 2010-04-01 | AM41: 0.03808055134 | AN41: 0.03518150551 | AO41: 0.03401577818 | AP41: 5439.0035 | AQ41: 11433.0086 | AR41: 23089.0121 | AS41: 207.120252 | AT41: 402.230455 | AU41: 785.390714
A42: 2010-03-29 | B42: 777.0009 | C42: 31.00004 | D42: 0.03989704516 | K42: 11.00004 | O42: 20 | W42: 2010-11-22 | X42: =(VLOOKUP($W42,$AG:$AU,10))/7 -> 777.0006 | Y42: =VLOOKUP($W42,$AG:$AU,11)/14 -> 808.7149071 | Z42: =VLOOKUP($W42,$AG:$AU,12)/28 -> 828.5718893 | AA42: 6.596418994e-06 | AB42: 2010-11-22 | AC42: =(VLOOKUP($AB42,$AG:$AU,8))/7 -> 0.005125421516 | AD42: =VLOOKUP($AB42,$AG:$AU,9)/14 -> 0.002439625312 | AE42: =VLOOKUP($AB42,$AG:$AU,10)/28 -> 194.25015 | AG42: 2010-11-22 | AH42: 776.9954746 | AI42: 808.7124675 | AJ42: 634.3217393 | AL42: 2010-04-02 | AM42: 0.03844642352 | AN42: 0.03587795061 | AO42: 0.03415475437 | AP42: 5439.0042 | AQ42: 11322.0087 | AR42: 23200.0129 | AS42: 209.110259 | AT42: 406.210469 | AU42: 792.390742
A43: 2010-03-30 | B43: 777.001 | C43: 31.010041 | D43: 0.03990991131 | K43: 11.000041 | O43: =O42+0.01 -> 20.01 | W43: 2010-11-29 | X43: =(VLOOKUP($W43,$AG:$AU,10))/7 -> 777.0007 | Y43: =VLOOKUP($W43,$AG:$AU,11)/14 -> 800.7863429 | Z43: =VLOOKUP($W43,$AG:$AU,12)/28 -> 832.5362036 | AA43: 6.727000134e-06 | AB43: 2010-11-29 | AC43: =(VLOOKUP($AB43,$AG:$AU,8))/7 -> 0.005226883813 | AD43: =VLOOKUP($AB43,$AG:$AU,9)/14 -> 0.002449457645 | AE43: =VLOOKUP($AB43,$AG:$AU,10)/28 -> 194.250175 | AG43: 2010-11-29 | AH43: 776.9954731 | AI43: 800.7838934 | AJ43: 638.2860286 | AL43: 2010-04-03 | AM43: 0.03881229561 | AN43: 0.03658818669 | AO43: 0.03429240703 | AP43: 5439.0049 | AQ43: 11211.0088 | AR43: 23311.0137 | AS43: 211.100266 | AT43: 410.190483 | AU43: 799.39077
A44: 2010-03-31 | B44: 777.0011 | C44: 31.020042 | D44: 0.03992277746 | K44: 11.000042 | O44: 20.02 | W44: 2010-12-06 | X44: =(VLOOKUP($W44,$AG:$AU,10))/7 -> 777.0008 | Y44: =VLOOKUP($W44,$AG:$AU,11)/14 -> 792.8577786 | Z44: =VLOOKUP($W44,$AG:$AU,12)/28 -> 836.5005179 | AA44: 6.844291731e-06 | AB44: 2010-12-06 | AC44: =(VLOOKUP($AB44,$AG:$AU,8))/7 -> 0.00531802015 | AD44: =VLOOKUP($AB44,$AG:$AU,9)/14 -> 0.002459196783 | AE44: =VLOOKUP($AB44,$AG:$AU,10)/28 -> 194.2502 | AG44: 2010-12-06 | AH44: 776.995482 | AI44: 792.8553194 | AJ44: 642.2503179 | AL44: 2010-04-04 | AM44: 0.0391781676 | AN44: 0.03722614105 | AO44: 0.03442875496 | AP44: 5439.0056 | AQ44: 11100.0089 | AR44: 23422.0145 | AS44: 213.090273 | AT44: 413.210497 | AU44: 806.390798
A45: 2010-04-01 | B45: 777.0012 | C45: 31.030043 | D45: 0.0399356436 | K45: 11.000043 | O45: 20.03 | W45: 2010-12-13 | X45: =(VLOOKUP($W45,$AG:$AU,10))/7 -> 777.0009 | Y45: =VLOOKUP($W45,$AG:$AU,11)/14 -> 784.9292143 | Z45: =VLOOKUP($W45,$AG:$AU,12)/28 -> 832.536275 | AA45: 6.963952838e-06 | AB45: 2010-12-13 | AC45: =(VLOOKUP($AB45,$AG:$AU,8))/7 -> 0.005410997622 | AD45: =VLOOKUP($AB45,$AG:$AU,9)/14 -> 0.00249235578 | AE45: =VLOOKUP($AB45,$AG:$AU,10)/28 -> 194.250225 | AG45: 2010-12-13 | AH45: 776.995489 | AI45: 784.9267219 | AJ45: 638.28605 | AL45: 2010-04-05 | AM45: 0.03936753668 | AN45: 0.03787698336 | AO45: 0.03489298092 | AP45: 5439.0063 | AQ45: 10989.009 | AR45: 23311.0157 | AS45: 214.12028 | AT45: 416.230511 | AU45: 813.390826
A46: 2010-04-02 | B46: 777.0013 | C46: 32.000044 | D46: 0.04118402891 | K46: 11.000044 | O46: 21 | W46: 2010-12-20 | X46: =(VLOOKUP($W46,$AG:$AU,10))/7 -> 777.001 | Y46: =VLOOKUP($W46,$AG:$AU,11)/14 -> 777.00065 | Z46: =VLOOKUP($W46,$AG:$AU,12)/28 -> 828.5720321 | AA46: 7.102281644e-06 | AB46: 2010-12-20 | AC46: =(VLOOKUP($AB46,$AG:$AU,8))/7 -> 0.005518479939 | AD46: =VLOOKUP($AB46,$AG:$AU,9)/14 -> 0.00252583207 | AE46: =VLOOKUP($AB46,$AG:$AU,10)/28 -> 194.25025 | AG46: 2010-12-20 | AH46: 776.9954815 | AI46: 776.9981242 | AJ46: 634.3217821 | AL46: 2010-04-06 | AM46: 0.03973340851 | AN46: 0.03862935958 | AO46: 0.03536164898 | AP46: 5439.007 | AQ46: 10878.0091 | AR46: 23200.0169 | AS46: 216.110287 | AT46: 420.210525 | AU46: 820.390854
A47: 2010-04-03 | B47: 777.0014 | C47: 32.010045 | D47: 0.04119689488 | K47: 11.000045 | O47: =O46+0.01 -> 21.01 | W47: 2010-12-27 | X47: =(VLOOKUP($W47,$AG:$AU,10))/7 -> 777.0011 | Y47: =VLOOKUP($W47,$AG:$AU,11)/14 -> 777.00075 | Z47: =VLOOKUP($W47,$AG:$AU,12)/28 -> 828.5363679 | AA47: 7.16954889e-06 | AB47: 2010-12-27 | AC47: =(VLOOKUP($AB47,$AG:$AU,8))/7 -> 0.005570747374 | AD47: =VLOOKUP($AB47,$AG:$AU,9)/14 -> 0.002547493517 | AE47: =VLOOKUP($AB47,$AG:$AU,10)/28 -> 194.250275 | AG47: 2010-12-27 | AH47: 776.9955293 | AI47: 776.9982025 | AJ47: 634.2860929 | AL47: 2010-04-07 | AM47: 0.04009928024 | AN47: 0.03899523162 | AO47: 0.03566490923 | AP47: 5439.0077 | AQ47: 10878.0105 | AR47: 23199.0183 | AS47: 218.100294 | AT47: 424.190539 | AU47: 827.390882
A48: 2010-04-04 | B48: 777.0015 | C48: 32.020046 | D48: 0.04120976086 | K48: 11.000046 | O48: 21.02 | W48: 2011-01-03 | X48: =(VLOOKUP($W48,$AG:$AU,10))/7 -> 777.0012 | Y48: =VLOOKUP($W48,$AG:$AU,11)/14 -> 777.00085 | Z48: =VLOOKUP($W48,$AG:$AU,12)/28 -> 824.5721357 | AA48: 7.220590457e-06 | AB48: 2011-01-03 | AC48: =(VLOOKUP($AB48,$AG:$AU,8))/7 -> 0.00561040745 | AD48: =VLOOKUP($AB48,$AG:$AU,9)/14 -> 0.002581397245 | AE48: =VLOOKUP($AB48,$AG:$AU,10)/28 -> 194.2503 | AG48: 2011-01-03 | AH48: 776.9955896 | AI48: 776.9982686 | AJ48: 630.3218357 | AL48: 2010-04-08 | AM48: 0.04046515188 | AN48: 0.03927285215 | AO48: 0.03613956144 | AP48: 5439.0084 | AQ48: 10878.0119 | AR48: 23088.0198 | AS48: 220.090301 | AT48: 427.210553 | AU48: 834.39091
A49: 2010-04-05 | B49: 777.0016 | C49: 32.030047 | D49: 0.04122262683 | K49: 11.000047 | O49: 21.03 | W49: 2011-01-10 | X49: =(VLOOKUP($W49,$AG:$AU,10))/7 -> 777.0013 | Y49: =VLOOKUP($W49,$AG:$AU,11)/14 -> 777.00095 | Z49: =VLOOKUP($W49,$AG:$AU,12)/28 -> 820.6079036 | AA49: 7.271631997e-06 | AB49: 2011-01-10 | AC49: =(VLOOKUP($AB49,$AG:$AU,8))/7 -> 0.005650067515 | AD49: =VLOOKUP($AB49,$AG:$AU,9)/14 -> 0.002615628542 | AE49: =VLOOKUP($AB49,$AG:$AU,10)/28 -> 194.250325 | AG49: 2011-01-10 | AH49: 776.9956499 | AI49: 776.9983344 | AJ49: 626.3575786 | AL49: 2010-04-09 | AM49: 0.04065452069 | AN49: 0.0395504726 | AO49: 0.03661879958 | AP49: 5439.0091 | AQ49: 10878.0133 | AR49: 22977.0213 | AS49: 221.120308 | AT49: 430.230567 | AU49: 841.390938
A50: 2010-04-06 | B50: 777.0017 | C50: 33.000048 | D50: 0.04247101132 | K50: 11.000048 | O50: 22 | W50: 2011-01-17 | X50: =(VLOOKUP($W50,$AG:$AU,10))/7 -> 777.0014 | Y50: =VLOOKUP($W50,$AG:$AU,11)/14 -> 777.00105 | Z50: =VLOOKUP($W50,$AG:$AU,12)/28 -> 816.6436714 | AA50: 7.338899148e-06 | AB50: 2011-01-17 | AC50: =(VLOOKUP($AB50,$AG:$AU,8))/7 -> 0.005702334912 | AD50: =VLOOKUP($AB50,$AG:$AU,9)/14 -> 0.002650192176 | AE50: =VLOOKUP($AB50,$AG:$AU,10)/28 -> 194.25035 | AG50: 2011-01-17 | AH50: 776.9956977 | AI50: 776.9983998 | AJ50: 622.3933214 | AL50: 2010-04-10 | AM50: 0.04102039217 | AN50: 0.03991634439 | AO50: 0.03710269046 | AP50: 5439.0098 | AQ50: 10878.0147 | AR50: 22866.0228 | AS50: 223.110315 | AT50: 434.210581 | AU50: 848.390966
A51: 2010-04-07 | B51: 777.0018 | C51: 33.010049 | D51: 0.04248387713 | K51: 11.000049 | O51: =O50+0.01 -> 22.01 | W51: 2011-01-24 | X51: =(VLOOKUP($W51,$AG:$AU,10))/7 -> 777.0015 | Y51: =VLOOKUP($W51,$AG:$AU,11)/14 -> 777.00115 | Z51: =VLOOKUP($W51,$AG:$AU,12)/28 -> 812.6794393 | AA51: 7.406166264e-06 | AB51: 2011-01-24 | AC51: =(VLOOKUP($AB51,$AG:$AU,8))/7 -> 0.005754602296 | AD51: =VLOOKUP($AB51,$AG:$AU,9)/14 -> 0.002685093011 | AE51: =VLOOKUP($AB51,$AG:$AU,10)/28 -> 194.250375 | AG51: 2011-01-24 | AH51: 776.9957454 | AI51: 776.9984649 | AJ51: 618.4290643 | AL51: 2010-04-11 | AM51: 0.04138626355 | AN51: 0.04028221607 | AO51: 0.03759130215 | AP51: 5439.0105 | AQ51: 10878.0161 | AR51: 22755.0243 | AS51: 225.100322 | AT51: 438.190595 | AU51: 855.390994
A52: 2010-04-08 | B52: 999 | C52: 33.02005 | D52: 0.0330531031 | K52: 11.00005 | O52: 22.02 | W52: 2011-01-31 | X52: =(VLOOKUP($W52,$AG:$AU,10))/7 -> 808.7156143 | Y52: =VLOOKUP($W52,$AG:$AU,11)/14 -> 792.8582571 | Z52: =VLOOKUP($W52,$AG:$AU,12)/28 -> 816.6437107 | AA52: 7.021477186e-06 | AB52: 2011-01-31 | AC52: =(VLOOKUP($AB52,$AG:$AU,8))/7 -> 0.005678378236 | AD52: =VLOOKUP($AB52,$AG:$AU,9)/14 -> 0.002693925231 | AE52: =VLOOKUP($AB52,$AG:$AU,10)/28 -> 202.1789036 | AG52: 2011-01-31 | AH52: 808.7099359 | AI52: =Y52-AD52 -> 792.8555632 | AJ52: 614.4648071 | AL52: 2010-04-12 | AM52: 0.04011481292 | AN52: 0.03974864765 | AO52: 0.03771495323 | AP52: 5661.0093 | AQ52: 11100.0156 | AR52: 22866.0239 | AS52: 227.090329 | AT52: 441.210609 | AU52: 862.391022
A53: 2010-04-09 | B53: 999.0001 | C53: 33.030051 | D53: 0.0330631108 | K53: 11.000051 | O53: 22.03 | W53: 2011-02-07 | X53: =(VLOOKUP($W53,$AG:$AU,10))/7 -> 840.4297286 | Y53: =VLOOKUP($W53,$AG:$AU,11)/14 -> 808.7153643 | Z53: =VLOOKUP($W53,$AG:$AU,12)/28 -> 820.6079821 | AA53: 6.669377763e-06 | AB53: 2011-02-07 | AC53: =(VLOOKUP($AB53,$AG:$AU,8))/7 -> 0.005605143343 | AD53: =VLOOKUP($AB53,$AG:$AU,9)/14 -> 0.002612613205 | AE53: =VLOOKUP($AB53,$AG:$AU,10)/28 -> 210.1074321 | AG53: 2011-02-07 | AH53: 840.4241234 | AI53: 808.7127517 | AJ53: 610.50055 | AL53: 2010-04-13 | AM53: 0.03877613835 | AN53: 0.0392360034 | AO53: 0.03657658487 | AP53: 5883.0081 | AQ53: 11322.0151 | AR53: 22977.0235 | AS53: 228.120336 | AT53: 444.230623 | AU53: 840.42105
A54: 2010-04-10 | B54: 999.0002 | C54: 34.000052 | D54: 0.03403407927 | K54: 11.000052 | O54: 23 | W54: 2011-02-14 | X54: =(VLOOKUP($W54,$AG:$AU,10))/7 -> 872.1438429 | Y54: =VLOOKUP($W54,$AG:$AU,11)/14 -> 824.5724714 | Z54: =VLOOKUP($W54,$AG:$AU,12)/28 -> 824.5722536 | AA54: 6.359736654e-06 | AB54: 2011-02-14 | AC54: =(VLOOKUP($AB54,$AG:$AU,8))/7 -> 0.005546605165 | AD54: =VLOOKUP($AB54,$AG:$AU,9)/14 -> 0.002621708959 | AE54: =VLOOKUP($AB54,$AG:$AU,10)/28 -> 218.0359607 | AG54: 2011-02-14 | AH54: 872.1382963 | AI54: 824.5698497 | AJ54: 606.5362929 | AL54: 2010-04-14 | AM54: 0.03769206928 | AN54: 0.03882623615 | AO54: 0.03670392542 | AP54: 6105.0069 | AQ54: 11544.0146 | AR54: 23088.0231 | AS54: 230.110343 | AT54: 448.210637 | AU54: 847.421078
A55: 2010-04-11 | B55: 999.0003 | C55: 34.010053 | D55: 0.03404408687 | K55: 11.000053 | O55: =O54+0.01 -> 23.01 | W55: 2011-02-21 | X55: =(VLOOKUP($W55,$AG:$AU,10))/7 -> 903.8579571 | Y55: =VLOOKUP($W55,$AG:$AU,11)/14 -> 840.4295786 | Z55: =VLOOKUP($W55,$AG:$AU,12)/28 -> 828.536525 | AA55: 6.074268554e-06 | AB55: 2011-02-21 | AC55: =(VLOOKUP($AB55,$AG:$AU,8))/7 -> 0.005490275966 | AD55: =VLOOKUP($AB55,$AG:$AU,9)/14 -> 0.002630717672 | AE55: =VLOOKUP($AB55,$AG:$AU,10)/28 -> 225.9644893 | AG55: 2011-02-21 | AH55: 903.8524669 | AI55: 840.4269479 | AJ55: 602.5720357 | AL55: 2010-04-15 | AM55: 0.03668407474 | AN55: 0.03843193176 | AO55: 0.03683004741 | AP55: 6327.0057 | AQ55: 11766.0141 | AR55: 23199.0227 | AS55: 232.10035 | AT55: 452.190651 | AU55: 854.421106
A56: 2010-04-12 | B56: 999.0004 | C56: 34.020054 | D56: 0.03405409447 | K56: 11.000054 | O56: 23.02 | W56: 2011-02-28 | X56: =(VLOOKUP($W56,$AG:$AU,10))/7 -> 935.5720714 | Y56: =VLOOKUP($W56,$AG:$AU,11)/14 -> 856.2866857 | Z56: =VLOOKUP($W56,$AG:$AU,12)/28 -> 832.5007964 | AA56: 5.798156224e-06 | AB56: 2011-02-28 | AC56: =(VLOOKUP($AB56,$AG:$AU,8))/7 -> 0.005424593028 | AD56: =VLOOKUP($AB56,$AG:$AU,9)/14 -> 0.002639640589 | AE56: =VLOOKUP($AB56,$AG:$AU,10)/28 -> 233.8930179 | AG56: 2011-02-28 | AH56: 935.5666468 | AI56: 856.2840461 | AJ56: 598.6077786 | AL56: 2010-04-16 | AM56: 0.03574441841 | AN56: 0.0379721512 | AO56: 0.03695496825 | AP56: 6549.0045 | AQ56: 11988.0136 | AR56: 23310.0223 | AS56: 234.090357 | AT56: 455.210665 | AU56: 861.421134
A57: 2010-04-13 | B57: 999.0005 | C57: 34.030055 | D57: 0.03406410207 | K57: 11.000055 | O57: 23.03 | W57: 2011-03-07 | X57: =(VLOOKUP($W57,$AG:$AU,10))/7 -> 967.2861857 | Y57: =VLOOKUP($W57,$AG:$AU,11)/14 -> 872.1437929 | Z57: =VLOOKUP($W57,$AG:$AU,12)/28 -> 836.4650679 | AA57: 5.542618754e-06 | AB57: 2011-03-07 | AC57: =(VLOOKUP($AB57,$AG:$AU,8))/7 -> 0.005361298554 | AD57: =VLOOKUP($AB57,$AG:$AU,9)/14 -> 0.002648478929 | AE57: =VLOOKUP($AB57,$AG:$AU,10)/28 -> 241.8215464 | AG57: 2011-03-07 | AH57: 967.2808244 | AI57: 872.1411444 | AJ57: 594.6435214 | AL57: 2010-04-17 | AM57: 0.03472459746 | AN57: 0.03752908987 | AO57: 0.03707870501 | AP57: 6771.0033 | AQ57: 12210.0131 | AR57: 23421.0219 | AS57: 235.120364 | AT57: 458.230679 | AU57: 868.421162
A58: 2010-04-14 | B58: 999.0006 | C58: 35.000056 | D58: 0.03503507005 | K58: 11.000056 | O58: 24 | W58: 2011-03-14 | X58: =(VLOOKUP($W58,$AG:$AU,10))/7 -> 999.0003 | Y58: =VLOOKUP($W58,$AG:$AU,11)/14 -> 888.0009 | Z58: =VLOOKUP($W58,$AG:$AU,12)/28 -> 840.4293393 | AA58: 5.316611033e-06 | AB58: 2011-03-14 | AC58: =(VLOOKUP($AB58,$AG:$AU,8))/7 -> 0.005311296017 | AD58: =VLOOKUP($AB58,$AG:$AU,9)/14 -> 0.002657233889 | AE58: =VLOOKUP($AB58,$AG:$AU,10)/28 -> 249.750075 | AG58: 2011-03-14 | AH58: 998.9949887 | AI58: 887.9982428 | AJ58: 590.6792643 | AL58: 2010-04-18 | AM58: 0.03390680678 | AN58: 0.03717907212 | AO58: 0.03720127444 | AP58: 6993.0021 | AQ58: 12432.0126 | AR58: 23532.0215 | AS58: 237.110371 | AT58: 462.210693 | AU58: 875.42119
A59: 2010-04-15 | B59: 999.0007 | C59: 35.010057 | D59: 0.03504507755 | K59: 11.000057 | O59: =O58+0.01 -> 24.01 | W59: 2011-03-21 | X59: =(VLOOKUP($W59,$AG:$AU,10))/7 -> 999.0004 | Y59: =VLOOKUP($W59,$AG:$AU,11)/14 -> 903.8580071 | Z59: =VLOOKUP($W59,$AG:$AU,12)/28 -> 844.3936107 | AA59: 5.268314156e-06 | AB59: 2011-03-21 | AC59: =(VLOOKUP($AB59,$AG:$AU,8))/7 -> 0.005263047949 | AD59: =VLOOKUP($AB59,$AG:$AU,9)/14 -> 0.002665906643 | AE59: =VLOOKUP($AB59,$AG:$AU,10)/28 -> 249.7501 | AG59: 2011-03-21 | AH59: 998.995137 | AI59: 903.8553412 | AJ59: 594.6435107 | AL59: 2010-04-19 | AM59: 0.03419137456 | AN59: 0.03684133564 | AO59: 0.037322693 | AP59: 6993.0028 | AQ59: 12654.0121 | AR59: 23643.0211 | AS59: 239.100378 | AT59: 466.190707 | AU59: 882.421218
A60: 2010-04-16 | B60: 999.0008 | C60: 35.020058 | D60: 0.03505508504 | K60: 11.000058 | O60: 24.02 | W60: 2011-03-28 | X60: =(VLOOKUP($W60,$AG:$AU,10))/7 -> 999.0005 | Y60: =VLOOKUP($W60,$AG:$AU,11)/14 -> 919.7151143 | Z60: =VLOOKUP($W60,$AG:$AU,12)/28 -> 848.3578821 | AA60: 5.211020982e-06 | AB60: 2011-03-28 | AC60: =(VLOOKUP($AB60,$AG:$AU,8))/7 -> 0.005205812567 | AD60: =VLOOKUP($AB60,$AG:$AU,9)/14 -> 0.002674498343 | AE60: =VLOOKUP($AB60,$AG:$AU,10)/28 -> 249.750125 | AG60: 2011-03-28 | AH60: 998.9952942 | AI60: 919.7124398 | AJ60: 598.6077571 | AL60: 2010-04-20 | AM60: 0.03447594228 | AN60: 0.03644068797 | AO60: 0.0374429768 | AP60: 6993.0035 | AQ60: 12876.0116 | AR60: 23754.0207 | AS60: 241.090385 | AT60: 469.210721 | AU60: 889.421246
A61: 2010-04-17 | B61: 999.0009 | C61: 88.000059 | D61: 0.08808806779 | K61: 11.000059 | O61: 77 | W61: 2011-04-04 | X61: =(VLOOKUP($W61,$AG:$AU,10))/7 -> 999.0006 | Y61: =VLOOKUP($W61,$AG:$AU,11)/14 -> 935.5722214 | Z61: =VLOOKUP($W61,$AG:$AU,12)/28 -> 856.2864857 | AA61: 5.733980108e-06 | AB61: 2011-04-04 | AC61: =(VLOOKUP($AB61,$AG:$AU,8))/7 -> 0.005728249568 | AD61: =VLOOKUP($AB61,$AG:$AU,9)/14 -> 0.002828395117 | AE61: =VLOOKUP($AB61,$AG:$AU,10)/28 -> 249.75015 | AG61: 2011-04-04 | AH61: 998.9948718 | AI61: 935.569393 | AJ61: 606.5363357 | AL61: 2010-04-21 | AM61: 0.04219794291 | AN61: 0.04009774698 | AO61: 0.03959753164 | AP61: 6993.0042 | AQ61: 13098.0111 | AR61: 23976.0216 | AS61: 295.090392 | AT61: 525.200735 | AU61: 949.391274
A62: 2010-04-18 | B62: 999.001 | C62: 36.00006 | D62: 0.03603606002 | K62: 11.00006 | O62: 25 | W62: 2011-04-11 | X62: =(VLOOKUP($W62,$AG:$AU,10))/7 -> 999.0007 | Y62: =VLOOKUP($W62,$AG:$AU,11)/14 -> 951.4293286 | Z62: =VLOOKUP($W62,$AG:$AU,12)/28 -> 864.2150893 | AA62: 5.681141857e-06 | AB62: 2011-04-11 | AC62: =(VLOOKUP($AB62,$AG:$AU,8))/7 -> 0.005675464692 | AD62: =VLOOKUP($AB62,$AG:$AU,9)/14 -> 0.002823109385 | AE62: =VLOOKUP($AB62,$AG:$AU,10)/28 -> 249.750175 | AG62: 2011-04-11 | AH62: 998.9950245 | AI62: 951.4265055 | AJ62: 614.4649143 | AL62: 2010-04-22 | AM62: 0.04248250977 | AN62: 0.03972825284 | AO62: 0.0395235314 | AP62: 6993.0049 | AQ62: 13320.0106 | AR62: 24198.0225 | AS62: 297.080399 | AT62: 529.180749 | AU62: 956.391302
A63: 2010-04-19 | B63: 999.0011 | C63: 36.010061 | D63: 0.03604606742 | K63: 11.000061 | O63: =O62+0.01 -> 25.01 | W63: 2011-04-18 | X63: =(VLOOKUP($W63,$AG:$AU,10))/7 -> 999.0008 | Y63: =VLOOKUP($W63,$AG:$AU,11)/14 -> 967.2864357 | Z63: =VLOOKUP($W63,$AG:$AU,12)/28 -> 872.1436929 | AA63: 5.630035994e-06 | AB63: 2011-04-18 | AC63: =(VLOOKUP($AB63,$AG:$AU,8))/7 -> 0.005624410462 | AD63: =VLOOKUP($AB63,$AG:$AU,9)/14 -> 0.002817919758 | AE63: =VLOOKUP($AB63,$AG:$AU,10)/28 -> 249.7502 | AG63: 2011-04-18 | AH63: 998.9951756 | AI63: 967.2836178 | AJ63: 622.3934929 | AL63: 2010-04-23 | AM63: 0.04276707658 | AN63: 0.03937087324 | AO63: 0.03945087661 | AP63: 6993.0056 | AQ63: 13542.0101 | AR63: 24420.0234 | AS63: 299.070406 | AT63: 533.160763 | AU63: 963.39133
A64: 2010-04-20 | B64: 999.0012 | C64: 36.020062 | D64: 0.03605607481 | K64: 11.000062 | O64: 25.02 | W64: 2011-04-25 | X64: =(VLOOKUP($W64,$AG:$AU,10))/7 -> 999.0009 | Y64: =VLOOKUP($W64,$AG:$AU,11)/14 -> 983.1435429 | Z64: =VLOOKUP($W64,$AG:$AU,12)/28 -> 880.0722964 | AA64: 5.570604856e-06 | AB64: 2011-04-25 | AC64: =(VLOOKUP($AB64,$AG:$AU,8))/7 -> 0.005565039264 | AD64: =VLOOKUP($AB64,$AG:$AU,9)/14 -> 0.002812823638 | AE64: =VLOOKUP($AB64,$AG:$AU,10)/28 -> 249.750225 | AG64: 2011-04-25 | AH64: 998.995335 | AI64: 983.14073 | AJ64: 630.3220714 | AL64: 2010-04-24 | AM64: 0.04305164333 | AN64: 0.03895527485 | AO64: 0.03937953093 | AP64: 6993.0063 | AQ64: 13764.0096 | AR64: 24642.0243 | AS64: 301.060413 | AT64: 536.180777 | AU64: 970.391358
A65: 2010-04-21 | B65: 999.0013 | C65: 36.030063 | D65: 0.0360660822 | K65: 11.000063 | O65: 25.03 | W65: 2011-05-02 | X65: =(VLOOKUP($W65,$AG:$AU,10))/7 -> 999.001 | Y65: =VLOOKUP($W65,$AG:$AU,11)/14 -> 999.00065 | Z65: =VLOOKUP($W65,$AG:$AU,12)/28 -> 888.0009 | AA65: 5.513060408e-06 | AB65: 2011-05-02 | AC65: =(VLOOKUP($AB65,$AG:$AU,8))/7 -> 0.005507552861 | AD65: =VLOOKUP($AB65,$AG:$AU,9)/14 -> 0.00280781852 | AE65: =VLOOKUP($AB65,$AG:$AU,10)/28 -> 249.75025 | AG65: 2011-05-02 | AH65: 998.9954924 | AI65: 998.9978422 | AJ65: 638.25065 | AL65: 2010-04-25 | AM65: 0.04319893002 | AN65: 0.03855287002 | AO65: 0.03930945927 | AP65: 6993.007 | AQ65: 13986.0091 | AR65: 24864.0252 | AS65: 302.09042 | AT65: 539.200791 | AU65: 977.391386
A66: 2010-04-22 | B66: 999.0014 | C66: =SUM(K66:Q66) -> 37.000064 | D66: 0.0370370492 | K66: 11.000064 | O66: 26 | W66: 2011-05-09 | X66: =(VLOOKUP($W66,$AG:$AU,10))/7 -> 999.0011 | Y66: =VLOOKUP($W66,$AG:$AU,11)/14 -> 999.00075 | Z66: =VLOOKUP($W66,$AG:$AU,12)/28 -> 895.9295036 | AA66: 5.553752964e-06 | AB66: 2011-05-09 | AC66: =(VLOOKUP($AB66,$AG:$AU,8))/7 -> 0.00554820532 | AD66: =VLOOKUP($AB66,$AG:$AU,9)/14 -> 0.002802901988 | AE66: =VLOOKUP($AB66,$AG:$AU,10)/28 -> 249.750275 | AG66: 2011-05-09 | AH66: 998.9955518 | AI66: 998.9979471 | AJ66: 646.1792286 | AL66: 2010-04-26 | AM66: 0.04348349666 | AN66: 0.03883743724 | AO66: 0.03924062783 | AP66: 6993.0077 | AQ66: 13986.0105 | AR66: 25086.0261 | AS66: 304.080427 | AT66: 543.180805 | AU66: 984.391414
A67: 2010-04-23 | B67: 999.0015 | C67: 37.010065 | D67: =C67/B67 -> 0.03704705649 | K67: 11.000065 | O67: =O66+0.01 -> 26.01 | W67: 2011-05-16 | X67: =(VLOOKUP($W67,$AG:$AU,10))/7 -> 999.0012 | Y67: =VLOOKUP($W67,$AG:$AU,11)/14 -> 999.00085 | Z67: =VLOOKUP($W67,$AG:$AU,12)/28 -> 903.8581071 | AA67: 5.594445503e-06 | AB67: 2011-05-16 | AC67: =(VLOOKUP($AB67,$AG:$AU,8))/7 -> 0.005588857771 | AD67: =VLOOKUP($AB67,$AG:$AU,9)/14 -> 0.002798071712 | AE67: =VLOOKUP($AB67,$AG:$AU,10)/28 -> 249.7503 | AG67: 2011-05-16 | AH67: 998.9956111 | AI67: 998.9980519 | AJ67: 654.1078071 | AL67: 2010-04-27 | AM67: 0.04376806326 | AN67: 0.03912200439 | AO67: 0.03917300396 | AP67: 6993.0084 | AQ67: 13986.0119 | AR67: 25308.027 | AS67: 306.070434 | AT67: 547.160819 | AU67: 991.391442
A68: 2010-04-24 | B68: 666 | C68: 37.020066 | D68: 0.05558568468 | K68: =K67+0.000001 -> 11.000066 | O68: 26.02 | W68: 2011-05-23 | X68: =(VLOOKUP($W68,$AG:$AU,10))/7 -> 951.4296429 | Y68: =VLOOKUP($W68,$AG:$AU,11)/14 -> 975.2151214 | Z68: =VLOOKUP($W68,$AG:$AU,12)/28 -> 899.8937964 | AA68: 6.050653399e-06 | AB68: 2011-05-23 | AC68: =(VLOOKUP($AB68,$AG:$AU,8))/7 -> 0.005756771003 | AD68: =VLOOKUP($AB68,$AG:$AU,9)/14 -> 0.002830241775 | AE68: =VLOOKUP($AB68,$AG:$AU,10)/28 -> 237.8574107 | AG68: 2011-05-23 | AH68: =X68-AC68 -> 951.4238861 | AI68: =Y68-AD68 -> 975.2122912 | AJ68: 662.0363857 | AL68: 2010-04-28 | AM68: 0.03830182489 | AN68: 0.04029739702 | AO68: 0.03962338484 | AP68: 6660.0075 | AQ68: 13653.0117 | AR68: 25197.0263 | AS68: 255.090441 | AT68: 550.180833 | AU68: 998.39147
A69: 2010-04-25 | B69: =B68+0.0001 -> 666.0001 | C69: 37.030067 | D69: 0.05560069285 | K69: 11.000067 | O69: 26.03 | W69: =W68+7 -> 2011-05-30 | X69: =(VLOOKUP($W69,$AG:$AU,10))/7 -> 903.8580857 | Y69: =VLOOKUP($W69,$AG:$AU,11)/14 -> 951.4293929 | Z69: =VLOOKUP($W69,$AG:$AU,12)/28 -> 895.9294857 | AA69: 6.564171952e-06 | AB69: =AB68+7 -> 2011-05-30 | AC69: =(VLOOKUP($AB69,$AG:$AU,8))/7 -> 0.005933079895 | AD69: =VLOOKUP($AB69,$AG:$AU,9)/14 -> 0.00286269653 | AE69: =VLOOKUP($AB69,$AG:$AU,10)/28 -> 225.9645214 | AG69: =AG68+7 -> 2011-05-30 | AH69: 903.8521526 | AI69: 951.4265302 | AJ69: 669.9649643 | AL69: 2010-04-29 | AM69: 0.04048050906 | AN69: 0.04153155926 | AO69: 0.04007775142 | AP69: 6327.0066 | AQ69: 13320.0115 | AR69: 25086.0256 | AS69: 256.120448 | AT69: 553.200847 | AU69: 1005.391498
A70: 2010-04-26 | B70: 666.0002 | C70: 38.000068 | D70: 0.05705714202 | K70: 11.000068 | O70: 27 | W70: 2011-06-06 | X70: =(VLOOKUP($W70,$AG:$AU,10))/7 -> 856.2865286 | Y70: =VLOOKUP($W70,$AG:$AU,11)/14 -> 927.6436643 | Z70: =VLOOKUP($W70,$AG:$AU,12)/28 -> 891.965175 | AA70: 7.157639485e-06 | AB70: 2011-06-06 | AC70: =(VLOOKUP($AB70,$AG:$AU,8))/7 -> 0.006128990267 | AD70: =VLOOKUP($AB70,$AG:$AU,9)/14 -> 0.002895439773 | AE70: =VLOOKUP($AB70,$AG:$AU,10)/28 -> 214.0716321 | AG70: 2011-06-06 | AH70: 856.2803996 | AI70: 927.6407688 | AJ70: 677.8935429 | AL70: 2010-04-30 | AM70: 0.04306142969 | AN70: 0.04290293187 | AO70: 0.04053615682 | AP70: 5994.0057 | AQ70: 12987.0113 | AR70: 24975.0249 | AS70: 258.110455 | AT70: 557.180861 | AU70: 1012.391526
A71: 2010-04-27 | B71: 666.0003 | C71: 38.010069 | D71: 0.05707214997 | K71: 11.000069 | O71: =O70+0.01 -> 27.01 | W71: 2011-06-13 | X71: =(VLOOKUP($W71,$AG:$AU,10))/7 -> 808.7149714 | Y71: =VLOOKUP($W71,$AG:$AU,11)/14 -> 903.8579357 | Z71: =VLOOKUP($W71,$AG:$AU,12)/28 -> 888.0008643 | AA71: 7.833676799e-06 | AB71: 2011-06-13 | AC71: =(VLOOKUP($AB71,$AG:$AU,8))/7 -> 0.006335211709 | AD71: =VLOOKUP($AB71,$AG:$AU,9)/14 -> 0.002928475368 | AE71: =VLOOKUP($AB71,$AG:$AU,10)/28 -> 202.1787429 | AG71: 2011-06-13 | AH71: 808.7086362 | AI71: 903.8550072 | AJ71: 685.8221214 | AL71: 2010-05-01 | AM71: 0.0459459886 | AN71: 0.04434648196 | AO71: 0.04099865516 | AP71: 5661.0048 | AQ71: 12654.0111 | AR71: 24864.0242 | AS71: 260.100462 | AT71: 561.160875 | AU71: 1019.391554
A72: 2010-04-28 | B72: 666.0004 | C72: 38.02007 | D72: 0.05708715791 | K72: 11.00007 | O72: 27.02 | W72: 2011-06-20 | X72: =(VLOOKUP($W72,$AG:$AU,10))/7 -> 761.1434143 | Y72: =VLOOKUP($W72,$AG:$AU,11)/14 -> 880.0722071 | Z72: =VLOOKUP($W72,$AG:$AU,12)/28 -> 884.0365536 | AA72: 8.594240346e-06 | AB72: 2011-06-20 | AC72: =(VLOOKUP($AB72,$AG:$AU,8))/7 -> 0.00654144944 | AD72: =VLOOKUP($AB72,$AG:$AU,9)/14 -> 0.002961807249 | AE72: =VLOOKUP($AB72,$AG:$AU,10)/28 -> 190.2858536 | AG72: 2011-06-20 | AH72: 761.1368728 | AI72: 880.0692453 | AJ72: 693.7507 | AL72: 2010-05-02 | AM72: 0.04919111808 | AN72: 0.04579014608 | AO72: 0.04146530148 | AP72: 5328.0039 | AQ72: 12321.0109 | AR72: 24753.0235 | AS72: 262.090469 | AT72: 564.180889 | AU72: 1026.391582
A73: 2010-04-29 | B73: 666.0005 | C73: 38.030071 | D73: 0.05710216584 | K73: 11.000071 | O73: 27.03 | W73: 2011-06-27 | X73: =(VLOOKUP($W73,$AG:$AU,10))/7 -> 713.5718571 | Y73: =VLOOKUP($W73,$AG:$AU,11)/14 -> 856.2864786 | Z73: =VLOOKUP($W73,$AG:$AU,12)/28 -> 880.0722429 | AA73: 9.472269334e-06 | AB73: 2011-06-27 | AC73: =(VLOOKUP($AB73,$AG:$AU,8))/7 -> 0.00675914482 | AD73: =VLOOKUP($AB73,$AG:$AU,9)/14 -> 0.002995439418 | AE73: =VLOOKUP($AB73,$AG:$AU,10)/28 -> 178.3929643 | AG73: 2011-06-27 | AH73: 713.565098 | AI73: 856.2834831 | AJ73: 701.6792786 | AL73: 2010-05-03 | AM73: 0.05267674033 | AN73: 0.04731401374 | AO73: 0.04193615185 | AP73: 4995.003 | AQ73: 11988.0107 | AR73: 24642.0228 | AS73: 263.120476 | AT73: 567.200903 | AU73: 1033.39161
A74: 2010-04-30 | B74: 666.0006 | C74: 39.000072 | D74: 0.05855861391 | K74: 11.000072 | O74: 28 | W74: 2011-07-04 | X74: =(VLOOKUP($W74,$AG:$AU,10))/7 -> 666.0003 | Y74: =VLOOKUP($W74,$AG:$AU,11)/14 -> 832.50075 | Z74: =VLOOKUP($W74,$AG:$AU,12)/28 -> 876.1079321 | AA74: 1.051207753e-05 | AB74: 2011-07-04 | AC74: =(VLOOKUP($AB74,$AG:$AU,8))/7 -> 0.007001046791 | AD74: =VLOOKUP($AB74,$AG:$AU,9)/14 -> 0.003029375952 | AE74: =VLOOKUP($AB74,$AG:$AU,10)/28 -> 166.500075 | AG74: 2011-07-04 | AH74: 665.993299 | AI74: 832.4977206 | AJ74: 709.6078571 | AL74: 2010-05-04 | AM74: =AS74/AP74 -> 0.05686622985 | AN74: 0.04900732754 | AO74: 0.04241126333 | AP74: =SUM(B68:B74) -> 4662.0021 | AQ74: 11655.0105 | AR74: 24531.0221 | AS74: =SUM(C68:C74) -> 265.110483 | AT74: 571.180917 | AU74: 1040.391638
A75: 2010-05-01 | B75: 666.0007 | C75: 39.010073 | D75: 0.05857362162 | K75: 11.000073 | O75: =O74+0.01 -> 28.01 | W75: 2011-07-11 | X75: =(VLOOKUP($W75,$AG:$AU,10))/7 -> 666.0004 | Y75: =VLOOKUP($W75,$AG:$AU,11)/14 -> 808.7150214 | Z75: =VLOOKUP($W75,$AG:$AU,12)/28 -> 872.1436214 | AA75: 9.893119373e-06 | AB75: 2011-07-11 | AC75: =(VLOOKUP($AB75,$AG:$AU,8))/7 -> 0.006588821459 | AD75: =VLOOKUP($AB75,$AG:$AU,9)/14 -> 0.003063621002 | AE75: =VLOOKUP($AB75,$AG:$AU,10)/28 -> 166.5001 | AG75: 2011-07-11 | AH75: 665.9938112 | AI75: 808.7119578 | AJ75: 705.6435214 | AL75: 2010-05-05 | AM75: 0.05729307799 | AN75: 0.04612175022 | AO75: 0.04289069403 | AP75: 4662.0028 | AQ75: 11322.0103 | AR75: 24420.0214 | AS75: 267.10049 | AT75: 522.190931 | AU75: 1047.391666
A76: 2010-05-02 | B76: 666.0008 | C76: 39.020074 | D76: 0.05858862932 | K76: 11.000074 | O76: 28.02 | W76: 2011-07-18 | X76: =(VLOOKUP($W76,$AG:$AU,10))/7 -> 666.0005 | Y76: =VLOOKUP($W76,$AG:$AU,11)/14 -> 784.9292929 | Z76: =VLOOKUP($W76,$AG:$AU,12)/28 -> 868.1793107 | AA76: 1.025185843e-05 | AB76: 2011-07-18 | AC76: =(VLOOKUP($AB76,$AG:$AU,8))/7 -> 0.006827742837 | AD76: =VLOOKUP($AB76,$AG:$AU,9)/14 -> 0.003098178794 | AE76: =VLOOKUP($AB76,$AG:$AU,10)/28 -> 166.500125 | AG76: 2011-07-18 | AH76: 665.9936723 | AI76: 784.9261947 | AJ76: 701.6791857 | AL76: 2010-05-06 | AM76: 0.05771992599 | AN76: 0.04779419986 | AO76: 0.04337450311 | AP76: 4662.0035 | AQ76: 10989.0101 | AR76: 24309.0207 | AS76: 269.090497 | AT76: 525.210945 | AU76: 1054.391694
A77: 2010-05-03 | B77: 666.0009 | C77: 39.030075 | D77: 0.05860363702 | K77: 11.000075 | O77: 28.03 | W77: 2011-07-25 | X77: =(VLOOKUP($W77,$AG:$AU,10))/7 -> 666.0006 | Y77: =VLOOKUP($W77,$AG:$AU,11)/14 -> 761.1435643 | Z77: =VLOOKUP($W77,$AG:$AU,12)/28 -> 864.215 | AA77: 1.063301864e-05 | AB77: 2011-07-25 | AC77: =(VLOOKUP($AB77,$AG:$AU,8))/7 -> 0.007081596797 | AD77: =VLOOKUP($AB77,$AG:$AU,9)/14 -> 0.003133053631 | AE77: =VLOOKUP($AB77,$AG:$AU,10)/28 -> 166.50015 | AG77: 2011-07-25 | AH77: 665.9935184 | AI77: 761.1404312 | AJ77: 697.71485 | AL77: 2010-05-07 | AM77: 0.05794085385 | AN77: 0.04957117758 | AO77: 0.04386275084 | AP77: 4662.0042 | AQ77: 10656.0099 | AR77: 24198.02 | AS77: 270.120504 | AT77: 528.230959 | AU77: 1061.391722
A78: 2010-05-04 | B78: 666.001 | C78: 40.000076 | D78: 0.06006008399 | K78: 11.000076 | O78: 29 | W78: 2011-08-01 | X78: =(VLOOKUP($W78,$AG:$AU,10))/7 -> 666.0007 | Y78: =VLOOKUP($W78,$AG:$AU,11)/14 -> 737.3578357 | Z78: =VLOOKUP($W78,$AG:$AU,12)/28 -> 860.2506893 | AA78: 1.105871749e-05 | AB78: 2011-08-01 | AC78: =(VLOOKUP($AB78,$AG:$AU,8))/7 -> 0.007365113587 | AD78: =VLOOKUP($AB78,$AG:$AU,9)/14 -> 0.003168249898 | AE78: =VLOOKUP($AB78,$AG:$AU,10)/28 -> 166.500175 | AG78: 2011-08-01 | AH78: 665.9933349 | AI78: 737.3546675 | AJ78: 693.7505143 | AL78: 2010-05-08 | AM78: 0.05836770163 | AN78: 0.05155579511 | AO78: 0.04435549857 | AP78: 4662.0049 | AQ78: 10323.0097 | AR78: 24087.0193 | AS78: 272.110511 | AT78: 532.210973 | AU78: 1068.39175
A79: 2010-05-05 | B79: 666.0011 | C79: 40.010077 | D79: 0.06007509147 | K79: 11.000077 | O79: =O78+0.01 -> 29.01 | W79: 2011-08-08 | X79: =(VLOOKUP($W79,$AG:$AU,10))/7 -> 666.0008 | Y79: =VLOOKUP($W79,$AG:$AU,11)/14 -> 713.5721071 | Z79: =VLOOKUP($W79,$AG:$AU,12)/28 -> 856.2863786 | AA79: 1.151279622e-05 | AB79: 2011-08-08 | AC79: =(VLOOKUP($AB79,$AG:$AU,8))/7 -> 0.00766753149 | AD79: =VLOOKUP($AB79,$AG:$AU,9)/14 -> 0.003203772057 | AE79: =VLOOKUP($AB79,$AG:$AU,10)/28 -> 166.5002 | AG79: 2011-08-08 | AH79: 665.9931325 | AI79: 713.5689034 | AJ79: 689.7861786 | AL79: 2010-05-09 | AM79: 0.05879454928 | AN79: 0.05367272043 | AO79: 0.0448528088 | AP79: 4662.0056 | AQ79: 9990.0095 | AR79: 23976.0186 | AS79: 274.100518 | AT79: 536.190987 | AU79: 1075.391778
A80: 2010-05-06 | B80: 666.0012 | C80: 40.020078 | D80: 0.06009009894 | K80: 11.000078 | O80: 29.02 | W80: 2011-08-15 | X80: =(VLOOKUP($W80,$AG:$AU,10))/7 -> 666.0009 | Y80: =VLOOKUP($W80,$AG:$AU,11)/14 -> 689.7863786 | Z80: =VLOOKUP($W80,$AG:$AU,12)/28 -> 844.3935643 | AA80: 1.197686732e-05 | AB80: 2011-08-15 | AC80: =(VLOOKUP($AB80,$AG:$AU,8))/7 -> 0.007976604413 | AD80: =VLOOKUP($AB80,$AG:$AU,9)/14 -> 0.003270043382 | AE80: =VLOOKUP($AB80,$AG:$AU,10)/28 -> 166.500225 | AG80: 2011-08-15 | AH80: 665.9929234 | AI80: 689.7831085 | AJ80: 677.8933393 | AL80: 2010-05-10 | AM80: 0.05922139681 | AN80: 0.05583623089 | AO80: 0.04578060735 | AP80: 4662.0063 | AQ80: 9657.0093 | AR80: 23643.0198 | AS80: 276.090525 | AT80: 539.211001 | AU80: 1082.391806
A81: 2010-05-07 | B81: 666.0013 | C81: 40.030079 | D81: 0.0601051064 | K81: 11.000079 | O81: 29.03 | W81: 2011-08-22 | X81: =(VLOOKUP($W81,$AG:$AU,10))/7 -> 666.001 | Y81: =VLOOKUP($W81,$AG:$AU,11)/14 -> 666.00065 | Z81: =VLOOKUP($W81,$AG:$AU,12)/28 -> 832.50075 | AA81: 1.247408632e-05 | AB81: 2011-08-22 | AC81: =(VLOOKUP($AB81,$AG:$AU,8))/7 -> 0.008307753965 | AD81: =VLOOKUP($AB81,$AG:$AU,9)/14 -> 0.003338208165 | AE81: =VLOOKUP($AB81,$AG:$AU,10)/28 -> 166.50025 | AG81: 2011-08-22 | AH81: 665.9926922 | AI81: 665.9973118 | AJ81: 666.0005 | AL81: 2010-05-11 | AM81: 0.0594423243 | AN81: =AT81/AQ81 -> 0.05815427776 | AO81: 0.04673491431 | AP81: 4662.007 | AQ81: =SUM(B68:B81) -> 9324.0091 | AR81: 23310.021 | AS81: 277.120532 | AT81: =SUM(C68:C81) -> 542.231015 | AU81: 1089.391834
A82: 2010-05-08 | B82: 666.0014 | C82: 41.00008 | D82: 0.06156155227 | K82: 11.00008 | O82: 30 | W82: 2011-08-29 | X82: =(VLOOKUP($W82,$AG:$AU,10))/7 -> 666.0011 | Y82: =VLOOKUP($W82,$AG:$AU,11)/14 -> 666.00075 | Z82: =VLOOKUP($W82,$AG:$AU,12)/28 -> 820.6079357 | AA82: 1.256564323e-05 | AB82: 2011-08-29 | AC82: =(VLOOKUP($AB82,$AG:$AU,8))/7 -> 0.00836873221 | AD82: =VLOOKUP($AB82,$AG:$AU,9)/14 -> 0.00340834873 | AE82: =VLOOKUP($AB82,$AG:$AU,10)/28 -> 166.500275 | AG82: 2011-08-29 | AH82: 665.9927313 | AI82: 665.9973417 | AJ82: 654.1076607 | AL82: 2010-05-12 | AM82: 0.0598691716 | AN82: 0.05858112547 | AO82: 0.04771688222 | AP82: 4662.0077 | AQ82: 9324.0105 | AR82: 22977.0222 | AS82: 279.110539 | AT82: 546.211029 | AU82: 1096.391862
A83: 2010-05-09 | B83: 666.0015 | C83: 41.010081 | D83: 0.06157655951 | K83: 11.000081 | O83: =O82+0.01 -> 30.01 | W83: 2011-09-05 | X83: =(VLOOKUP($W83,$AG:$AU,10))/7 -> 666.0012 | Y83: =VLOOKUP($W83,$AG:$AU,11)/14 -> 666.00085 | Z83: =VLOOKUP($W83,$AG:$AU,12)/28 -> 808.7151214 | AA83: 1.265720007e-05 | AB83: 2011-09-05 | AC83: =(VLOOKUP($AB83,$AG:$AU,8))/7 -> 0.008429710437 | AD83: =VLOOKUP($AB83,$AG:$AU,9)/14 -> 0.003480552243 | AE83: =VLOOKUP($AB83,$AG:$AU,10)/28 -> 166.5003 | AG83: 2011-09-05 | AH83: 665.9927703 | AI83: 665.9973694 | AJ83: 642.2148214 | AL83: 2010-05-13 | AM83: 0.06029601877 | AN83: 0.05900797306 | AO83: 0.0487277314 | AP83: 4662.0084 | AQ83: 9324.0119 | AR83: 22644.0234 | AS83: 281.100546 | AT83: 550.191043 | AU83: 1103.39189
A84: 2010-05-10 | B84: 666.0016 | C84: 41.020082 | D84: 0.06159156675 | K84: 11.000082 | O84: 30.02 | W84: 2011-09-12 | X84: =(VLOOKUP($W84,$AG:$AU,10))/7 -> 666.0013 | Y84: =VLOOKUP($W84,$AG:$AU,11)/14 -> 666.00095 | Z84: =VLOOKUP($W84,$AG:$AU,12)/28 -> 796.8223071 | AA84: 1.272667198e-05 | AB84: 2011-09-12 | AC84: =(VLOOKUP($AB84,$AG:$AU,8))/7 -> 0.00847598008 | AD84: =VLOOKUP($AB84,$AG:$AU,9)/14 -> 0.003554911074 | AE84: =VLOOKUP($AB84,$AG:$AU,10)/28 -> 166.500325 | AG84: 2011-09-12 | AH84: 665.992824 | AI84: =Y84-AD84 -> 665.9973951 | AJ84: 630.3219821 | AL84: 2010-05-14 | AM84: 0.06072286581 | AN84: 0.05933186056 | AO84: 0.04976875504 | AP84: 4662.0091 | AQ84: 9324.0133 | AR84: 22311.0246 | AS84: 283.090553 | AT84: 553.211057 | AU84: 1110.391918
A85: 2010-05-11 | B85: 666.0017 | C85: 41.030083 | D85: 0.06160657398 | K85: 11.000083 | O85: 30.03 | W85: 2011-09-19 | X85: =(VLOOKUP($W85,$AG:$AU,10))/7 -> 666.0014 | Y85: =VLOOKUP($W85,$AG:$AU,11)/14 -> 666.00105 | Z85: =VLOOKUP($W85,$AG:$AU,12)/28 -> 784.9294929 | AA85: 1.279614384e-05 | AB85: 2011-09-19 | AC85: =(VLOOKUP($AB85,$AG:$AU,8))/7 -> 0.00852224971 | AD85: =VLOOKUP($AB85,$AG:$AU,9)/14 -> 0.003631523193 | AE85: =VLOOKUP($AB85,$AG:$AU,10)/28 -> 166.50035 | AG85: 2011-09-19 | AH85: 665.9928778 | AI85: 665.9974185 | AJ85: 618.4291429 | AL85: 2010-05-15 | AM85: 0.06094379295 | AN85: 0.05965574797 | AO85: 0.0508413247 | AP85: 4662.0098 | AQ85: 9324.0147 | AR85: 21978.0258 | AS85: 284.12056 | AT85: 556.231071 | AU85: 1117.391946
A86: 2010-05-12 | B86: 666.0018 | C86: 42.000084 | D86: 0.06306301875 | K86: 11.000084 | O86: 31 | W86: 2011-09-26 | X86: =(VLOOKUP($W86,$AG:$AU,10))/7 -> 666.0015 | Y86: =VLOOKUP($W86,$AG:$AU,11)/14 -> 666.00115 | Z86: =VLOOKUP($W86,$AG:$AU,12)/28 -> 773.0366786 | AA86: 1.288770053e-05 | AB86: 2011-09-26 | AC86: =(VLOOKUP($AB86,$AG:$AU,8))/7 -> 0.008583227886 | AD86: =VLOOKUP($AB86,$AG:$AU,9)/14 -> 0.003710492596 | AE86: =VLOOKUP($AB86,$AG:$AU,10)/28 -> 166.500375 | AG86: 2011-09-26 | AH86: 665.9929168 | AI86: 665.9974395 | AJ86: 606.5363036 | AL86: 2010-05-16 | AM86: 0.06137063977 | AN86: 0.0600825952 | AO86: 0.05194689635 | AP86: 4662.0105 | AQ86: 9324.0161 | AR86: 21645.027 | AS86: 286.110567 | AT86: 560.211085 | AU86: 1124.391974
A87: 2010-05-13 | B87: 666.0019 | C87: 42.010085 | D87: 0.06307802575 | K87: 11.000085 | O87: =O86+0.01 -> 31.01 | W87: 2011-10-03 | X87: =(VLOOKUP($W87,$AG:$AU,10))/7 -> 666.0016 | Y87: =VLOOKUP($W87,$AG:$AU,11)/14 -> 666.00125 | Z87: =VLOOKUP($W87,$AG:$AU,12)/28 -> 761.1438643 | AA87: 1.297925717e-05 | AB87: 2011-10-03 | AC87: =(VLOOKUP($AB87,$AG:$AU,8))/7 -> 0.008644206044 | AD87: =VLOOKUP($AB87,$AG:$AU,9)/14 -> 0.003791929781 | AE87: =VLOOKUP($AB87,$AG:$AU,10)/28 -> 166.5004 | AG87: 2011-10-03 | AH87: 665.9929558 | AI87: 665.9974581 | AJ87: 594.6434643 | AL87: 2010-05-17 | AM87: 0.06179748646 | AN87: 0.06050944231 | AO87: 0.05308701694 | AP87: 4662.0112 | AQ87: 9324.0175 | AR87: 21312.0282 | AS87: 288.100574 | AT87: 564.191099 | AU87: 1131.392002
A88: 2010-05-14 | B88: 666.002 | C88: 42.020086 | D88: 0.06309303275 | K88: 11.000086 | O88: 31.02 | W88: 2011-10-10 | X88: =(VLOOKUP($W88,$AG:$AU,10))/7 -> 666.0017 | Y88: =VLOOKUP($W88,$AG:$AU,11)/14 -> 666.00135 | Z88: =VLOOKUP($W88,$AG:$AU,12)/28 -> 749.25105 | AA88: 1.30487289e-05 | AB88: 2011-10-10 | AC88: =(VLOOKUP($AB88,$AG:$AU,8))/7 -> 0.008690475627 | AD88: =VLOOKUP($AB88,$AG:$AU,9)/14 -> 0.003875952261 | AE88: =VLOOKUP($AB88,$AG:$AU,10)/28 -> 166.500425 | AG88: 2011-10-10 | AH88: 665.9930095 | AI88: 665.997474 | AJ88: 582.750625 | AL88: 2010-05-18 | AM88: 0.06222433302 | AN88: 0.06083332939 | AO88: 0.05426333165 | AP88: 4662.0119 | AQ88: 9324.0189 | AR88: 20979.0294 | AS88: 290.090581 | AT88: 567.211113 | AU88: 1138.39203
A89: 2010-05-15 | B89: 666.0021 | C89: 42.030087 | D89: 0.06310803975 | K89: 11.000087 | O89: 31.03 | W89: 2011-10-17 | X89: =(VLOOKUP($W89,$AG:$AU,10))/7 -> 666.0018 | Y89: =VLOOKUP($W89,$AG:$AU,11)/14 -> 666.00145 | Z89: =VLOOKUP($W89,$AG:$AU,12)/28 -> 737.3582357 | AA89: 1.311820058e-05 | AB89: 2011-10-17 | AC89: =(VLOOKUP($AB89,$AG:$AU,8))/7 -> 0.008736745197 | AD89: =VLOOKUP($AB89,$AG:$AU,9)/14 -> 0.003779426104 | AE89: =VLOOKUP($AB89,$AG:$AU,10)/28 -> 166.50045 | AG89: 2011-10-17 | AH89: 665.9930633 | AI89: 665.9976706 | AJ89: 570.8577857 | AL89: 2010-05-19 | AM89: 0.0624452598 | AN89: 0.06115721638 | AO89: 0.05291196546 | AP89: 4662.0126 | AQ89: 9324.0203 | AR89: 20646.0306 | AS89: 291.120588 | AT89: 570.231127 | AU89: 1092.422058
A90: 2010-05-16 | B90: 666.0022 | C90: 43.000088 | D90: 0.06456448342 | K90: 11.000088 | O90: 32 | W90: 2011-10-24 | X90: =(VLOOKUP($W90,$AG:$AU,10))/7 -> 666.0019 | Y90: =VLOOKUP($W90,$AG:$AU,11)/14 -> 666.00155 | Z90: =VLOOKUP($W90,$AG:$AU,12)/28 -> 725.4654214 | AA90: 1.320975707e-05 | AB90: 2011-10-24 | AC90: =(VLOOKUP($AB90,$AG:$AU,8))/7 -> 0.008797723304 | AD90: =VLOOKUP($AB90,$AG:$AU,9)/14 -> 0.003865998428 | AE90: =VLOOKUP($AB90,$AG:$AU,10)/28 -> 166.500475 | AG90: 2011-10-24 | AH90: 665.9931023 | AI90: 665.997684 | AJ90: 558.9649464 | AL90: 2010-05-20 | AM90: 0.06287210613 | AN90: 0.06158406313 | AO90: 0.05412397799 | AP90: 4662.0133 | AQ90: 9324.0217 | AR90: 20313.0318 | AS90: 293.110595 | AT90: 574.211141 | AU90: 1099.422086
A91: 2010-05-17 | B91: 666.0023 | C91: 43.010089 | D91: 0.06457949019 | K91: 11.000089 | O91: =O90+0.01 -> 32.01 | W91: 2011-10-31 | X91: =(VLOOKUP($W91,$AG:$AU,10))/7 -> 666.002 | Y91: =VLOOKUP($W91,$AG:$AU,11)/14 -> 666.00165 | Z91: =VLOOKUP($W91,$AG:$AU,12)/28 -> 713.5726071 | AA91: 1.33013135e-05 | AB91: 2011-10-31 | AC91: =(VLOOKUP($AB91,$AG:$AU,8))/7 -> 0.008858701393 | AD91: =VLOOKUP($AB91,$AG:$AU,9)/14 -> 0.00395545648 | AE91: =VLOOKUP($AB91,$AG:$AU,10)/28 -> 166.5005 | AG91: 2011-10-31 | AH91: 665.9931413 | AI91: 665.9976945 | AJ91: 547.0721071 | AL91: 2010-05-21 | AM91: 0.06329895234 | AN91: 0.06201090975 | AO91: 0.05537639072 | AP91: 4662.014 | AQ91: 9324.0231 | AR91: 19980.033 | AS91: 295.100602 | AT91: 578.191155 | AU91: 1106.422114
A92: 2010-05-18 | B92: 666.0024 | C92: 43.02009 | D92: 0.06459449696 | K92: 11.00009 | O92: 32.02 | W92: 2011-11-07 | X92: =(VLOOKUP($W92,$AG:$AU,10))/7 -> 666.0021 | Y92: =VLOOKUP($W92,$AG:$AU,11)/14 -> 666.00175 | Z92: =VLOOKUP($W92,$AG:$AU,12)/28 -> 701.6797929 | AA92: =AC92/X92 -> 1.337078504e-05 | AB92: 2011-11-07 | AC92: =(VLOOKUP($AB92,$AG:$AU,8))/7 -> 0.008904970917 | AD92: =VLOOKUP($AB92,$AG:$AU,9)/14 -> 0.004047946992 | AE92: =VLOOKUP($AB92,$AG:$AU,10)/28 -> 166.500525 | AG92: 2011-11-07 | AH92: 665.993195 | AI92: 665.9977021 | AJ92: 535.1792679 | AL92: 2010-05-22 | AM92: 0.06372579842 | AN92: 0.06233479642 | AO92: 0.05667125789 | AP92: 4662.0147 | AQ92: 9324.0245 | AR92: 19647.0342 | AS92: 297.090609 | AT92: 581.211169 | AU92: 1113.422142
A93: 2010-05-19 | B93: 777 | C93: 43.030091 | D93: 0.0553797825 | K93: 11.000091 | O93: 32.03 | W93: 2011-11-14 | X93: =(VLOOKUP($W93,$AG:$AU,10))/7 -> 681.8589857 | Y93: =VLOOKUP($W93,$AG:$AU,11)/14 -> 673.9302429 | Z93: =VLOOKUP($W93,$AG:$AU,12)/28 -> 693.751175 | AA93: 1.297326065e-05 | AB93: 2011-11-14 | AC93: =(VLOOKUP($AB93,$AG:$AU,8))/7 -> 0.008845934348 | AD93: =VLOOKUP($AB93,$AG:$AU,9)/14 -> 0.004119949521 | AE93: =VLOOKUP($AB93,$AG:$AU,10)/28 -> 170.4647464 | AG93: 2011-11-14 | AH93: 681.8501398 | AI93: 673.9261229 | AJ93: 523.2864286 | AL93: 2010-05-23 | AM93: 0.06245962922 | AN93: 0.06192154044 | AO93: 0.0576792933 | AP93: 4773.0129 | AQ93: 9435.0234 | AR93: 19425.0329 | AS93: 298.120616 | AT93: 584.231183 | AU93: 1120.42217
A94: 2010-05-20 | B94: 777.0001 | C94: 44.000092 | D94: 0.05662816774 | K94: 11.000092 | O94: 33 | W94: 2011-11-21 | X94: =(VLOOKUP($W94,$AG:$AU,10))/7 -> 697.7158714 | Y94: =VLOOKUP($W94,$AG:$AU,11)/14 -> 681.8587357 | Z94: =VLOOKUP($W94,$AG:$AU,12)/28 -> 685.8225571 | AA94: 1.261636371e-05 | AB94: 2011-11-21 | AC94: =(VLOOKUP($AB94,$AG:$AU,8))/7 -> 0.008802637199 | AD94: =VLOOKUP($AB94,$AG:$AU,9)/14 -> 0.004193616856 | AE94: =VLOOKUP($AB94,$AG:$AU,10)/28 -> 174.4289679 | AG94: 2011-11-21 | AH94: 697.7070688 | AI94: 681.8545421 | AJ94: 511.3935893 | AL94: 2010-05-24 | AM94: 0.06144757185 | AN94: 0.06161846039 | AO94: 0.05871063598 | AP94: 4884.0111 | AQ94: 9546.0223 | AR94: 19203.0316 | AS94: 300.110623 | AT94: 588.211197 | AU94: 1127.422198
A95: 2010-05-21 | B95: 777.0002 | C95: 44.010093 | D95: 0.05664103175 | K95: 11.000093 | O95: =O94+0.01 -> 33.01 | W95: 2011-11-28 | X95: =(VLOOKUP($W95,$AG:$AU,10))/7 -> 713.5727571 | Y95: =VLOOKUP($W95,$AG:$AU,11)/14 -> 689.7872286 | Z95: =VLOOKUP($W95,$AG:$AU,12)/28 -> 677.8939393 | AA95: 1.227672341e-05 | AB95: 2011-11-28 | AC95: =(VLOOKUP($AB95,$AG:$AU,8))/7 -> 0.008760335374 | AD95: =VLOOKUP($AB95,$AG:$AU,9)/14 -> 0.00426900741 | AE95: =VLOOKUP($AB95,$AG:$AU,10)/28 -> 178.3931893 | AG95: 2011-11-28 | AH95: 713.5639968 | AI95: 689.7829596 | AJ95: 499.50075 | AL95: 2010-05-25 | AM95: 0.060480494 | AN95: 0.06132234762 | AO95: =AU95/AR95 -> 0.05976610374 | AP95: 4995.0093 | AQ95: 9657.0212 | AR95: =SUM(B68:B95) -> 18981.0303 | AS95: 302.10063 | AT95: 592.191211 | AU95: =SUM(C68:C95) -> 1134.422226
A96: 2010-05-22 | B96: 777.0003 | C96: 44.020094 | D96: 0.05665389576 | K96: 11.000094 | O96: 33.02 | W96: 2011-12-05 | X96: =(VLOOKUP($W96,$AG:$AU,10))/7 -> 729.4296429 | Y96: =VLOOKUP($W96,$AG:$AU,11)/14 -> 697.7157214 | Z96: =VLOOKUP($W96,$AG:$AU,12)/28 -> 681.8582357 | AA96: 1.193391994e-05 | AB96: 2011-12-05 | AC96: =(VLOOKUP($AB96,$AG:$AU,8))/7 -> 0.008704954958 | AD96: =VLOOKUP($AB96,$AG:$AU,9)/14 -> 0.004270376615 | AE96: =VLOOKUP($AB96,$AG:$AU,10)/28 -> 182.3574107 | AG96: 2011-12-05 | AH96: 729.4209379 | AI96: 697.7114511 | AJ96: 499.500825 | AL96: 2010-05-26 | AM96: 0.05955546227 | AN96: 0.06093468471 | AO96: 0.0597852726 | AP96: 5106.0075 | AQ96: 9768.0201 | AR96: 19092.0306 | AS96: 304.090637 | AT96: 595.211225 | AU96: 1141.422254
A97: 2010-05-23 | B97: 777.0004 | C97: 44.030095 | D97: 0.05666675976 | K97: 11.000095 | O97: 33.03 | W97: 2011-12-12 | X97: =(VLOOKUP($W97,$AG:$AU,10))/7 -> 745.2865286 | Y97: =VLOOKUP($W97,$AG:$AU,11)/14 -> 705.6442143 | Z97: =VLOOKUP($W97,$AG:$AU,12)/28 -> 685.8225321 | AA97: 1.160737341e-05 | AB97: 2011-12-12 | AC97: =(VLOOKUP($AB97,$AG:$AU,8))/7 -> 0.008650819031 | AD97: =VLOOKUP($AB97,$AG:$AU,9)/14 -> 0.00427172999 | AE97: =VLOOKUP($AB97,$AG:$AU,10)/28 -> 186.3216321 | AG97: 2011-12-12 | AH97: 745.2778778 | AI97: 705.6399426 | AJ97: 499.5009 | AL97: 2010-05-27 | AM97: 0.0584857793 | AN97: 0.06055573322 | AO97: 0.05980421986 | AP97: 5217.0057 | AQ97: 9879.019 | AR97: 19203.0309 | AS97: 305.120644 | AT97: 598.231239 | AU97: 1148.422282
A98: 2010-05-24 | B98: 777.0005 | C98: 45.000096 | D98: 0.0579151442 | K98: 11.000096 | O98: 34 | W98: 2011-12-19 | X98: =(VLOOKUP($W98,$AG:$AU,10))/7 -> 761.1434143 | Y98: =VLOOKUP($W98,$AG:$AU,11)/14 -> 713.5727071 | Z98: =VLOOKUP($W98,$AG:$AU,12)/28 -> 689.7868286 | AA98: 1.131404928e-05 | AB98: 2011-12-19 | AC98: =(VLOOKUP($AB98,$AG:$AU,8))/7 -> 0.008611614099 | AD98: =VLOOKUP($AB98,$AG:$AU,9)/14 -> 0.00427306781 | AE98: =VLOOKUP($AB98,$AG:$AU,10)/28 -> 190.2858536 | AG98: 2011-12-19 | AH98: 761.1348027 | AI98: 713.5684341 | AJ98: 499.500975 | AL98: 2010-05-28 | AM98: 0.05764084576 | AN98: 0.0602812987 | AO98: 0.05982294934 | AP98: 5328.0039 | AQ98: 9990.0179 | AR98: 19314.0312 | AS98: 307.110651 | AT98: 602.211253 | AU98: 1155.42231
A99: 2010-05-25 | B99: 777.0006 | C99: 45.010097 | D99: 0.05792800804 | K99: 11.000097 | O99: =O98+0.01 -> 34.01 | W99: 2011-12-26 | X99: =(VLOOKUP($W99,$AG:$AU,10))/7 -> 777.0003 | Y99: =VLOOKUP($W99,$AG:$AU,11)/14 -> 721.5012 | Z99: =VLOOKUP($W99,$AG:$AU,12)/28 -> 693.751125 | AA99: 1.10338063e-05 | AB99: 2011-12-26 | AC99: =(VLOOKUP($AB99,$AG:$AU,8))/7 -> 0.008573270805 | AD99: =VLOOKUP($AB99,$AG:$AU,9)/14 -> 0.00427439034 | AE99: =VLOOKUP($AB99,$AG:$AU,10)/28 -> 194.250075 | AG99: 2011-12-26 | AH99: 776.9917267 | AI99: 721.4969256 | AJ99: 499.50105 | AL99: 2010-05-29 | AM99: 0.05683039872 | AN99: 0.06001289563 | AO99: 0.05984146476 | AP99: 5439.0021 | AQ99: 10101.0168 | AR99: 19425.0315 | AS99: 309.100658 | AT99: 606.191267 | AU99: 1162.422338
A100: 2010-05-26 | B100: 777.0007 | C100: 45.020098 | D100: 0.05794087187 | K100: 11.000098 | O100: 34.02 | W100: 2012-01-02 | X100: =(VLOOKUP($W100,$AG:$AU,10))/7 -> 777.0004 | Y100: =VLOOKUP($W100,$AG:$AU,11)/14 -> 729.4296929 | Z100: =VLOOKUP($W100,$AG:$AU,12)/28 -> 697.7154214 | AA100: 1.096824595e-05 | AB100: 2012-01-02 | AC100: =(VLOOKUP($AB100,$AG:$AU,8))/7 -> 0.008522331492 | AD100: =VLOOKUP($AB100,$AG:$AU,9)/14 -> 0.004275697842 | AE100: =VLOOKUP($AB100,$AG:$AU,10)/28 -> 194.2501 | AG100: 2012-01-02 | AH100: 776.9918777 | AI100: =Y100-AD100 -> 729.4254172 | AJ100: 503.4653214 | AL100: 2010-05-30 | AM100: 0.05719626859 | AN100: 0.05965632045 | AO100: 0.05985976978 | AP100: 5439.0028 | AQ100: 10212.0157 | AR100: 19536.0318 | AS100: 311.090665 | AT100: 609.211281 | AU100: 1169.422366
A101: 2010-05-27 | B101: 777.0008 | C101: 45.030099 | D101: 0.0579537357 | K101: 11.000099 | O101: 34.03 | W101: 2012-01-09 | X101: =(VLOOKUP($W101,$AG:$AU,10))/7 -> 777.0005 | Y101: =VLOOKUP($W101,$AG:$AU,11)/14 -> 737.3581857 | Z101: =VLOOKUP($W101,$AG:$AU,12)/28 -> 701.6797179 | AA101: 1.090409548e-05 | AB101: 2012-01-09 | AC101: =(VLOOKUP($AB101,$AG:$AU,8))/7 -> 0.008472487637 | AD101: =VLOOKUP($AB101,$AG:$AU,9)/14 -> 0.004276990569 | AE101: =VLOOKUP($AB101,$AG:$AU,10)/28 -> 194.250125 | AG101: 2012-01-09 | AH101: 776.9920275 | AI101: 737.3539087 | AJ101: 507.4295929 | AL101: 2010-05-31 | AM101: 0.05738563544 | AN101: 0.05930741346 | AO101: 0.05987786797 | AP101: 5439.0035 | AQ101: 10323.0146 | AR101: 19647.0321 | AS101: 312.120672 | AT101: 612.231295 | AU101: 1176.422394
A102: 2010-05-28 | B102: 777.0009 | C102: 44.0001 | D102: 0.05662811974 | K102: 11.0001 | O102: 33 | W102: 2012-01-16 | X102: =(VLOOKUP($W102,$AG:$AU,10))/7 -> 777.0006 | Y102: =VLOOKUP($W102,$AG:$AU,11)/14 -> 745.2866786 | Z102: =VLOOKUP($W102,$AG:$AU,12)/28 -> 705.6440143 | AA102: 1.082298409e-05 | AB102: 2012-01-16 | AC102: =(VLOOKUP($AB102,$AG:$AU,8))/7 -> 0.008409465132 | AD102: =VLOOKUP($AB102,$AG:$AU,9)/14 -> 0.004271038439 | AE102: =VLOOKUP($AB102,$AG:$AU,10)/28 -> 194.25015 | AG102: 2012-01-16 | AH102: 776.9921905 | AI102: 745.2824075 | AJ102: 511.3938643 | AL102: 2010-06-01 | AM102: 0.05738379077 | AN102: 0.05886625592 | AO102: 0.05979453814 | AP102: 5439.0042 | AQ102: 10434.0135 | AR102: 19758.0324 | AS102: 312.110679 | AT102: 614.211309 | AU102: 1181.422422
A103: 2010-05-29 | B103: 777.001 | C103: 44.010101 | D103: 0.05664098373 | K103: 11.000101 | O103: =O102+0.01 -> 33.01 | W103: 2012-01-23 | X103: =(VLOOKUP($W103,$AG:$AU,10))/7 -> 777.0007 | Y103: =VLOOKUP($W103,$AG:$AU,11)/14 -> 753.2151714 | Z103: =VLOOKUP($W103,$AG:$AU,12)/28 -> 709.6083107 | AA103: 1.074358029e-05 | AB103: 2012-01-23 | AC103: =(VLOOKUP($AB103,$AG:$AU,8))/7 -> 0.008347769402 | AD103: =VLOOKUP($AB103,$AG:$AU,9)/14 -> 0.004265152813 | AE103: =VLOOKUP($AB103,$AG:$AU,10)/28 -> 194.250175 | AG103: 2012-01-23 | AH103: 776.9923522 | AI103: 753.2109063 | AJ103: 515.3581357 | AL103: 2010-06-02 | AM103: 0.0573819461 | AN103: 0.05843438581 | AO103: 0.05971213938 | AP103: 5439.0049 | AQ103: 10545.0124 | AR103: 19869.0327 | AS103: 312.100686 | AT103: 616.191323 | AU103: 1186.42245
A104: 2010-05-30 | B104: 777.0011 | C104: 44.020102 | D104: 0.05665384772 | K104: 11.000102 | O104: 33.02 | W104: 2012-01-30 | X104: =(VLOOKUP($W104,$AG:$AU,10))/7 -> 777.0008 | Y104: =VLOOKUP($W104,$AG:$AU,11)/14 -> 761.1436643 | Z104: =VLOOKUP($W104,$AG:$AU,12)/28 -> 713.5726071 | AA104: 1.064926701e-05 | AB104: 2012-01-30 | AC104: =(VLOOKUP($AB104,$AG:$AU,8))/7 -> 0.008274488987 | AD104: =VLOOKUP($AB104,$AG:$AU,9)/14 -> 0.004259332583 | AE104: =VLOOKUP($AB104,$AG:$AU,10)/28 -> 194.2502 | AG104: 2012-01-30 | AH104: 776.9925255 | AI104: 761.139405 | AJ104: 519.3224071 | AL104: 2010-06-03 | AM104: 0.05738010143 | AN104: 0.05792142291 | AO104: 0.05963065617 | AP104: 5439.0056 | AQ104: 10656.0113 | AR104: 19980.033 | AS104: 312.090693 | AT104: 617.211337 | AU104: 1191.422478
A105: 2010-05-31 | B105: 777.0012 | C105: 44.030103 | D105: 0.05666671171 | K105: 11.000103 | O105: 33.03 | W105: 2012-02-06 | X105: =(VLOOKUP($W105,$AG:$AU,10))/7 -> 777.0009 | Y105: =VLOOKUP($W105,$AG:$AU,11)/14 -> 769.0721571 | Z105: =VLOOKUP($W105,$AG:$AU,12)/28 -> 717.5369036 | AA105: 1.055689831e-05 | AB105: 2012-02-06 | AC105: =(VLOOKUP($AB105,$AG:$AU,8))/7 -> 0.008202719491 | AD105: =VLOOKUP($AB105,$AG:$AU,9)/14 -> 0.004253576665 | AE105: =VLOOKUP($AB105,$AG:$AU,10)/28 -> 194.250225 | AG105: 2012-02-06 | AH105: 776.9926973 | AI105: 769.0679036 | AJ105: 523.2866786 | AL105: 2010-06-04 | AM105: 0.05720175393 | AN105: 0.05741903644 | AO105: 0.05955007332 | AP105: 5439.0063 | AQ105: 10767.0102 | AR105: 20091.0333 | AS105: 311.1207 | AT105: 618.231351 | AU105: 1196.422506
A106: 2010-06-01 | B106: 777.0013 | C106: 47.000104 | D106: 0.06048909313 | K106: 11.000104 | O106: 36 | W106: 2012-02-13 | X106: =(VLOOKUP($W106,$AG:$AU,10))/7 -> 777.001 | Y106: =VLOOKUP($W106,$AG:$AU,11)/14 -> 777.00065 | Z106: =VLOOKUP($W106,$AG:$AU,12)/28 -> 721.5012 | AA106: 1.051644377e-05 | AB106: 2012-02-13 | AC106: =(VLOOKUP($AB106,$AG:$AU,8))/7 -> 0.008171287323 | AD106: =VLOOKUP($AB106,$AG:$AU,9)/14 -> 0.004254955423 | AE106: =VLOOKUP($AB106,$AG:$AU,10)/28 -> 194.25025 | AG106: 2012-02-13 | AH106: 776.9928287 | AI106: 776.996395 | AJ106: 527.25095 | AL106: 2010-06-05 | AM106: 0.05756762347 | AN106: 0.05719901126 | AO106: 0.05956937593 | AP106: 5439.007 | AQ106: 10878.0091 | AR106: 20202.0336 | AS106: 313.110707 | AT106: 622.211365 | AU106: 1203.422534
A107: 2010-06-02 | B107: 777.0014 | C107: 47.010105 | D107: 0.06050195662 | K107: 11.000105 | O107: =O106+0.01 -> 36.01 | W107: 2012-02-20 | X107: =(VLOOKUP($W107,$AG:$AU,10))/7 -> 777.0011 | Y107: =VLOOKUP($W107,$AG:$AU,11)/14 -> 777.00075 | Z107: =VLOOKUP($W107,$AG:$AU,12)/28 -> 725.4654964 | AA107: 1.058371013e-05 | AB107: 2012-02-20 | AC107: =(VLOOKUP($AB107,$AG:$AU,8))/7 -> 0.008223554416 | AD107: =VLOOKUP($AB107,$AG:$AU,9)/14 -> 0.004256319113 | AE107: =VLOOKUP($AB107,$AG:$AU,10)/28 -> 194.250275 | AG107: 2012-02-20 | AH107: 776.9928764 | AI107: 776.9964937 | AJ107: 531.2152214 | AL107: 2010-06-06 | AM107: 0.05793349291 | AN107: 0.05756488091 | AO107: 0.05958846758 | AP107: 5439.0077 | AQ107: 10878.0105 | AR107: 20313.0339 | AS107: 315.100714 | AT107: 626.191379 | AU107: 1210.422562
A108: 2010-06-03 | B108: 777.0015 | C108: 47.020106 | D108: 0.06051482011 | K108: 11.000106 | O108: 36.02 | W108: 2012-02-27 | X108: =(VLOOKUP($W108,$AG:$AU,10))/7 -> 777.0012 | Y108: =VLOOKUP($W108,$AG:$AU,11)/14 -> 777.00085 | Z108: =VLOOKUP($W108,$AG:$AU,12)/28 -> 729.4297929 | AA108: 1.063475082e-05 | AB108: 2012-02-27 | AC108: =(VLOOKUP($AB108,$AG:$AU,8))/7 -> 0.00826321415 | AD108: =VLOOKUP($AB108,$AG:$AU,9)/14 -> 0.00425766798 | AE108: =VLOOKUP($AB108,$AG:$AU,10)/28 -> 194.2503 | AG108: 2012-02-27 | AH108: 776.9929368 | AI108: 776.9965923 | AJ108: 535.1794929 | AL108: 2010-06-07 | AM108: 0.05829936225 | AN108: 0.05784249905 | AO108: 0.05960735172 | AP108: 5439.0084 | AQ108: 10878.0119 | AR108: 20424.0342 | AS108: 317.090721 | AT108: 629.211393 | AU108: 1217.42259
A109: 2010-06-04 | B109: 777.0016 | C109: 47.030107 | D109: 0.0605276836 | K109: 11.000107 | O109: 36.03 | W109: 2012-03-05 | X109: =(VLOOKUP($W109,$AG:$AU,10))/7 -> 777.0013 | Y109: =VLOOKUP($W109,$AG:$AU,11)/14 -> 777.00095 | Z109: =VLOOKUP($W109,$AG:$AU,12)/28 -> 733.3940893 | AA109: 1.068579148e-05 | AB109: 2012-03-05 | AC109: =(VLOOKUP($AB109,$AG:$AU,8))/7 -> 0.008302873874 | AD109: =VLOOKUP($AB109,$AG:$AU,9)/14 -> 0.004259002264 | AE109: =VLOOKUP($AB109,$AG:$AU,10)/28 -> 194.250325 | AG109: 2012-03-05 | AH109: 776.9929971 | AI109: 776.996691 | AJ109: 539.1437643 | AL109: 2010-06-08 | AM109: 0.0588564428 | AN109: 0.05812011712 | AO109: 0.0596260317 | AP109: 5439.0091 | AQ109: 10878.0133 | AR109: 20535.0345 | AS109: 320.120728 | AT109: 632.231407 | AU109: 1224.422618
A110: 2010-06-05 | B110: 777.0017 | C110: 48.000108 | D110: 0.06177606561 | K110: 11.000108 | O110: 37 | W110: 2012-03-12 | X110: =(VLOOKUP($W110,$AG:$AU,10))/7 -> 777.0014 | Y110: =VLOOKUP($W110,$AG:$AU,11)/14 -> 777.00105 | Z110: =VLOOKUP($W110,$AG:$AU,12)/28 -> 737.3583857 | AA110: 1.075305776e-05 | AB110: 2012-03-12 | AC110: =(VLOOKUP($AB110,$AG:$AU,8))/7 -> 0.00835514093 | AD110: =VLOOKUP($AB110,$AG:$AU,9)/14 -> 0.004260322201 | AE110: =VLOOKUP($AB110,$AG:$AU,10)/28 -> 194.25035 | AG110: 2012-03-12 | AH110: 776.9930449 | AI110: 776.9967897 | AJ110: 543.1080357 | AL110: 2010-06-09 | AM110: 0.05959002593 | AN110: 0.05848598651 | AO110: 0.05964451082 | AP110: 5439.0098 | AQ110: 10878.0147 | AR110: 20646.0348 | AS110: 324.110735 | AT110: 636.211421 | AU110: 1231.422646
A111: 2010-06-06 | B111: 777.0018 | C111: 48.010109 | D111: 0.06178892893 | K111: 11.000109 | O111: =O110+0.01 -> 37.01 | W111: 2012-03-19 | X111: =(VLOOKUP($W111,$AG:$AU,10))/7 -> 777.0015 | Y111: =VLOOKUP($W111,$AG:$AU,11)/14 -> 777.00115 | Z111: =VLOOKUP($W111,$AG:$AU,12)/28 -> 741.3226821 | AA111: =AC111/X111 -> 1.082032399e-05 | AB111: 2012-03-19 | AC111: =(VLOOKUP($AB111,$AG:$AU,8))/7 -> 0.008407407973 | AD111: =VLOOKUP($AB111,$AG:$AU,9)/14 -> 0.004261628022 | AE111: =VLOOKUP($AB111,$AG:$AU,10)/28 -> 194.250375 | AG111: 2012-03-19 | AH111: 776.9930926 | AI111: 776.9968884 | AJ111: 547.0723071 | AL111: 2010-06-10 | AM111: 0.06032360886 | AN111: 0.05885185581 | AO111: 0.0596627923 | AP111: 5439.0105 | AQ111: 10878.0161 | AR111: 20757.0351 | AS111: 328.100742 | AT111: 640.191435 | AU111: 1238.422674
A112: 2010-06-07 | B112: 777.0019 | C112: 48.02011 | D112: 0.06180179225 | K112: 11.00011 | O112: 37.02 | W112: 2012-03-26 | X112: =(VLOOKUP($W112,$AG:$AU,10))/7 -> 777.0016 | Y112: =VLOOKUP($W112,$AG:$AU,11)/14 -> 777.00125 | Z112: =VLOOKUP($W112,$AG:$AU,12)/28 -> 745.2869786 | AA112: =AC112/X112 -> 1.087136457e-05 | AB112: 2012-03-26 | AC112: =(VLOOKUP($AB112,$AG:$AU,8))/7 -> 0.008447067663 | AD112: =VLOOKUP($AB112,$AG:$AU,9)/14 -> 0.00426291995 | AE112: =VLOOKUP($AB112,$AG:$AU,10)/28 -> 194.2504 | AG112: 2012-03-26 | AH112: 776.9931529 | AI112: 776.9969871 | AJ112: 551.0365786 | AL112: 2010-06-11 | AM112: 0.06105719161 | AN112: 0.05912947364 | AO112: 0.0596808793 | AP112: 5439.0112 | AQ112: 10878.0175 | AR112: 20868.0354 | AS112: 332.090749 | AT112: 643.211449 | AU112: 1245.422702
A113: 2010-06-08 | B113: 777.002 | C113: 48.030111 | D113: 0.06181465556 | K113: 11.000111 | O113: 37.03 | W113: 2012-04-02 | X113: =(VLOOKUP($W113,$AG:$AU,10))/7 -> 777.0017 | Y113: =VLOOKUP($W113,$AG:$AU,11)/14 -> 777.00135 | Z113: =VLOOKUP($W113,$AG:$AU,12)/28 -> 749.251275 | AA113: 1.092240511e-05 | AB113: 2012-04-02 | AC113: =(VLOOKUP($AB113,$AG:$AU,8))/7 -> 0.008486727342 | AD113: =VLOOKUP($AB113,$AG:$AU,9)/14 -> 0.004264198208 | AE113: =VLOOKUP($AB113,$AG:$AU,10)/28 -> 194.250425 | AG113: 2012-04-02 | AH113: 776.9932133 | AI113: 776.9970858 | AJ113: 555.00085 | AL113: 2010-06-12 | AM113: 0.06124655767 | AN113: 0.0594070914 | AO113: 0.05969877491 | AP113: 5439.0119 | AQ113: 10878.0189 | AR113: 20979.0357 | AS113: 333.120756 | AT113: 646.231463 | AU113: 1252.42273
A114: 2010-06-09 | B114: 777.0021 | C114: 49.000112 | D114: 0.06306303677 | K114: 11.000112 | O114: 38 | W114: 2012-04-09 | X114: =(VLOOKUP($W114,$AG:$AU,10))/7 -> 777.0018 | Y114: =VLOOKUP($W114,$AG:$AU,11)/14 -> 777.00145 | Z114: =VLOOKUP($W114,$AG:$AU,12)/28 -> 753.2155714 | AA114: 1.098967126e-05 | AB114: 2012-04-09 | AC114: =(VLOOKUP($AB114,$AG:$AU,8))/7 -> 0.008538994348 | AD114: =VLOOKUP($AB114,$AG:$AU,9)/14 -> 0.00426546301 | AE114: =VLOOKUP($AB114,$AG:$AU,10)/28 -> 194.25045 | AG114: 2012-04-09 | AH114: 776.993261 | AI114: 776.9971845 | AJ114: 558.9651214 | AL114: 2010-06-13 | AM114: 0.06161242631 | AN114: 0.05977296043 | AO114: 0.05971648213 | AP114: 5439.0126 | AQ114: 10878.0203 | AR114: 21090.036 | AS114: 335.110763 | AT114: 650.211477 | AU114: 1259.422758
A115: 2010-06-10 | B115: 777.0022 | C115: 49.010113 | D115: 0.06307589991 | K115: 11.000113 | O115: =O114+0.01 -> 38.01 | W115: 2012-04-16 | X115: =(VLOOKUP($W115,$AG:$AU,10))/7 -> 777.0019 | Y115: =VLOOKUP($W115,$AG:$AU,11)/14 -> 777.00155 | Z115: =VLOOKUP($W115,$AG:$AU,12)/28 -> 757.1798679 | AA115: 1.105693736e-05 | AB115: 2012-04-16 | AC115: =(VLOOKUP($AB115,$AG:$AU,8))/7 -> 0.00859126134 | AD115: =VLOOKUP($AB115,$AG:$AU,9)/14 -> 0.004266714568 | AE115: =VLOOKUP($AB115,$AG:$AU,10)/28 -> 194.250475 | AG115: 2012-04-16 | AH115: 776.9933087 | AI115: 776.9972833 | AJ115: 562.9293929 | AL115: 2010-06-14 | AM115: 0.06197829485 | AN115: 0.06013882938 | AO115: 0.05973400395 | AP115: 5439.0133 | AQ115: 10878.0217 | AR115: 21201.0363 | AS115: 337.10077 | AT115: 654.191491 | AU115: 1266.422786
A116: 2010-06-11 | B116: 777.0023 | C116: 49.020114 | D116: 0.06308876306 | K116: 11.000114 | O116: 38.02 | W116: 2012-04-23 | X116: =(VLOOKUP($W116,$AG:$AU,10))/7 -> 777.002 | Y116: =VLOOKUP($W116,$AG:$AU,11)/14 -> 777.00165 | Z116: =VLOOKUP($W116,$AG:$AU,12)/28 -> 761.1441643 | AA116: 1.114178118e-05 | AB116: 2012-04-23 | AC116: =(VLOOKUP($AB116,$AG:$AU,8))/7 -> 0.008657186262 | AD116: =VLOOKUP($AB116,$AG:$AU,9)/14 -> 0.004267953088 | AE116: =VLOOKUP($AB116,$AG:$AU,10)/28 -> 194.2505 | AG116: 2012-04-23 | AH116: 776.9933428 | AI116: =Y116-AD116 -> 776.997382 | AJ116: 566.8936643 | AL116: 2010-06-15 | AM116: 0.0623441633 | AN116: 0.06060030384 | AO116: 0.05975134324 | AP116: 5439.014 | AQ116: 10878.0231 | AR116: 21312.0366 | AS116: 339.090777 | AT116: 659.211505 | AU116: 1273.422814
A117: 2010-06-12 | B117: 777.0024 | C117: 49.030115 | D117: 0.0631016262 | K117: 11.000115 | O117: 38.03 | W117: 2012-04-30 | X117: =(VLOOKUP($W117,$AG:$AU,10))/7 -> 777.0021 | Y117: =VLOOKUP($W117,$AG:$AU,11)/14 -> 777.00175 | Z117: =VLOOKUP($W117,$AG:$AU,12)/28 -> 765.1084607 | AA117: 1.122662496e-05 | AB117: 2012-04-30 | AC117: =(VLOOKUP($AB117,$AG:$AU,8))/7 -> 0.008723111168 | AD117: =VLOOKUP($AB117,$AG:$AU,9)/14 -> 0.004269178775 | AE117: =VLOOKUP($AB117,$AG:$AU,10)/28 -> 194.250525 | AG117: 2012-04-30 | AH117: 776.9933769 | AI117: 776.9974808 | AJ117: 570.8579357 | AL117: 2010-06-16 | AM117: 0.0625335291 | AN117: 0.06106177817 | AO117: 0.05976850285 | AP117: 5439.0147 | AQ117: 10878.0245 | AR117: 21423.0369 | AS117: 340.120784 | AT117: 664.231519 | AU117: 1280.422842
A118: 2010-06-13 | B118: 776 | C118: 50.000116 | D118: 0.06443313918 | K118: 11.000116 | O118: 39 | W118: 2012-05-07 | X118: =(VLOOKUP($W118,$AG:$AU,10))/7 -> 776.8589857 | Y118: =VLOOKUP($W118,$AG:$AU,11)/14 -> 776.9302429 | Z118: =VLOOKUP($W118,$AG:$AU,12)/28 -> 769.0369536 | AA118: 1.133082679e-05 | AB118: 2012-05-07 | AC118: =(VLOOKUP($AB118,$AG:$AU,8))/7 -> 0.008802454605 | AD118: =VLOOKUP($AB118,$AG:$AU,9)/14 -> 0.004270590639 | AE118: =VLOOKUP($AB118,$AG:$AU,10)/28 -> 194.2147464 | AG118: 2012-05-07 | AH118: 776.8501833 | AI118: 776.9259723 | AJ118: 574.8222071 | AL118: 2010-06-17 | AM118: 0.06291099291 | AN118: 0.06161718223 | AO118: 0.05978826895 | AP118: 5438.0129 | AQ118: 10877.0234 | AR118: 21533.0347 | AS118: 342.110791 | AT118: 670.211533 | AU118: 1287.42287
A119: 2010-06-14 | B119: 67 | C119: 50.010117 | D119: 0.7464196567 | K119: 11.000117 | O119: =O118+0.01 -> 39.01 | W119: 2012-05-14 | X119: =(VLOOKUP($W119,$AG:$AU,10))/7 -> 675.4301429 | Y119: =VLOOKUP($W119,$AG:$AU,11)/14 -> 726.2158714 | Z119: =VLOOKUP($W119,$AG:$AU,12)/28 -> 747.6440143 | AA119: 1.406687043e-05 | AB119: 2012-05-14 | AC119: =(VLOOKUP($AB119,$AG:$AU,8))/7 -> 0.009501188306 | AD119: =VLOOKUP($AB119,$AG:$AU,9)/14 -> 0.004416673131 | AE119: =VLOOKUP($AB119,$AG:$AU,10)/28 -> 168.8575357 | AG119: 2012-05-14 | AH119: 675.4206417 | AI119: 726.2114548 | AJ119: 578.7864786 | AL119: 2010-06-18 | AM119: 0.07277918727 | AN119: 0.06650831814 | AO119: 0.06183342384 | AP119: 4728.011 | AQ119: 10167.0222 | AR119: 20934.0324 | AS119: 344.100798 | AT119: 676.191547 | AU119: 1294.422898
A120: 2010-06-15 | B120: 67.0001 | C120: 50.020118 | D120: 0.7465678111 | K120: 11.000118 | O120: 39.02 | W120: 2012-05-21 | X120: =(VLOOKUP($W120,$AG:$AU,10))/7 -> 574.0013 | Y120: =VLOOKUP($W120,$AG:$AU,11)/14 -> 675.5015 | Z120: =VLOOKUP($W120,$AG:$AU,12)/28 -> 726.251075 | AA120: 1.787474274e-05 | AB120: 2012-05-21 | AC120: =(VLOOKUP($AB120,$AG:$AU,8))/7 -> 0.01026012557 | AD120: =VLOOKUP($AB120,$AG:$AU,9)/14 -> 0.004571361831 | AE120: =VLOOKUP($AB120,$AG:$AU,10)/28 -> 143.500325 | AG120: 2012-05-21 | AH120: 573.9910399 | AI120: 675.4969286 | AJ120: 582.75075 | AL120: 2010-06-19 | AM120: 0.08613489825 | AN120: 0.07182087901 | AO120: 0.06399906563 | AP120: 4018.0091 | AQ120: 9457.021 | AR120: 20335.0301 | AS120: 346.090805 | AT120: 679.211561 | AU120: 1301.422926
A121: 2010-06-16 | B121: 67.0002 | C121: 50.030119 | D121: 0.746715965 | K121: 11.000119 | O121: 39.03 | W121: 2012-05-28 | X121: =(VLOOKUP($W121,$AG:$AU,10))/7 -> 472.5724571 | Y121: =VLOOKUP($W121,$AG:$AU,11)/14 -> 624.7871286 | Z121: =VLOOKUP($W121,$AG:$AU,12)/28 -> 700.8939393 | AA121: 2.357790751e-05 | AB121: 2012-05-28 | AC121: =(VLOOKUP($AB121,$AG:$AU,8))/7 -> 0.01114226969 | AD121: =VLOOKUP($AB121,$AG:$AU,9)/14 -> 0.004762223599 | AE121: =VLOOKUP($AB121,$AG:$AU,10)/28 -> 118.1431143 | AG121: 2012-05-28 | AH121: 472.5613149 | AI121: 624.7823663 | AJ121: 582.750825 | AL121: 2010-06-20 | AM121: 0.1049335116 | AN121: 0.07799588781 | AO121: 0.06667113039 | AP121: 3308.0072 | AQ121: 8747.0198 | AR121: 19625.0303 | AS121: 347.120812 | AT121: 682.231575 | AU121: 1308.422954
A122: 2010-06-17 | B122: 67.0003 | C122: 51.00012 | D122: 0.7611924126 | K122: 11.00012 | O122: 40 | W122: 2012-06-04 | X122: =(VLOOKUP($W122,$AG:$AU,10))/7 -> 371.1436143 | Y122: =VLOOKUP($W122,$AG:$AU,11)/14 -> 574.0727571 | Z122: =VLOOKUP($W122,$AG:$AU,12)/28 -> 675.5368036 | AA122: 3.286419828e-05 | AB122: 2012-06-04 | AC122: =(VLOOKUP($AB122,$AG:$AU,8))/7 -> 0.01219733733 | AD122: =VLOOKUP($AB122,$AG:$AU,9)/14 -> 0.004967413847 | AE122: =VLOOKUP($AB122,$AG:$AU,10)/28 -> 92.78590357 | AG122: 2012-06-04 | AH122: 371.1314169 | AI122: 574.0677897 | AJ122: 582.7509 | AL122: 2010-06-21 | AM122: 0.1343764845 | AN122: 0.08538136132 | AO122: 0.06954379386 | AP122: 2598.0053 | AQ122: 8037.0186 | AR122: 18915.0305 | AS122: 349.110819 | AT122: 686.211589 | AU122: 1315.422982
A123: 2010-06-18 | B123: 67.0004 | C123: 51.010121 | D123: 0.7613405442 | K123: 11.000121 | O123: =O122+0.01 -> 40.01 | W123: 2012-06-11 | X123: =(VLOOKUP($W123,$AG:$AU,10))/7 -> 269.7147714 | Y123: =VLOOKUP($W123,$AG:$AU,11)/14 -> 523.3583857 | Z123: =VLOOKUP($W123,$AG:$AU,12)/28 -> 650.1796679 | AA123: 4.989300667e-05 | AB123: 2012-06-11 | AC123: =(VLOOKUP($AB123,$AG:$AU,8))/7 -> 0.01345688089 | AD123: =VLOOKUP($AB123,$AG:$AU,9)/14 -> 0.005188609016 | AE123: =VLOOKUP($AB123,$AG:$AU,10)/28 -> 67.42869286 | AG123: 2012-06-11 | AH123: 269.7013145 | AI123: 523.3531971 | AJ123: 582.750975 | AL123: 2010-06-22 | AM123: 0.1859640857 | AN123: 0.09419816623 | AO123: 0.07264052623 | AP123: 1888.0034 | AQ123: 7327.0174 | AR123: 18205.0307 | AS123: 351.100826 | AT123: 690.191603 | AU123: 1322.42301
A124: 2010-06-19 | B124: 67.0005 | C124: 51.020122 | D124: 0.7614886755 | K124: 11.000122 | O124: 40.02 | W124: 2012-06-18 | X124: =(VLOOKUP($W124,$AG:$AU,10))/7 -> 168.2859286 | Y124: =VLOOKUP($W124,$AG:$AU,11)/14 -> 472.6440143 | Z124: =VLOOKUP($W124,$AG:$AU,12)/28 -> 624.8225321 | AA124: 8.893194501e-05 | AB124: 2012-06-18 | AC124: =(VLOOKUP($AB124,$AG:$AU,8))/7 -> 0.01496599494 | AD124: =VLOOKUP($AB124,$AG:$AU,9)/14 -> 0.005427757686 | AE124: =VLOOKUP($AB124,$AG:$AU,10)/28 -> 42.07148214 | AG124: 2012-06-18 | AH124: 168.2709626 | AI124: 472.6385865 | AJ124: 582.75105 | AL124: 2010-06-23 | AM124: 0.2997371676 | AN124: 0.1047619646 | AO124: 0.0759886076 | AP124: 1178.0015 | AQ124: 6617.0162 | AR124: 17495.0309 | AS124: 353.090833 | AT124: 693.211617 | AU124: 1329.423038
A125: 2010-06-20 | B125: 67.0006 | C125: 51.030123 | D125: 0.7616368062 | K125: 11.000123 | O125: 40.03 | W125: 2012-06-25 | X125: =(VLOOKUP($W125,$AG:$AU,10))/7 -> 67.0003 | Y125: =VLOOKUP($W125,$AG:$AU,11)/14 -> 421.9296429 | Z125: =VLOOKUP($W125,$AG:$AU,12)/28 -> 599.4653964 | AA125: 0.0002513106475 | AB125: 2012-06-25 | AC125: =(VLOOKUP($AB125,$AG:$AU,8))/7 -> 0.01683788878 | AD125: =VLOOKUP($AB125,$AG:$AU,9)/14 -> 0.005687138133 | AE125: =VLOOKUP($AB125,$AG:$AU,10)/28 -> 16.750075 | AG125: 2012-06-25 | AH125: 66.98346211 | AI125: 421.9239557 | AJ125: 582.7153214 | AL125: 2010-06-24 | AM125: 0.7550517151 | AN125: 0.1178652214 | AO125: 0.07961993386 | AP125: 469.0021 | AQ125: 5907.015 | AR125: 16785.0311 | AS125: 354.12084 | AT125: 696.231631 | AU125: 1336.423066
A126: 2010-06-21 | B126: 67.0007 | C126: 52.000124 | D126: 0.7761131451 | K126: 11.000124 | O126: 41 | W126: 2012-07-02 | X126: =(VLOOKUP($W126,$AG:$AU,10))/7 -> 67.0004 | Y126: =VLOOKUP($W126,$AG:$AU,11)/14 -> 371.2152714 | Z126: =VLOOKUP($W126,$AG:$AU,12)/28 -> 574.1082607 | AA126: 0.0002872764488 | AB126: 2012-07-02 | AC126: =(VLOOKUP($AB126,$AG:$AU,8))/7 -> 0.01924763698 | AD126: =VLOOKUP($AB126,$AG:$AU,9)/14 -> 0.005969431141 | AE126: =VLOOKUP($AB126,$AG:$AU,10)/28 -> 16.7501 | AG126: 2012-07-02 | AH126: 66.98115236 | AI126: 371.209302 | AJ126: 557.3581607 | AL126: 2010-06-25 | AM126: 0.7592936481 | AN126: 0.1347334589 | AO126: 0.08357203597 | AP126: 469.0028 | AQ126: 5197.0138 | AR126: 16075.0313 | AS126: 356.110847 | AT126: 700.211645 | AU126: 1343.423094
A127: 2010-06-22 | B127: 67.0008 | C127: 52.010125 | D127: 0.7762612536 | K127: 11.000125 | O127: =O126+0.01 -> 41.01 | W127: 2012-07-09 | X127: =(VLOOKUP($W127,$AG:$AU,10))/7 -> 67.0005 | Y127: =VLOOKUP($W127,$AG:$AU,11)/14 -> 320.5009 | Z127: =VLOOKUP($W127,$AG:$AU,12)/28 -> 548.751125 | AA127: 0.0003346243217 | AB127: 2012-07-09 | AC127: =(VLOOKUP($AB127,$AG:$AU,8))/7 -> 0.02241999687 | AD127: =VLOOKUP($AB127,$AG:$AU,9)/14 -> 0.006277812996 | AE127: =VLOOKUP($AB127,$AG:$AU,10)/28 -> 16.750125 | AG127: 2012-07-09 | AH127: 66.97808 | AI127: 320.4946222 | AJ127: 532.001 | AL127: 2010-06-26 | AM127: 0.7635355685 | AN127: 0.1569399781 | AO127: 0.08788938194 | AP127: 469.0035 | AQ127: 4487.0126 | AR127: 15365.0315 | AS127: 358.100854 | AT127: 704.191659 | AU127: 1350.423122
A128: 2010-06-23 | B128: 67.0009 | C128: 52.020126 | D128: 0.7764093617 | K128: 11.000126 | O128: 41.02 | W128: 2012-07-16 | X128: =(VLOOKUP($W128,$AG:$AU,10))/7 -> 67.0006 | Y128: =VLOOKUP($W128,$AG:$AU,11)/14 -> 269.7865286 | Z128: =VLOOKUP($W128,$AG:$AU,12)/28 -> 523.3939893 | AA128: 0.0003992311253 | AB128: 2012-07-16 | AC128: =(VLOOKUP($AB128,$AG:$AU,8))/7 -> 0.02674872493 | AD128: =VLOOKUP($AB128,$AG:$AU,9)/14 -> 0.006616075517 | AE128: =VLOOKUP($AB128,$AG:$AU,10)/28 -> 16.75015 | AG128: 2012-07-16 | AH128: 66.97385128 | AI128: 269.7799125 | AJ128: 506.6438393 | AL128: 2010-06-27 | AM128: 0.7677774762 | AN128: 0.1872410745 | AO128: 0.09262505724 | AP128: 469.0042 | AQ128: 3777.0114 | AR128: 14655.0317 | AS128: 360.090861 | AT128: 707.211673 | AU128: 1357.42315
A129: 2010-06-24 | B129: 67.001 | C129: 52.030127 | D129: 0.7765574693 | K129: 11.000127 | O129: 41.03 | W129: 2012-07-23 | X129: =(VLOOKUP($W129,$AG:$AU,10))/7 -> 67.0007 | Y129: =VLOOKUP($W129,$AG:$AU,11)/14 -> 219.0721571 | Z129: =VLOOKUP($W129,$AG:$AU,12)/28 -> 498.0368536 | AA129: 0.0004937503813 | AB129: 2012-07-23 | AC129: =(VLOOKUP($AB129,$AG:$AU,8))/7 -> 0.03308162117 | AD129: =VLOOKUP($AB129,$AG:$AU,9)/14 -> 0.006988782753 | AE129: =VLOOKUP($AB129,$AG:$AU,10)/28 -> 16.750175 | AG129: 2012-07-23 | AH129: 66.96761838 | AI129: 219.0651684 | AJ129: 481.2866786 | AL129: 2010-06-28 | AM129: 0.7699724843 | AN129: 0.2315713482 | AO129: 0.09784295854 | AP129: 469.0049 | AQ129: 3067.0102 | AR129: 13945.0319 | AS129: 361.120868 | AT129: 710.231687 | AU129: 1364.423178
A130: 2010-06-25 | B130: 67.0011 | C130: =SUM(K130:Q130) -> 53.000128 | D130: 0.7910336994 | K130: 11.000128 | O130: 42 | W130: 2012-07-30 | X130: =(VLOOKUP($W130,$AG:$AU,10))/7 -> 67.0008 | Y130: =VLOOKUP($W130,$AG:$AU,11)/14 -> 168.3577857 | Z130: =VLOOKUP($W130,$AG:$AU,12)/28 -> 472.6797179 | AA130: 0.0006460820747 | AB130: 2012-07-30 | AC130: =(VLOOKUP($AB130,$AG:$AU,8))/7 -> 0.04328801587 | AD130: =VLOOKUP($AB130,$AG:$AU,9)/14 -> 0.007412271979 | AE130: =VLOOKUP($AB130,$AG:$AU,10)/28 -> 16.7502 | AG130: 2012-07-30 | AH130: 66.95751198 | AI130: 168.3503734 | AJ130: 455.9295179 | AL130: 2010-06-29 | AM130: 0.7742143697 | AN130: 0.3030161111 | AO130: 0.1037718077 | AP130: 469.0056 | AQ130: 2357.009 | AR130: 13235.0321 | AS130: 363.110875 | AT130: 714.211701 | AU130: 1373.423206
A131: 2010-06-26 | B131: 67.0012 | C131: 53.010129 | D131: =C131/B131 -> 0.7911817848 | K131: 11.000129 | O131: =O130+0.01 -> 42.01 | W131: 2012-08-06 | X131: =(VLOOKUP($W131,$AG:$AU,10))/7 -> 67.0009 | Y131: =VLOOKUP($W131,$AG:$AU,11)/14 -> 117.6434143 | Z131: =VLOOKUP($W131,$AG:$AU,12)/28 -> 447.3225821 | AA131: 0.0009297497247 | AB131: 2012-08-06 | AC131: =(VLOOKUP($AB131,$AG:$AU,8))/7 -> 0.06229406833 | AD131: =VLOOKUP($AB131,$AG:$AU,9)/14 -> 0.007883773419 | AE131: =VLOOKUP($AB131,$AG:$AU,10)/28 -> 16.750225 | AG131: 2012-08-06 | AH131: 66.93860593 | AI131: 117.6355305 | AJ131: 430.5723571 | AL131: 2010-06-30 | AM131: 0.7784562425 | AN131: 0.4360584783 | AO131: 0.1103728279 | AP131: 469.0063 | AQ131: 1647.0078 | AR131: 12525.0323 | AS131: 365.100882 | AT131: 718.191715 | AU131: 1382.423234
A132: 2010-06-27 | B132: =B131+0.0001 -> 67.0013 | C132: 53.02013 | D132: 0.7913298697 | K132: =K131+0.000001 -> 11.00013 | O132: 42.02 | W132: 2012-08-13 | X132: =(VLOOKUP($W132,$AG:$AU,10))/7 -> 67.001 | Y132: =VLOOKUP($W132,$AG:$AU,11)/14 -> 67.00065 | Z132: =VLOOKUP($W132,$AG:$AU,12)/28 -> 421.9654464 | AA132: 0.001639367816 | AB132: 2012-08-13 | AC132: =(VLOOKUP($AB132,$AG:$AU,8))/7 -> 0.109839283 | AD132: =VLOOKUP($AB132,$AG:$AU,9)/14 -> 0.008411942655 | AE132: =VLOOKUP($AB132,$AG:$AU,10)/28 -> 16.75025 | AG132: 2012-08-13 | AH132: =X132-AC132 -> 66.89116072 | AI132: =Y132-AD132 -> 66.99223806 | AJ132: 405.2151964 | AL132: 2010-07-01 | AM132: 0.7826981026 | AN132: 0.7688749811 | AO132: 0.1177671972 | AP132: 469.007 | AQ132: 938.0091 | AR132: 11815.0325 | AS132: 367.090889 | AT132: 721.211729 | AU132: 1391.423262
A133: 2010-06-28 | B133: 67.0014 | C133: 99.000131 | D133: 1.477583021 | K133: 11.000131 | O133: 88 | W133: =W132+7 -> 2012-08-20 | X133: =(VLOOKUP($W133,$AG:$AU,10))/7 -> 67.0011 | Y133: =VLOOKUP($W133,$AG:$AU,11)/14 -> 67.00075 | Z133: =VLOOKUP($W133,$AG:$AU,12)/28 -> 396.6083107 | AA133: 0.001750720529 | AB133: =AB132+7 -> 2012-08-20 | AC133: =(VLOOKUP($AB133,$AG:$AU,8))/7 -> 0.1173002013 | AD133: =VLOOKUP($AB133,$AG:$AU,9)/14 -> 0.009303332031 | AE133: =VLOOKUP($AB133,$AG:$AU,10)/28 -> 16.750275 | AG133: =AG132+7 -> 2012-08-20 | AH133: 66.8837998 | AI133: 66.99144667 | AJ133: 379.8580357 | AL133: 2010-07-02 | AM133: 0.8829085237 | AN133: 0.8211014088 | AO133: 0.1302466484 | AP133: 469.0077 | AQ133: 938.0105 | AR133: 11105.0327 | AS133: 414.090896 | AT133: 770.201743 | AU133: 1446.39329
A134: 2010-06-29 | B134: 777 | C134: 54.000132 | D134: 0.06949823938 | K134: 11.000132 | O134: 43 | W134: 2012-08-27 | X134: =(VLOOKUP($W134,$AG:$AU,10))/7 -> 168.4295571 | Y134: =VLOOKUP($W134,$AG:$AU,11)/14 -> 117.7150286 | Z134: =VLOOKUP($W134,$AG:$AU,12)/28 -> 396.6082643 | AA134: 0.000398443401 | AB134: 2012-08-27 | AC134: =(VLOOKUP($AB134,$AG:$AU,8))/7 -> 0.06710964558 | AD134: =VLOOKUP($AB134,$AG:$AU,9)/14 -> 0.009348357937 | AE134: =VLOOKUP($AB134,$AG:$AU,10)/28 -> 42.10738929 | AG134: 2012-08-27 | AH134: 168.3624475 | AI134: 117.7056802 | AJ134: 354.500875 | AL134: 2010-07-03 | AM134: 0.3529079457 | AN134: 0.4697675191 | AO134: 0.1308770111 | AP134: 1179.0069 | AQ134: 1648.0104 | AR134: 11105.0314 | AS134: 416.080903 | AT134: 774.181757 | AU134: 1453.393318
A135: 2010-06-30 | B135: 777.0001 | C135: 54.010133 | D135: 0.06951110174 | K135: 11.000133 | O135: =O134+0.01 -> 43.01 | W135: 2012-09-03 | X135: =(VLOOKUP($W135,$AG:$AU,10))/7 -> 269.8580143 | Y135: =VLOOKUP($W135,$AG:$AU,11)/14 -> 168.4293071 | Z135: =VLOOKUP($W135,$AG:$AU,12)/28 -> 396.6082179 | AA135: 0.0001746991666 | AB135: 2012-09-03 | AC135: =(VLOOKUP($AB135,$AG:$AU,8))/7 -> 0.04714397019 | AD135: =VLOOKUP($AB135,$AG:$AU,9)/14 -> 0.009393383853 | AE135: =VLOOKUP($AB135,$AG:$AU,10)/28 -> 67.46450357 | AG135: 2012-09-03 | AH135: 269.8108703 | AI135: 168.4199138 | AJ135: 329.1437143 | AL135: 2010-07-04 | AM135: 0.2213179248 | AN135: 0.3300077913 | AO135: 0.1315073739 | AP135: 1889.0061 | AQ135: 2358.0103 | AR135: 11105.0301 | AS135: 418.07091 | AT135: 778.161771 | AU135: 1460.393346
A136: 2010-07-01 | B136: 777.0002 | C136: 54.020134 | D136: 0.06952396409 | K136: 11.000134 | O136: 43.02 | W136: 2012-09-10 | X136: =(VLOOKUP($W136,$AG:$AU,10))/7 -> 371.2864714 | Y136: =VLOOKUP($W136,$AG:$AU,11)/14 -> 219.1435857 | Z136: =VLOOKUP($W136,$AG:$AU,12)/28 -> 396.6081714 | AA136: 9.796888017e-05 | AB136: 2012-09-10 | AC136: =(VLOOKUP($AB136,$AG:$AU,8))/7 -> 0.03637451983 | AD136: =VLOOKUP($AB136,$AG:$AU,9)/14 -> 0.00943840978 | AE136: =VLOOKUP($AB136,$AG:$AU,10)/28 -> 92.82161786 | AG136: 2012-09-10 | AH136: 371.2500969 | AI136: 219.1341473 | AJ136: 303.7865536 | AL136: 2010-07-05 | AM136: 0.1616237247 | AN136: 0.2546216388 | AO136: 0.1321377369 | AP136: 2599.0053 | AQ136: 3068.0102 | AR136: 11105.0288 | AS136: 420.060917 | AT136: 781.181785 | AU136: 1467.393374
A137: 2010-07-02 | B137: 777.0003 | C137: 54.030135 | D137: 0.06953682643 | K137: 11.000135 | O137: 43.03 | W137: 2012-09-17 | X137: =(VLOOKUP($W137,$AG:$AU,10))/7 -> 472.7149286 | Y137: =VLOOKUP($W137,$AG:$AU,11)/14 -> 269.8578643 | Z137: =VLOOKUP($W137,$AG:$AU,12)/28 -> 396.608125 | AA137: 6.272885522e-05 | AB137: 2012-09-17 | AC137: =(VLOOKUP($AB137,$AG:$AU,8))/7 -> 0.02965286631 | AD137: =VLOOKUP($AB137,$AG:$AU,9)/14 -> 0.009483435717 | AE137: =VLOOKUP($AB137,$AG:$AU,10)/28 -> 118.1787321 | AG137: 2012-09-17 | AH137: 472.6852757 | AI137: 269.8483808 | AJ137: 278.4293929 | AL137: 2010-07-06 | AM137: 0.1272560747 | AN137: 0.2075700642 | AO137: 0.1327681 | AP137: 3309.0045 | AQ137: 3778.0101 | AR137: 11105.0275 | AS137: 421.090924 | AT137: 784.201799 | AU137: 1474.393402
A138: 2010-07-03 | B138: 777.0004 | C138: 55.000136 | D138: 0.07078520938 | K138: 11.000136 | O138: 44 | W138: 2012-09-24 | X138: =(VLOOKUP($W138,$AG:$AU,10))/7 -> 574.1433857 | Y138: =VLOOKUP($W138,$AG:$AU,11)/14 -> 320.5721429 | Z138: =VLOOKUP($W138,$AG:$AU,12)/28 -> 396.6080786 | AA138: 4.369725817e-05 | AB138: 2012-09-24 | AC138: =(VLOOKUP($AB138,$AG:$AU,8))/7 -> 0.02508849175 | AD138: =VLOOKUP($AB138,$AG:$AU,9)/14 -> 0.009528461664 | AE138: =VLOOKUP($AB138,$AG:$AU,10)/28 -> 143.5358464 | AG138: 2012-09-24 | AH138: 574.1182972 | AI138: 320.5626144 | AJ138: 253.0722321 | AL138: 2010-07-07 | AM138: =AS138/AP138 -> 0.1052701024 | AN138: 0.1756194422 | AO138: 0.1333984633 | AP138: =SUM(B132:B138) -> 4019.0037 | AQ138: 4488.01 | AR138: 11105.0262 | AS138: =SUM(C132:C138) -> 423.080931 | AT138: 788.181813 | AU138: 1481.39343
A139: 2010-07-04 | B139: 777.0005 | C139: 55.010137 | D139: 0.07079807156 | K139: 11.000137 | O139: =O138+0.01 -> 44.01 | W139: 2012-10-01 | X139: =(VLOOKUP($W139,$AG:$AU,10))/7 -> 675.5718429 | Y139: =VLOOKUP($W139,$AG:$AU,11)/14 -> 371.2864214 | Z139: =VLOOKUP($W139,$AG:$AU,12)/28 -> 396.6080321 | AA139: 3.222606123e-05 | AB139: 2012-10-01 | AC139: =(VLOOKUP($AB139,$AG:$AU,8))/7 -> 0.02177101958 | AD139: =VLOOKUP($AB139,$AG:$AU,9)/14 -> 0.009573487623 | AE139: =VLOOKUP($AB139,$AG:$AU,10)/28 -> 168.8929607 | AG139: 2012-10-01 | AH139: 675.5500718 | AI139: 371.2768479 | AJ139: 227.7150714 | AL139: 2010-07-08 | AM139: 0.08988595418 | AN139: 0.152397137 | AO139: 0.1340288267 | AP139: 4729.0029 | AQ139: 5198.0099 | AR139: 11105.0249 | AS139: 425.070938 | AT139: 792.161827 | AU139: 1488.393458
A140: 2010-07-05 | B140: 777.0006 | C140: 55.020138 | D140: 0.07081093374 | K140: 11.000138 | O140: 44.02 | W140: 2012-10-08 | X140: =(VLOOKUP($W140,$AG:$AU,10))/7 -> 777.0003 | Y140: =VLOOKUP($W140,$AG:$AU,11)/14 -> 422.0007 | Z140: =VLOOKUP($W140,$AG:$AU,12)/28 -> 396.6079857 | AA140: 2.474605765e-05 | AB140: 2012-10-08 | AC140: =(VLOOKUP($AB140,$AG:$AU,8))/7 -> 0.01922769422 | AD140: =VLOOKUP($AB140,$AG:$AU,9)/14 -> 0.009618513591 | AE140: =VLOOKUP($AB140,$AG:$AU,10)/28 -> 194.250075 | AG140: 2012-10-08 | AH140: 776.9810723 | AI140: 421.9910815 | AJ140: 202.3579107 | AL140: 2010-07-09 | AM140: 0.07006633533 | AN140: 0.1345938595 | AO140: 0.1346591903 | AP140: 5439.0021 | AQ140: 5908.0098 | AR140: 11105.0236 | AS140: 381.090945 | AT140: 795.181841 | AU140: 1495.393486
A141: 2010-07-06 | B141: 777.0007 | C141: 55.030139 | D141: 0.07082379591 | K141: 11.000139 | O141: 44.03 | W141: 2012-10-15 | X141: =(VLOOKUP($W141,$AG:$AU,10))/7 -> 777.0004 | Y141: =VLOOKUP($W141,$AG:$AU,11)/14 -> 472.7149786 | Z141: =VLOOKUP($W141,$AG:$AU,12)/28 -> 396.6079393 | AA141: 2.217512369e-05 | AB141: 2012-10-15 | AC141: =(VLOOKUP($AB141,$AG:$AU,8))/7 -> 0.01723007998 | AD141: =VLOOKUP($AB141,$AG:$AU,9)/14 -> 0.009663539571 | AE141: =VLOOKUP($AB141,$AG:$AU,10)/28 -> 194.2501 | AG141: 2012-10-15 | AH141: 776.9831699 | AI141: 472.705315 | AJ141: 202.3578393 | AL141: 2010-07-10 | AM141: 0.07025570055 | AN141: 0.1206105598 | AO141: 0.135289554 | AP141: 5439.0028 | AQ141: 6618.0097 | AR141: 11105.0223 | AS141: 382.120952 | AT141: 798.201855 | AU141: 1502.393514
A142: 2010-07-07 | B142: 777.0008 | C142: 56.00014 | D142: 0.07207217805 | K142: 11.00014 | O142: 45 | W142: 2012-10-22 | X142: =(VLOOKUP($W142,$AG:$AU,10))/7 -> 777.0005 | Y142: =VLOOKUP($W142,$AG:$AU,11)/14 -> 523.4292571 | Z142: =VLOOKUP($W142,$AG:$AU,12)/28 -> 396.6078929 | AA142: 2.012646368e-05 | AB142: 2012-10-22 | AC142: =(VLOOKUP($AB142,$AG:$AU,8))/7 -> 0.01563827234 | AD142: =VLOOKUP($AB142,$AG:$AU,9)/14 -> 0.00970856556 | AE142: =VLOOKUP($AB142,$AG:$AU,10)/28 -> 194.250125 | AG142: 2012-10-22 | AH142: 776.9848617 | AI142: 523.4195486 | AJ142: 202.3577679 | AL142: 2010-07-11 | AM142: 0.07062156864 | AN142: 0.1094679064 | AO142: 0.1359199178 | AP142: 5439.0035 | AQ142: 7328.0096 | AR142: 11105.021 | AS142: 384.110959 | AT142: 802.181869 | AU142: 1509.393542
A143: 2010-07-08 | B143: 777.0009 | C143: 56.010141 | D143: 0.07208504006 | K143: 11.000141 | O143: =O142+0.01 -> 45.01 | W143: 2012-10-29 | X143: =(VLOOKUP($W143,$AG:$AU,10))/7 -> 777.0006 | Y143: =VLOOKUP($W143,$AG:$AU,11)/14 -> 574.1435357 | Z143: =VLOOKUP($W143,$AG:$AU,12)/28 -> 396.6078464 | AA143: 1.843972121e-05 | AB143: 2012-10-29 | AC143: =(VLOOKUP($AB143,$AG:$AU,8))/7 -> 0.01432767444 | AD143: =VLOOKUP($AB143,$AG:$AU,9)/14 -> 0.009753591561 | AE143: =VLOOKUP($AB143,$AG:$AU,10)/28 -> 194.25015 | AG143: 2012-10-29 | AH143: 776.9862723 | AI143: 574.1337821 | AJ143: 202.3576964 | AL143: 2010-07-12 | AM143: 0.07098743663 | AN143: 0.1002937211 | AO143: 0.1365502819 | AP143: 5439.0042 | AQ143: 8038.0095 | AR143: 11105.0197 | AS143: 386.100966 | AT143: 806.161883 | AU143: 1516.39357
A144: 2010-07-09 | B144: 777.001 | C144: 56.020142 | D144: 0.07209790206 | K144: 11.000142 | O144: 45.02 | W144: 2012-11-05 | X144: =(VLOOKUP($W144,$AG:$AU,10))/7 -> 777.0007 | Y144: =VLOOKUP($W144,$AG:$AU,11)/14 -> 624.8578143 | Z144: =VLOOKUP($W144,$AG:$AU,12)/28 -> 396.6078 | AA144: 1.700659882e-05 | AB144: 2012-11-05 | AC144: =(VLOOKUP($AB144,$AG:$AU,8))/7 -> 0.01321413919 | AD144: =VLOOKUP($AB144,$AG:$AU,9)/14 -> 0.009798617572 | AE144: =VLOOKUP($AB144,$AG:$AU,10)/28 -> 194.250175 | AG144: 2012-11-05 | AH144: 776.9874859 | AI144: 624.8480157 | AJ144: 202.357625 | AL144: 2010-07-13 | AM144: 0.07135330454 | AN144: 0.09249897434 | AO144: 0.137180646 | AP144: 5439.0049 | AQ144: 8748.0094 | AR144: 11105.0184 | AS144: 388.090973 | AT144: 809.181897 | AU144: 1523.393598
A145: 2010-07-10 | B145: 777.0011 | C145: 56.030143 | D145: 0.07211076406 | K145: 11.000143 | O145: 45.03 | W145: 2012-11-12 | X145: =(VLOOKUP($W145,$AG:$AU,10))/7 -> 777.0008 | Y145: =VLOOKUP($W145,$AG:$AU,11)/14 -> 675.5720929 | Z145: =VLOOKUP($W145,$AG:$AU,12)/28 -> 396.6077536 | AA145: 1.578864152e-05 | AB145: 2012-11-12 | AC145: =(VLOOKUP($AB145,$AG:$AU,8))/7 -> 0.01226778709 | AD145: =VLOOKUP($AB145,$AG:$AU,9)/14 -> 0.009843643593 | AE145: =VLOOKUP($AB145,$AG:$AU,10)/28 -> 194.2502 | AG145: 2012-11-12 | AH145: 776.9885322 | AI145: 675.5622492 | AJ145: 202.3575536 | AL145: 2010-07-14 | AM145: 0.07154266949 | AN145: =AT145/AQ145 -> 0.08587450966 | AO145: 0.1378110103 | AP145: 5439.0056 | AQ145: =SUM(B132:B145) -> 9458.0093 | AR145: 11105.0171 | AS145: 389.12098 | AT145: =SUM(C132:C145) -> 812.201911 | AU145: 1530.393626
A146: 2010-07-11 | B146: 777.0012 | C146: 57.000144 | D146: 0.07335914539 | K146: 11.000144 | O146: 46 | W146: 2012-11-19 | X146: =(VLOOKUP($W146,$AG:$AU,10))/7 -> 777.0009 | Y146: =VLOOKUP($W146,$AG:$AU,11)/14 -> 726.2863714 | Z146: =VLOOKUP($W146,$AG:$AU,12)/28 -> 396.6435107 | AA146: 1.475813506e-05 | AB146: 2012-11-19 | AC146: =(VLOOKUP($AB146,$AG:$AU,8))/7 -> 0.01146708422 | AD146: =VLOOKUP($AB146,$AG:$AU,9)/14 -> 0.009887777011 | AE146: =VLOOKUP($AB146,$AG:$AU,10)/28 -> 194.250225 | AG146: 2012-11-19 | AH146: 776.9894329 | AI146: 726.2764837 | AJ146: 202.3932857 | AL146: 2010-07-15 | AM146: 0.07190853723 | AN146: 0.08026958955 | AO146: 0.1384288782 | AP146: 5439.0063 | AQ146: 10168.0092 | AR146: 11106.0183 | AS146: 391.110987 | AT146: 816.181925 | AU146: 1537.393654
A147: 2010-07-12 | B147: 777.0013 | C147: 57.010145 | D147: 0.07337200723 | K147: 11.000145 | O147: =O146+0.01 -> 46.01 | W147: 2012-11-26 | X147: =(VLOOKUP($W147,$AG:$AU,10))/7 -> 777.001 | Y147: =VLOOKUP($W147,$AG:$AU,11)/14 -> 777.00065 | Z147: =VLOOKUP($W147,$AG:$AU,12)/28 -> 422.0007 | AA147: 1.308517724e-05 | AB147: 2012-11-26 | AC147: =(VLOOKUP($AB147,$AG:$AU,8))/7 -> 0.0101671958 | AD147: =VLOOKUP($AB147,$AG:$AU,9)/14 -> 0.009335955606 | AE147: =VLOOKUP($AB147,$AG:$AU,10)/28 -> 194.25025 | AG147: 2012-11-26 | AH147: 776.9908328 | AI147: 776.991314 | AJ147: 227.75045 | AL147: 2010-07-16 | AM147: 0.07227440487 | AN147: 0.0711703706 | AO147: 0.1307033785 | AP147: 5439.007 | AQ147: 10878.0091 | AR147: 11816.0196 | AS147: 393.100994 | AT147: 774.191939 | AU147: 1544.393682
A148: 2010-07-13 | B148: 777.0014 | C148: 57.020146 | D148: 0.07338486906 | K148: 11.000146 | O148: 46.02 | W148: 2012-12-03 | X148: =(VLOOKUP($W148,$AG:$AU,10))/7 -> 777.0011 | Y148: =VLOOKUP($W148,$AG:$AU,11)/14 -> 777.00075 | Z148: =VLOOKUP($W148,$AG:$AU,12)/28 -> 447.3578893 | AA148: 1.31362173e-05 | AB148: 2012-12-03 | AC148: =(VLOOKUP($AB148,$AG:$AU,8))/7 -> 0.01020685529 | AD148: =VLOOKUP($AB148,$AG:$AU,9)/14 -> 0.008846691005 | AE148: =VLOOKUP($AB148,$AG:$AU,10)/28 -> 194.250275 | AG148: 2012-12-03 | AH148: 776.9908931 | AI148: =Y148-AD148 -> 776.9919033 | AJ148: 253.1076143 | AL148: 2010-07-17 | AM148: 0.07264027242 | AN148: 0.07144798702 | AO148: 0.1238536741 | AP148: 5439.0077 | AQ148: 10878.0105 | AR148: 12526.0209 | AS148: 395.091001 | AT148: 777.211953 | AU148: 1551.39371
A149: 2010-07-14 | B149: 777.0015 | C149: 57.030147 | D149: 0.07339773089 | K149: 11.000147 | O149: 46.03 | W149: 2012-12-10 | X149: =(VLOOKUP($W149,$AG:$AU,10))/7 -> 777.0012 | Y149: =VLOOKUP($W149,$AG:$AU,11)/14 -> 777.00085 | Z149: =VLOOKUP($W149,$AG:$AU,12)/28 -> 472.7150786 | AA149: 1.318725733e-05 | AB149: 2012-12-10 | AC149: =(VLOOKUP($AB149,$AG:$AU,8))/7 -> 0.01024651477 | AD149: =VLOOKUP($AB149,$AG:$AU,9)/14 -> 0.008409916268 | AE149: =VLOOKUP($AB149,$AG:$AU,10)/28 -> 194.2503 | AG149: 2012-12-10 | AH149: 776.9909535 | AI149: 776.9924401 | AJ149: 278.4647786 | AL149: 2010-07-18 | AM149: 0.07282963711 | AN149: 0.07172560337 | AO149: 0.1177388278 | AP149: 5439.0084 | AQ149: 10878.0119 | AR149: 13236.0222 | AS149: 396.121008 | AT149: 780.231967 | AU149: 1558.393738
A150: 2010-07-15 | B150: 888 | C150: 58.000148 | D150: 0.06531548198 | K150: 11.000148 | O150: 47 | W150: 2012-12-17 | X150: =(VLOOKUP($W150,$AG:$AU,10))/7 -> 792.8582143 | Y150: =VLOOKUP($W150,$AG:$AU,11)/14 -> 784.9294071 | Z150: =VLOOKUP($W150,$AG:$AU,12)/28 -> 502.0364964 | AA150: 1.285823229e-05 | AB150: 2012-12-17 | AC150: =(VLOOKUP($AB150,$AG:$AU,8))/7 -> 0.01019475509 | AD150: =VLOOKUP($AB150,$AG:$AU,9)/14 -> 0.00795430506 | AE150: =VLOOKUP($AB150,$AG:$AU,10)/28 -> 198.2145536 | AG150: 2012-12-17 | AH150: 792.8480195 | AI150: 784.9214528 | AJ150: 303.8219429 | AL150: 2010-07-19 | AM150: 0.07173161748 | AN150: 0.07136328565 | AO150: 0.1113602708 | AP150: 5550.0075 | AQ150: 10989.0117 | AR150: 14057.0219 | AS150: 398.111015 | AT150: 784.211981 | AU150: 1565.393766
A151: 2010-07-16 | B151: 888.0001 | C151: 58.010149 | D151: 0.06532673701 | K151: 11.000149 | O151: =O150+0.01 -> 47.01 | W151: 2012-12-24 | X151: =(VLOOKUP($W151,$AG:$AU,10))/7 -> 808.7152286 | Y151: =VLOOKUP($W151,$AG:$AU,11)/14 -> 792.8579643 | Z151: =VLOOKUP($W151,$AG:$AU,12)/28 -> 531.3579143 | AA151: 1.254339012e-05 | AB151: 2012-12-24 | AC151: =(VLOOKUP($AB151,$AG:$AU,8))/7 -> 0.01014403061 | AD151: =VLOOKUP($AB151,$AG:$AU,9)/14 -> 0.007548976971 | AE151: =VLOOKUP($AB151,$AG:$AU,10)/28 -> 202.1788071 | AG151: 2012-12-24 | AH151: 808.7050845 | AI151: 792.8504153 | AJ151: 329.1791071 | AL151: 2010-07-20 | AM151: 0.07067665705 | AN151: 0.07100821427 | AO151: 0.1056856776 | AP151: 5661.0066 | AQ151: 11100.0115 | AR151: 14878.0216 | AS151: 400.101022 | AT151: 788.191995 | AU151: 1572.393794
A152: 2010-07-17 | B152: 888.0002 | C152: 58.02015 | D152: 0.06533799204 | K152: 11.00015 | O152: 47.02 | W152: 2012-12-31 | X152: =(VLOOKUP($W152,$AG:$AU,10))/7 -> 824.5722429 | Y152: =VLOOKUP($W152,$AG:$AU,11)/14 -> 800.7865214 | Z152: =VLOOKUP($W152,$AG:$AU,12)/28 -> 560.6793321 | AA152: 1.222703988e-05 | AB152: 2012-12-31 | AC152: =(VLOOKUP($AB152,$AG:$AU,8))/7 -> 0.0100820777 | AD152: =VLOOKUP($AB152,$AG:$AU,9)/14 -> 0.007186043147 | AE152: =VLOOKUP($AB152,$AG:$AU,10)/28 -> 206.1430607 | AG152: 2012-12-31 | AH152: 824.5621608 | AI152: 800.7793354 | AJ152: 354.5362714 | AL152: 2010-07-21 | AM152: 0.06966227164 | AN152: 0.07057454389 | AO152: 0.1006046041 | AP152: 5772.0057 | AQ152: 11211.0113 | AR152: 15699.0213 | AS152: 402.091029 | AT152: 791.212009 | AU152: 1579.393822
A153: 2010-07-18 | B153: 888.0003 | C153: 58.030151 | D153: 0.06534924707 | K153: 11.000151 | O153: 47.03 | W153: 2013-01-07 | X153: =(VLOOKUP($W153,$AG:$AU,10))/7 -> 840.4292571 | Y153: =VLOOKUP($W153,$AG:$AU,11)/14 -> 808.7150786 | Z153: =VLOOKUP($W153,$AG:$AU,12)/28 -> 590.00075 | AA153: 1.192407268e-05 | AB153: 2013-01-07 | AC153: =(VLOOKUP($AB153,$AG:$AU,8))/7 -> 0.01002133955 | AD153: =VLOOKUP($AB153,$AG:$AU,9)/14 -> 0.006859182953 | AE153: =VLOOKUP($AB153,$AG:$AU,10)/28 -> 210.1073143 | AG153: 2013-01-07 | AH153: 840.4192358 | AI153: 808.7082194 | AJ153: 379.8934357 | AL153: 2010-07-22 | AM153: 0.06852298268 | AN153: 0.07014937682 | AO153: 0.09602856134 | AP153: 5883.0048 | AQ153: 11322.0111 | AR153: 16520.021 | AS153: 403.121036 | AT153: 794.232023 | AU153: 1586.39385
A154: 2010-07-19 | B154: 888.0004 | C154: 59.000152 | D154: 0.06644158268 | K154: 11.000152 | O154: 48 | W154: 2013-01-14 | X154: =(VLOOKUP($W154,$AG:$AU,10))/7 -> 856.2862714 | Y154: =VLOOKUP($W154,$AG:$AU,11)/14 -> 816.6436357 | Z154: =VLOOKUP($W154,$AG:$AU,12)/28 -> 619.3221679 | AA154: 1.164771227e-05 | AB154: 2013-01-14 | AC154: =(VLOOKUP($AB154,$AG:$AU,8))/7 -> 0.009973776112 | AD154: =VLOOKUP($AB154,$AG:$AU,9)/14 -> 0.006563272739 | AE154: =VLOOKUP($AB154,$AG:$AU,10)/28 -> 214.0715679 | AG154: 2013-01-14 | AH154: 856.2762977 | AI154: 816.6370724 | AJ154: 405.2506 | AL154: 2010-07-23 | AM154: 0.06758604929 | AN154: 0.06981643278 | AO154: 0.09188581835 | AP154: 5994.0039 | AQ154: 11433.0109 | AR154: 17341.0207 | AS154: 405.111043 | AT154: 798.212037 | AU154: 1593.393878
A155: 2010-07-20 | B155: 888.0005 | C155: 59.010153 | D155: 0.06645283758 | K155: 11.000153 | O155: =O154+0.01 -> 48.01 | W155: 2013-01-21 | X155: =(VLOOKUP($W155,$AG:$AU,10))/7 -> 872.1432857 | Y155: =VLOOKUP($W155,$AG:$AU,11)/14 -> 824.5721929 | Z155: =VLOOKUP($W155,$AG:$AU,12)/28 -> 648.6435857 | AA155: 1.138245002e-05 | AB155: 2013-01-21 | AC155: =(VLOOKUP($AB155,$AG:$AU,8))/7 -> 0.009927127357 | AD155: =VLOOKUP($AB155,$AG:$AU,9)/14 -> 0.006294115297 | AE155: =VLOOKUP($AB155,$AG:$AU,10)/28 -> 218.0358214 | AG155: 2013-01-21 | AH155: 872.1333586 | AI155: 824.5658987 | AJ155: 430.6077643 | AL155: 2010-07-24 | AM155: 0.06668318591 | AN155: 0.0694898915 | AO155: 0.08811761416 | AP155: 6105.003 | AQ155: 11544.0107 | AR155: 18162.0204 | AS155: 407.10105 | AT155: 802.192051 | AU155: 1600.393906
A156: 2010-07-21 | B156: 888.0006 | C156: 59.020154 | D156: 0.06646409248 | K156: 11.000154 | O156: 48.02 | W156: 2013-01-28 | X156: =(VLOOKUP($W156,$AG:$AU,10))/7 -> 888.0003 | Y156: =VLOOKUP($W156,$AG:$AU,11)/14 -> 832.50075 | Z156: =VLOOKUP($W156,$AG:$AU,12)/28 -> 677.9650036 | AA156: 1.111441099e-05 | AB156: 2013-01-28 | AC156: =(VLOOKUP($AB156,$AG:$AU,8))/7 -> 0.009869600289 | AD156: =VLOOKUP($AB156,$AG:$AU,9)/14 -> 0.006048239523 | AE156: =VLOOKUP($AB156,$AG:$AU,10)/28 -> 222.000075 | AG156: 2013-01-28 | AH156: 887.9904304 | AI156: 832.4947018 | AJ156: 455.9649286 | AL156: 2010-07-25 | AM156: 0.06581256737 | AN156: 0.06908720202 | AO156: 0.08467535332 | AP156: 6216.0021 | AQ156: 11655.0105 | AR156: 18983.0201 | AS156: 409.091057 | AT156: 805.212065 | AU156: 1607.393934
A157: 2010-07-22 | B157: 888.0007 | C157: 59.030155 | D157: 0.06647534737 | K157: 11.000155 | O157: 48.03 | W157: 2013-02-04 | X157: =(VLOOKUP($W157,$AG:$AU,10))/7 -> 888.0004 | Y157: =VLOOKUP($W157,$AG:$AU,11)/14 -> 840.4293071 | Z157: =VLOOKUP($W157,$AG:$AU,12)/28 -> 707.2864214 | AA157: 1.105084934e-05 | AB157: 2013-02-04 | AC157: =(VLOOKUP($AB157,$AG:$AU,8))/7 -> 0.009813158635 | AD157: =VLOOKUP($AB157,$AG:$AU,9)/14 -> 0.005822749906 | AE157: =VLOOKUP($AB157,$AG:$AU,10)/28 -> 222.0001 | AG157: 2013-02-04 | AH157: 887.9905868 | AI157: 840.4234844 | AJ157: 485.2863214 | AL157: 2010-07-26 | AM157: 0.06597826243 | AN157: 0.06869211044 | AO157: 0.08151849868 | AP157: 6216.0028 | AQ157: 11766.0103 | AR157: 19804.0198 | AS157: 410.121064 | AT157: 808.232079 | AU157: 1614.393962
A158: 2010-07-23 | B158: 888.0008 | C158: 60.000156 | D158: 0.06756768237 | K158: 11.000156 | O158: 49 | W158: 2013-02-11 | X158: =(VLOOKUP($W158,$AG:$AU,10))/7 -> 888.0005 | Y158: =VLOOKUP($W158,$AG:$AU,11)/14 -> 848.3578643 | Z158: =VLOOKUP($W158,$AG:$AU,12)/28 -> 736.6078393 | AA158: 1.100147903e-05 | AB158: 2013-02-11 | AC158: =(VLOOKUP($AB158,$AG:$AU,8))/7 -> 0.009769318879 | AD158: =VLOOKUP($AB158,$AG:$AU,9)/14 -> 0.005615211972 | AE158: =VLOOKUP($AB158,$AG:$AU,10)/28 -> 222.000125 | AG158: 2013-02-11 | AH158: 887.9907307 | AI158: 848.3522491 | AJ158: 514.6077143 | AL158: 2010-07-27 | AM158: 0.06629839752 | AN158: 0.06838523216 | AO158: 0.07861296761 | AP158: 6216.0035 | AQ158: 11877.0101 | AR158: 20625.0195 | AS158: 412.111071 | AT158: 812.212093 | AU158: 1621.39399
A159: 2010-07-24 | B159: 888.0009 | C159: 60.010157 | D159: 0.06757893714 | K159: 11.000157 | O159: =O158+0.01 -> 49.01 | W159: 2013-02-18 | X159: =(VLOOKUP($W159,$AG:$AU,10))/7 -> 888.0006 | Y159: =VLOOKUP($W159,$AG:$AU,11)/14 -> 856.2864214 | Z159: =VLOOKUP($W159,$AG:$AU,12)/28 -> 765.9292571 | AA159: 1.095302297e-05 | AB159: 2013-02-18 | AC159: =(VLOOKUP($AB159,$AG:$AU,8))/7 -> 0.009726290969 | AD159: =VLOOKUP($AB159,$AG:$AU,9)/14 -> 0.005423564035 | AE159: =VLOOKUP($AB159,$AG:$AU,10)/28 -> 222.00015 | AG159: 2013-02-18 | AH159: 887.9908737 | AI159: 856.2809979 | AJ159: 543.9291071 | AL159: 2010-07-28 | AM159: 0.06661853253 | AN159: 0.06808403678 | AO159: =AU159/AR159 -> 0.07592989649 | AP159: 6216.0042 | AQ159: 11988.0099 | AR159: =SUM(B132:B159) -> 21446.0192 | AS159: 414.101078 | AT159: 816.192107 | AU159: =SUM(C132:C159) -> 1628.394018
A160: 2010-07-25 | B160: 888.001 | C160: 60.020158 | D160: 0.0675901919 | K160: 11.000158 | O160: 49.02 | W160: 2013-02-25 | X160: =(VLOOKUP($W160,$AG:$AU,10))/7 -> 888.0007 | Y160: =VLOOKUP($W160,$AG:$AU,11)/14 -> 864.2149786 | Z160: =VLOOKUP($W160,$AG:$AU,12)/28 -> 795.250675 | AA160: 1.089269131e-05 | AB160: 2013-02-25 | AC160: =(VLOOKUP($AB160,$AG:$AU,8))/7 -> 0.009672717512 | AD160: =VLOOKUP($AB160,$AG:$AU,9)/14 -> 0.00524604847 | AE160: =VLOOKUP($AB160,$AG:$AU,10)/28 -> 222.000175 | AG160: 2013-02-25 | AH160: 887.9910273 | AI160: 864.2097325 | AJ160: 573.2505 | AL160: 2010-07-29 | AM160: 0.06693866747 | AN160: 0.06770902258 | AO160: 0.07344467858 | AP160: 6216.0049 | AQ160: 12099.0097 | AR160: 22267.0189 | AS160: 416.091085 | AT160: 819.212121 | AU160: 1635.394046
A161: 2010-07-26 | B161: 888.0011 | C161: 60.030159 | D161: 0.06760144666 | K161: 11.000159 | O161: 49.03 | W161: 2013-03-04 | X161: =(VLOOKUP($W161,$AG:$AU,10))/7 -> 888.0008 | Y161: =VLOOKUP($W161,$AG:$AU,11)/14 -> 872.1435357 | Z161: =VLOOKUP($W161,$AG:$AU,12)/28 -> 824.5720929 | AA161: 1.083345659e-05 | AB161: 2013-03-04 | AC161: =(VLOOKUP($AB161,$AG:$AU,8))/7 -> 0.009620118115 | AD161: =VLOOKUP($AB161,$AG:$AU,9)/14 -> 0.004938937939 | AE161: =VLOOKUP($AB161,$AG:$AU,10)/28 -> 222.0002 | AG161: 2013-03-04 | AH161: 887.9911799 | AI161: 872.1385968 | AJ161: 602.5718929 | AL161: 2010-07-30 | AM161: 0.06710436233 | AN161: 0.0673408268 | AO161: 0.06914513115 | AP161: 6216.0056 | AQ161: 12210.0095 | AR161: 23088.0186 | AS161: 417.121092 | AT161: 822.232135 | AU161: 1596.424074
A162: 2010-07-27 | B162: 888.0012 | C162: 61.00016 | D162: 0.06869378104 | K162: 11.00016 | O162: 50 | W162: 2013-03-11 | X162: =(VLOOKUP($W162,$AG:$AU,10))/7 -> 888.0009 | Y162: =VLOOKUP($W162,$AG:$AU,11)/14 -> 880.0720929 | Z162: =VLOOKUP($W162,$AG:$AU,12)/28 -> 828.5364214 | AA162: 1.078782382e-05 | AB162: 2013-03-11 | AC162: =(VLOOKUP($AB162,$AG:$AU,8))/7 -> 0.009579597266 | AD162: =VLOOKUP($AB162,$AG:$AU,9)/14 -> 0.004936859143 | AE162: =VLOOKUP($AB162,$AG:$AU,10)/28 -> 222.000225 | AG162: 2013-03-11 | AH162: 887.9913204 | AI162: 880.067156 | AJ162: 606.5361964 | AL162: 2010-07-31 | AM162: 0.06742449714 | AN162: 0.06705718086 | AO162: 0.069116028 | AP162: 6216.0063 | AQ162: 12321.0093 | AR162: 23199.0198 | AS162: 419.111099 | AT162: 826.212149 | AU162: 1603.424102
A163: 2010-07-28 | B163: 888.0013 | C163: 61.010161 | D163: 0.06870503568 | K163: 11.000161 | O163: =O162+0.01 -> 50.01 | W163: 2013-03-18 | X163: =(VLOOKUP($W163,$AG:$AU,10))/7 -> 888.001 | Y163: =VLOOKUP($W163,$AG:$AU,11)/14 -> 888.00065 | Z163: =VLOOKUP($W163,$AG:$AU,12)/28 -> 832.50075 | AA163: 1.074300592e-05 | AB163: 2013-03-18 | AC163: =(VLOOKUP($AB163,$AG:$AU,8))/7 -> 0.009539800001 | AD163: =VLOOKUP($AB163,$AG:$AU,9)/14 -> 0.004934800145 | AE163: =VLOOKUP($AB163,$AG:$AU,10)/28 -> 222.00025 | AG163: 2013-03-18 | AH163: 887.9914602 | AI163: 887.9957152 | AJ163: 610.5005 | AL163: 2010-08-01 | AM163: 0.06774463188 | AN163: 0.06677860001 | AO163: 0.06908720202 | AP163: 6216.007 | AQ163: 12432.0091 | AR163: 23310.021 | AS163: 421.101106 | AT163: 830.192163 | AU163: 1610.42413
A164: 2010-07-29 | B164: 888.0014 | C164: 110.000162 | D164: 0.123873861 | K164: 11.000162 | O164: 99 | W164: 2013-03-25 | X164: =(VLOOKUP($W164,$AG:$AU,10))/7 -> 888.0011 | Y164: =VLOOKUP($W164,$AG:$AU,11)/14 -> 888.00075 | Z164: =VLOOKUP($W164,$AG:$AU,12)/28 -> 836.4650786 | AA164: 1.141590353e-05 | AB164: 2013-03-25 | AC164: =(VLOOKUP($AB164,$AG:$AU,8))/7 -> 0.0101373349 | AD164: =VLOOKUP($AB164,$AG:$AU,9)/14 -> 0.005082138064 | AE164: =VLOOKUP($AB164,$AG:$AU,10)/28 -> 222.000275 | AG164: 2013-03-25 | AH164: 887.9909627 | AI164: =Y164-AD164 -> 887.9956679 | AJ164: 614.4648036 | AL164: 2010-08-02 | AM164: 0.07594442217 | AN164: 0.07096134427 | AO164: 0.0711499329 | AP164: 6216.0077 | AQ164: 12432.0105 | AR164: 23421.0222 | AS164: 472.071113 | AT164: 882.192177 | AU164: 1666.404158
A165: 2010-07-30 | B165: 888.0015 | C165: 110.010163 | D165: 0.1238851094 | K165: 11.000163 | O165: 99.01 | W165: 2013-04-01 | X165: =(VLOOKUP($W165,$AG:$AU,10))/7 -> 888.0012 | Y165: =VLOOKUP($W165,$AG:$AU,11)/14 -> 888.00085 | Z165: =VLOOKUP($W165,$AG:$AU,12)/28 -> 840.4294071 | AA165: 1.208880084e-05 | AB165: 2013-04-01 | AC165: =(VLOOKUP($AB165,$AG:$AU,8))/7 -> 0.01073486965 | AD165: =VLOOKUP($AB165,$AG:$AU,9)/14 -> 0.00522808599 | AE165: =VLOOKUP($AB165,$AG:$AU,10)/28 -> 222.0003 | AG165: 2013-04-01 | AH165: 887.9904651 | AI165: 887.9956219 | AJ165: 618.4291071 | AL165: 2010-08-03 | AM165: 0.08398977067 | AN165: 0.07514408758 | AO165: 0.07319320386 | AP165: 6216.0084 | AQ165: 12432.0119 | AR165: 23532.0234 | AS165: 522.08112 | AT165: 934.192191 | AU165: 1722.384186
A166: 2010-07-31 | B166: 888.0016 | C166: 62.000164 | D166: 0.0698198787 | K166: 11.000164 | O166: 51 | W166: 2013-04-08 | X166: =(VLOOKUP($W166,$AG:$AU,10))/7 -> 888.0013 | Y166: =VLOOKUP($W166,$AG:$AU,11)/14 -> 888.00095 | Z166: =VLOOKUP($W166,$AG:$AU,12)/28 -> 844.3937357 | AA166: =AC166/X166 -> 1.2140301e-05 | AB166: 2013-04-08 | AC166: =(VLOOKUP($AB166,$AG:$AU,8))/7 -> 0.01078060307 | AD166: =VLOOKUP($AB166,$AG:$AU,9)/14 -> 0.005224688717 | AE166: =VLOOKUP($AB166,$AG:$AU,10)/28 -> 222.000325 | AG166: 2013-04-08 | AH166: 887.9905194 | AI166: 887.9957253 | AJ166: 622.3934107 | AL166: 2010-08-04 | AM166: 0.08430990344 | AN166: 0.07546422147 | AO166: 0.07314564203 | AP166: 6216.0091 | AQ166: 12432.0133 | AR166: 23643.0246 | AS166: 524.071127 | AT166: 938.172205 | AU166: 1729.384214
A167: 2010-08-01 | B167: 888.0017 | C167: 62.010165 | D167: 0.06983113321 | K167: 11.000165 | O167: =O166+0.01 -> 51.01 | W167: 2013-04-15 | X167: =(VLOOKUP($W167,$AG:$AU,10))/7 -> 888.0014 | Y167: =VLOOKUP($W167,$AG:$AU,11)/14 -> 888.00105 | Z167: =VLOOKUP($W167,$AG:$AU,12)/28 -> 848.3580643 | AA167: =AC167/X167 -> 1.219180113e-05 | AB167: 2013-04-15 | AC167: =(VLOOKUP($AB167,$AG:$AU,8))/7 -> 0.01082633647 | AD167: =VLOOKUP($AB167,$AG:$AU,9)/14 -> 0.005221323194 | AE167: =VLOOKUP($AB167,$AG:$AU,10)/28 -> 222.00035 | AG167: 2013-04-15 | AH167: 887.9905737 | AI167: 887.9958287 | AJ167: 626.3577143 | AL167: 2010-08-05 | AM167: 0.08463003614 | AN167: 0.07578435529 | AO167: 0.07309852471 | AP167: 6216.0098 | AQ167: 12432.0147 | AR167: 23754.0258 | AS167: 526.061134 | AT167: 942.152219 | AU167: 1736.384242
A168: 2010-08-02 | B168: 888.0018 | C168: 62.020166 | D168: 0.06984238771 | K168: 11.000166 | O168: 51.02 | W168: 2013-04-22 | X168: =(VLOOKUP($W168,$AG:$AU,10))/7 -> 888.0015 | Y168: =VLOOKUP($W168,$AG:$AU,11)/14 -> 888.00115 | Z168: =VLOOKUP($W168,$AG:$AU,12)/28 -> 852.3223929 | AA168: =AC168/X168 -> 1.223087848e-05 | AB168: 2013-04-22 | AC168: =(VLOOKUP($AB168,$AG:$AU,8))/7 -> 0.01086103844 | AD168: =VLOOKUP($AB168,$AG:$AU,9)/14 -> 0.005217988978 | AE168: =VLOOKUP($AB168,$AG:$AU,10)/28 -> 222.000375 | AG168: 2013-04-22 | AH168: 887.990639 | AI168: 887.995932 | AJ168: 630.3220179 | AL168: 2010-08-06 | AM168: 0.08495016876 | AN168: 0.07602726906 | AO168: 0.0730518457 | AP168: 6216.0105 | AQ168: 12432.0161 | AR168: 23865.027 | AS168: 528.051141 | AT168: 945.172233 | AU168: 1743.38427
A169: 2010-08-03 | B169: 888.0019 | C169: 62.030167 | D169: 0.06985364221 | K169: 11.000167 | O169: 51.03 | W169: 2013-04-29 | X169: =(VLOOKUP($W169,$AG:$AU,10))/7 -> 888.0016 | Y169: =VLOOKUP($W169,$AG:$AU,11)/14 -> 888.00125 | Z169: =VLOOKUP($W169,$AG:$AU,12)/28 -> 856.2867214 | AA169: 1.226995582e-05 | AB169: 2013-04-29 | AC169: =(VLOOKUP($AB169,$AG:$AU,8))/7 -> 0.0108957404 | AD169: =VLOOKUP($AB169,$AG:$AU,9)/14 -> 0.005214685636 | AE169: =VLOOKUP($AB169,$AG:$AU,10)/28 -> 222.0004 | AG169: 2013-04-29 | AH169: 887.9907043 | AI169: 887.9960353 | AJ169: 634.2863214 | AL169: 2010-08-07 | AM169: 0.08511586144 | AN169: 0.07627018278 | AO169: 0.0730055989 | AP169: 6216.0112 | AQ169: 12432.0175 | AR169: 23976.0282 | AS169: 529.081148 | AT169: 948.192247 | AU169: 1750.384298
A170: 2010-08-04 | B170: 888.002 | C170: 63.000168 | D170: 0.07094597535 | K170: 11.000168 | O170: 52 | W170: 2013-05-06 | X170: =(VLOOKUP($W170,$AG:$AU,10))/7 -> 888.0017 | Y170: =VLOOKUP($W170,$AG:$AU,11)/14 -> 888.00135 | Z170: =VLOOKUP($W170,$AG:$AU,12)/28 -> 860.25105 | AA170: 1.232145588e-05 | AB170: 2013-05-06 | AC170: =(VLOOKUP($AB170,$AG:$AU,8))/7 -> 0.01094147377 | AD170: =VLOOKUP($AB170,$AG:$AU,9)/14 -> 0.005211412739 | AE170: =VLOOKUP($AB170,$AG:$AU,10)/28 -> 222.000425 | AG170: 2013-05-06 | AH170: 887.9907585 | AI170: 887.9961386 | AJ170: 638.250625 | AL170: 2010-08-08 | AM170: 0.08543599394 | AN170: 0.0765903164 | AO170: 0.07295977834 | AP170: 6216.0119 | AQ170: 12432.0189 | AR170: 24087.0294 | AS170: 531.071155 | AT170: 952.172261 | AU170: 1757.384326
A171: 2010-08-05 | B171: 888.0021 | C171: 63.010169 | D171: 0.07095722972 | K171: 11.000169 | O171: =O170+0.01 -> 52.01 | W171: 2013-05-13 | X171: =(VLOOKUP($W171,$AG:$AU,10))/7 -> 888.0018 | Y171: =VLOOKUP($W171,$AG:$AU,11)/14 -> 888.00145 | Z171: =VLOOKUP($W171,$AG:$AU,12)/28 -> 864.2153786 | AA171: 1.237295593e-05 | AB171: 2013-05-13 | AC171: =(VLOOKUP($AB171,$AG:$AU,8))/7 -> 0.01098720714 | AD171: =VLOOKUP($AB171,$AG:$AU,9)/14 -> 0.005208169869 | AE171: =VLOOKUP($AB171,$AG:$AU,10)/28 -> 222.00045 | AG171: 2013-05-13 | AH171: 887.9908128 | AI171: 887.9962418 | AJ171: 642.2149286 | AL171: 2010-08-09 | AM171: 0.07787647696 | AN171: 0.07691044995 | AO171: 0.07291437816 | AP171: 6216.0126 | AQ171: 12432.0203 | AR171: 24198.0306 | AS171: 484.081162 | AT171: 956.152275 | AU171: 1764.384354
A172: 2010-08-06 | B172: 888.0022 | C172: 63.02017 | D172: 0.07096848409 | K172: 11.00017 | O172: 52.02 | W172: 2013-05-20 | X172: =(VLOOKUP($W172,$AG:$AU,10))/7 -> 888.0019 | Y172: =VLOOKUP($W172,$AG:$AU,11)/14 -> 888.00155 | Z172: =VLOOKUP($W172,$AG:$AU,12)/28 -> 868.1797071 | AA172: 1.24120332e-05 | AB172: 2013-05-20 | AC172: =(VLOOKUP($AB172,$AG:$AU,8))/7 -> 0.01102190907 | AD172: =VLOOKUP($AB172,$AG:$AU,9)/14 -> 0.005204956614 | AE172: =VLOOKUP($AB172,$AG:$AU,10)/28 -> 222.000475 | AG172: 2013-05-20 | AH172: 887.9908781 | AI172: 887.996345 | AJ172: 646.1792321 | AL172: 2010-08-10 | AM172: 0.07031696168 | AN172: 0.07715336348 | AO172: 0.0728693926 | AP172: 6216.0133 | AQ172: 12432.0217 | AR172: 24309.0318 | AS172: 437.091169 | AT172: 959.172289 | AU172: 1771.384382
A173: 2010-08-07 | B173: 888.0023 | C173: 63.030171 | D173: 0.07097973845 | K173: 11.000171 | O173: 52.03 | W173: 2013-05-27 | X173: =(VLOOKUP($W173,$AG:$AU,10))/7 -> 888.002 | Y173: =VLOOKUP($W173,$AG:$AU,11)/14 -> 888.00165 | Z173: =VLOOKUP($W173,$AG:$AU,12)/28 -> 872.1440357 | AA173: 1.245111046e-05 | AB173: 2013-05-27 | AC173: =(VLOOKUP($AB173,$AG:$AU,8))/7 -> 0.01105661099 | AD173: =VLOOKUP($AB173,$AG:$AU,9)/14 -> 0.005201772572 | AE173: =VLOOKUP($AB173,$AG:$AU,10)/28 -> 222.0005 | AG173: 2013-05-27 | AH173: 887.9909434 | AI173: 887.9964482 | AJ173: 650.1435357 | AL173: 2010-08-11 | AM173: 0.07048265593 | AN173: 0.07739627696 | AO173: 0.072824816 | AP173: 6216.014 | AQ173: 12432.0231 | AR173: 24420.033 | AS173: 438.121176 | AT173: 962.192303 | AU173: 1778.38441
A174: 2010-08-08 | B174: 888.0024 | C174: 64.000172 | D174: 0.07207207098 | K174: 11.000172 | O174: 53 | W174: 2013-06-03 | X174: =(VLOOKUP($W174,$AG:$AU,10))/7 -> 888.0021 | Y174: =VLOOKUP($W174,$AG:$AU,11)/14 -> 888.00175 | Z174: =VLOOKUP($W174,$AG:$AU,12)/28 -> 876.1083643 | AA174: 1.250261044e-05 | AB174: 2013-06-03 | AC174: =(VLOOKUP($AB174,$AG:$AU,8))/7 -> 0.01110234433 | AD174: =VLOOKUP($AB174,$AG:$AU,9)/14 -> 0.005198617344 | AE174: =VLOOKUP($AB174,$AG:$AU,10)/28 -> 222.000525 | AG174: 2013-06-03 | AH174: 887.9909977 | AI174: 887.9965514 | AJ174: 654.1078393 | AL174: 2010-08-12 | AM174: 0.07080278993 | AN174: 0.07771641031 | AO174: 0.07278064282 | AP174: 6216.0147 | AQ174: 12432.0245 | AR174: 24531.0342 | AS174: 440.111183 | AT174: 966.172317 | AU174: 1785.384438
A175: 2010-08-09 | B175: 888.0025 | C175: 64.010173 | D175: 0.07208332522 | K175: 11.000173 | O175: =O174+0.01 -> 53.01 | W175: 2013-06-10 | X175: =(VLOOKUP($W175,$AG:$AU,10))/7 -> 888.0022 | Y175: =VLOOKUP($W175,$AG:$AU,11)/14 -> 888.00185 | Z175: =VLOOKUP($W175,$AG:$AU,12)/28 -> 880.0726929 | AA175: 1.25541104e-05 | AB175: 2013-06-10 | AC175: =(VLOOKUP($AB175,$AG:$AU,8))/7 -> 0.01114807766 | AD175: =VLOOKUP($AB175,$AG:$AU,9)/14 -> 0.005195490542 | AE175: =VLOOKUP($AB175,$AG:$AU,10)/28 -> 222.00055 | AG175: 2013-06-10 | AH175: 887.9910519 | AI175: 887.9966545 | AJ175: 658.0721429 | AL175: 2010-08-13 | AM175: 0.07112292386 | AN175: 0.07803654359 | AO175: 0.07273686759 | AP175: 6216.0154 | AQ175: 12432.0259 | AR175: 24642.0354 | AS175: 442.10119 | AT175: 970.152331 | AU175: 1792.384466
A176: 2010-08-10 | B176: 888.0026 | C176: 64.020174 | D176: 0.07209457945 | K176: 11.000174 | O176: 53.02 | W176: 2013-06-17 | X176: =(VLOOKUP($W176,$AG:$AU,10))/7 -> 888.0023 | Y176: =VLOOKUP($W176,$AG:$AU,11)/14 -> 888.00195 | Z176: =VLOOKUP($W176,$AG:$AU,12)/28 -> 884.0370214 | AA176: 1.25931876e-05 | AB176: 2013-06-17 | AC176: =(VLOOKUP($AB176,$AG:$AU,8))/7 -> 0.01118277955 | AD176: =VLOOKUP($AB176,$AG:$AU,9)/14 -> 0.005192391783 | AE176: =VLOOKUP($AB176,$AG:$AU,10)/28 -> 222.000575 | AG176: 2013-06-17 | AH176: 887.9911172 | AI176: 887.9967576 | AJ176: 662.0364464 | AL176: 2010-08-14 | AM176: 0.07144305772 | AN176: 0.07827945688 | AO176: 0.07269348497 | AP176: 6216.0161 | AQ176: 12432.0273 | AR176: 24753.0366 | AS176: 444.091197 | AT176: 973.172345 | AU176: 1799.384494
A177: 2010-08-11 | B177: 888.0027 | C177: 64.030175 | D177: 0.07210583369 | K177: 11.000175 | O177: 53.03 | W177: 2013-06-24 | X177: =(VLOOKUP($W177,$AG:$AU,10))/7 -> 888.0024 | Y177: =VLOOKUP($W177,$AG:$AU,11)/14 -> 888.00205 | Z177: =VLOOKUP($W177,$AG:$AU,12)/28 -> 888.00135 | AA177: 1.263226479e-05 | AB177: 2013-06-24 | AC177: =(VLOOKUP($AB177,$AG:$AU,8))/7 -> 0.01121748145 | AD177: =VLOOKUP($AB177,$AG:$AU,9)/14 -> 0.005189320693 | AE177: =VLOOKUP($AB177,$AG:$AU,10)/28 -> 222.0006 | AG177: 2013-06-24 | AH177: 887.9911825 | AI177: 887.9968607 | AJ177: 666.00075 | AL177: 2010-08-15 | AM177: 0.07160875177 | AN177: 0.07852237013 | AO177: 0.0726504897 | AP177: 6216.0168 | AQ177: 12432.0287 | AR177: 24864.0378 | AS177: 445.121204 | AT177: 976.192359 | AU177: 1806.384522
A178: 2010-08-12 | B178: 888.0028 | C178: 65.000176 | D178: 0.07319816559 | K178: 11.000176 | O178: 54 | W178: 2013-07-01 | X178: =(VLOOKUP($W178,$AG:$AU,10))/7 -> 888.0025 | Y178: =VLOOKUP($W178,$AG:$AU,11)/14 -> 888.00215 | Z178: =VLOOKUP($W178,$AG:$AU,12)/28 -> 888.00145 | AA178: 1.204994678e-05 | AB178: 2013-07-01 | AC178: =(VLOOKUP($AB178,$AG:$AU,8))/7 -> 0.01070038286 | AD178: =VLOOKUP($AB178,$AG:$AU,9)/14 -> 0.005209429551 | AE178: =VLOOKUP($AB178,$AG:$AU,10)/28 -> 222.000625 | AG178: 2013-07-01 | AH178: 887.9917996 | AI178: 887.9969406 | AJ178: 666.000825 | AL178: 2010-08-16 | AM178: 0.0719288855 | AN178: 0.07490268005 | AO178: 0.07293201371 | AP178: 6216.0175 | AQ178: 12432.0301 | AR178: 24864.0406 | AS178: 447.111211 | AT178: 931.192373 | AU178: 1813.38455
A179: 2010-08-13 | B179: 888.0029 | C179: 65.010177 | D179: 0.0732094197 | K179: 11.000177 | O179: =O178+0.01 -> 54.01 | W179: 2013-07-08 | X179: =(VLOOKUP($W179,$AG:$AU,10))/7 -> 888.0026 | Y179: =VLOOKUP($W179,$AG:$AU,11)/14 -> 888.00225 | Z179: =VLOOKUP($W179,$AG:$AU,12)/28 -> 888.00155 | AA179: 1.146762904e-05 | AB179: 2013-07-08 | AC179: =(VLOOKUP($AB179,$AG:$AU,8))/7 -> 0.0101832844 | AD179: =VLOOKUP($AB179,$AG:$AU,9)/14 -> 0.005229538405 | AE179: =VLOOKUP($AB179,$AG:$AU,10)/28 -> 222.00065 | AG179: 2013-07-08 | AH179: 887.9924167 | AI179: 887.9970205 | AJ179: 666.0009 | AL179: 2010-08-17 | AM179: 0.07224901916 | AN179: 0.0712829908 | AO179: 0.07321353767 | AP179: 6216.0182 | AQ179: 12432.0315 | AR179: 24864.0434 | AS179: 449.101218 | AT179: 886.192387 | AU179: 1820.384578
A180: 2010-08-14 | B180: 888.003 | C180: 65.020178 | D180: 0.0732206738 | K180: 11.000178 | O180: 54.02 | W180: 2013-07-15 | X180: =(VLOOKUP($W180,$AG:$AU,10))/7 -> 888.0027 | Y180: =VLOOKUP($W180,$AG:$AU,11)/14 -> 888.00235 | Z180: =VLOOKUP($W180,$AG:$AU,12)/28 -> 888.00165 | AA180: 1.150670645e-05 | AB180: 2013-07-15 | AC180: =(VLOOKUP($AB180,$AG:$AU,8))/7 -> 0.01021798639 | AD180: =VLOOKUP($AB180,$AG:$AU,9)/14 -> 0.005249647254 | AE180: =VLOOKUP($AB180,$AG:$AU,10)/28 -> 222.000675 | AG180: 2013-07-15 | AH180: 887.992482 | AI180: =Y180-AD180 -> 887.9971004 | AJ180: 666.000975 | AL180: 2010-08-18 | AM180: 0.07256915274 | AN180: 0.07152590475 | AO180: 0.07349506156 | AP180: 6216.0189 | AQ180: 12432.0329 | AR180: 24864.0462 | AS180: 451.091225 | AT180: 889.212401 | AU180: 1827.384606
A181: 2010-08-15 | B181: 777 | C181: 65.030179 | D181: 0.08369392407 | K181: 11.000179 | O181: 54.03 | W181: 2013-07-22 | X181: =(VLOOKUP($W181,$AG:$AU,10))/7 -> 872.1452143 | Y181: =VLOOKUP($W181,$AG:$AU,11)/14 -> 880.0736571 | Z181: =VLOOKUP($W181,$AG:$AU,12)/28 -> 884.0373536 | AA181: 1.186162249e-05 | AB181: 2013-07-22 | AC181: =(VLOOKUP($AB181,$AG:$AU,8))/7 -> 0.01034505728 | AD181: =VLOOKUP($AB181,$AG:$AU,9)/14 -> 0.005293387908 | AE181: =VLOOKUP($AB181,$AG:$AU,10)/28 -> 218.0363036 | AG181: 2013-07-22 | AH181: 872.1348692 | AI181: 880.0683638 | AJ181: 666.00105 | AL181: 2010-08-19 | AM181: 0.0740573317 | AN181: 0.07241540099 | AO181: 0.07410743071 | AP181: 6105.0165 | AQ181: 12321.0312 | AR181: 24753.0459 | AS181: 452.121232 | AT181: 892.232415 | AU181: 1834.384634
A182: 2010-08-16 | B182: 777.0001 | C182: 66.00018 | D182: 0.08494230567 | K182: 11.00018 | O182: 55 | W182: 2013-07-29 | X182: =(VLOOKUP($W182,$AG:$AU,10))/7 -> 856.2877286 | Y182: =VLOOKUP($W182,$AG:$AU,11)/14 -> 872.1449643 | Z182: =VLOOKUP($W182,$AG:$AU,12)/28 -> 880.0730571 | AA182: 1.224549906e-05 | AB182: 2013-07-29 | AC182: =(VLOOKUP($AB182,$AG:$AU,8))/7 -> 0.01048567057 | AD182: =VLOOKUP($AB182,$AG:$AU,9)/14 -> 0.005337522623 | AE182: =VLOOKUP($AB182,$AG:$AU,10)/28 -> 214.0719321 | AG182: 2013-07-29 | AH182: 856.2772429 | AI182: 872.1396268 | AJ182: 666.001125 | AL182: 2010-08-20 | AM182: 0.07576078925 | AN182: 0.073399694 | AO182: 0.07472531672 | AP182: 5994.0141 | AQ182: 12210.0295 | AR182: 24642.0456 | AS182: 454.111239 | AT182: 896.212429 | AU182: 1841.384662
A183: 2010-08-17 | B183: 777.0002 | C183: 66.010181 | D183: 0.08495516603 | K183: 11.000181 | O183: =O182+0.01 -> 55.01 | W183: 2013-08-05 | X183: =(VLOOKUP($W183,$AG:$AU,10))/7 -> 840.4302429 | Y183: =VLOOKUP($W183,$AG:$AU,11)/14 -> 864.2162714 | Z183: =VLOOKUP($W183,$AG:$AU,12)/28 -> 876.1087607 | AA183: 1.264693178e-05 | AB183: 2013-08-05 | AC183: =(VLOOKUP($AB183,$AG:$AU,8))/7 -> 0.01062886395 | AD183: =VLOOKUP($AB183,$AG:$AU,9)/14 -> 0.005382056747 | AE183: =VLOOKUP($AB183,$AG:$AU,10)/28 -> 210.1075607 | AG183: 2013-08-05 | AH183: 840.419614 | AI183: 864.2108894 | AJ183: 666.0012 | AL183: 2010-08-21 | AM183: 0.07752852948 | AN183: 0.07440204766 | AO183: 0.07534879445 | AP183: 5883.0117 | AQ183: 12099.0278 | AR183: 24531.0453 | AS183: 456.101246 | AT183: 900.192443 | AU183: 1848.38469
A184: 2010-08-18 | B184: 777.0003 | C184: 66.020182 | D184: 0.0849680264 | K184: 11.000182 | O184: 55.02 | W184: 2013-08-12 | X184: =(VLOOKUP($W184,$AG:$AU,10))/7 -> 824.5727571 | Y184: =VLOOKUP($W184,$AG:$AU,11)/14 -> 856.2875786 | Z184: =VLOOKUP($W184,$AG:$AU,12)/28 -> 872.1444643 | AA184: 1.305314663e-05 | AB184: 2013-08-12 | AC184: =(VLOOKUP($AB184,$AG:$AU,8))/7 -> 0.01076326911 | AD184: =VLOOKUP($AB184,$AG:$AU,9)/14 -> 0.005426995727 | AE184: =VLOOKUP($AB184,$AG:$AU,10)/28 -> 206.1431893 | AG184: 2013-08-12 | AH184: 824.5619939 | AI184: 856.2821516 | AJ184: 666.001275 | AL184: 2010-08-22 | AM184: 0.07936426107 | AN184: 0.07534288376 | AO184: 0.07597794017 | AP184: 5772.0093 | AQ184: 11988.0261 | AR184: 24420.045 | AS184: 458.091253 | AT184: 903.212457 | AU184: 1855.384718
A185: 2010-08-19 | B185: 777.0004 | C185: 66.030183 | D185: 0.08498088675 | K185: 11.000183 | O185: 55.03 | W185: 2013-08-19 | X185: =(VLOOKUP($W185,$AG:$AU,10))/7 -> 808.7152714 | Y185: =VLOOKUP($W185,$AG:$AU,11)/14 -> 848.3588857 | Z185: =VLOOKUP($W185,$AG:$AU,12)/28 -> 868.1801679 | AA185: 1.347839831e-05 | AB185: 2013-08-19 | AC185: =(VLOOKUP($AB185,$AG:$AU,8))/7 -> 0.01090018655 | AD185: =VLOOKUP($AB185,$AG:$AU,9)/14 -> 0.005472345109 | AE185: =VLOOKUP($AB185,$AG:$AU,10)/28 -> 202.1788179 | AG185: 2013-08-19 | AH185: 808.7043712 | AI185: 848.3534134 | AJ185: 666.00135 | AL185: 2010-08-23 | AM185: 0.08110240247 | AN185: 0.07630130582 | AO185: 0.07661283152 | AP185: 5661.0069 | AQ185: 11877.0244 | AR185: 24309.0447 | AS185: 459.12126 | AT185: 906.232471 | AU185: 1862.384746
A186: 2010-08-20 | B186: 777.0005 | C186: 67.000184 | D186: 0.08622926755 | K186: 11.000184 | O186: 56 | W186: 2013-08-26 | X186: =(VLOOKUP($W186,$AG:$AU,10))/7 -> 792.8577857 | Y186: =VLOOKUP($W186,$AG:$AU,11)/14 -> 840.4301929 | Z186: =VLOOKUP($W186,$AG:$AU,12)/28 -> 864.2158714 | AA186: 1.393861977e-05 | AB186: 2013-08-26 | AC186: =(VLOOKUP($AB186,$AG:$AU,8))/7 -> 0.0110513432 | AD186: =VLOOKUP($AB186,$AG:$AU,9)/14 -> 0.00551811054 | AE186: =VLOOKUP($AB186,$AG:$AU,10)/28 -> 198.2144464 | AG186: 2013-08-26 | AH186: 792.8467344 | AI186: 840.4246747 | AJ186: 666.001425 | AL186: 2010-08-24 | AM186: 0.08308304381 | AN186: 0.07735940243 | AO186: 0.07725354756 | AP186: 5550.0045 | AQ186: 11766.0227 | AR186: 24198.0444 | AS186: 461.111267 | AT186: 910.212485 | AU186: 1869.384774
A187: 2010-08-21 | B187: 777.0006 | C187: 67.010185 | D187: 0.08624212774 | K187: 11.000185 | O187: =O186+0.01 -> 56.01 | W187: 2013-09-02 | X187: =(VLOOKUP($W187,$AG:$AU,10))/7 -> 777.0003 | Y187: =VLOOKUP($W187,$AG:$AU,11)/14 -> 832.5015 | Z187: =VLOOKUP($W187,$AG:$AU,12)/28 -> 860.251575 | AA187: 1.442133172e-05 | AB187: 2013-09-02 | AC187: =(VLOOKUP($AB187,$AG:$AU,8))/7 -> 0.01120537907 | AD187: =VLOOKUP($AB187,$AG:$AU,9)/14 -> 0.005564297774 | AE187: =VLOOKUP($AB187,$AG:$AU,10)/28 -> 194.250075 | AG187: 2013-09-02 | AH187: 776.9890946 | AI187: 832.4959357 | AJ187: 666.0015 | AL187: 2010-08-25 | AM187: 0.08514452936 | AN187: 0.07843765352 | AO187: 0.07790016883 | AP187: 5439.0021 | AQ187: 11655.021 | AR187: 24087.0441 | AS187: 463.101274 | AT187: 914.192499 | AU187: 1876.384802
A188: 2010-08-22 | B188: 777.0007 | C188: 67.020186 | D188: 0.08625498793 | K188: 11.000186 | O188: 56.02 | W188: 2013-09-09 | X188: =(VLOOKUP($W188,$AG:$AU,10))/7 -> 777.0004 | Y188: =VLOOKUP($W188,$AG:$AU,11)/14 -> 824.5728071 | Z188: =VLOOKUP($W188,$AG:$AU,12)/28 -> 856.2872786 | AA188: 1.460809701e-05 | AB188: 2013-09-09 | AC188: =(VLOOKUP($AB188,$AG:$AU,8))/7 -> 0.01135049722 | AD188: =VLOOKUP($AB188,$AG:$AU,9)/14 -> 0.005610912667 | AE188: =VLOOKUP($AB188,$AG:$AU,10)/28 -> 194.2501 | AG188: 2013-09-09 | AH188: 776.9890495 | AI188: 824.5671962 | AJ188: 662.0371786 | AL188: 2010-08-26 | AM188: 0.08551039558 | AN188: 0.07945348056 | AO188: 0.07855277734 | AP188: 5439.0028 | AQ188: 11544.0193 | AR188: 23976.0438 | AS188: 465.091281 | AT188: 917.212513 | AU188: 1883.38483
A189: 2010-08-23 | B189: 777.0008 | C189: 67.030187 | D189: 0.08626784812 | K189: 11.000187 | O189: 56.03 | W189: 2013-09-16 | X189: =(VLOOKUP($W189,$AG:$AU,10))/7 -> 777.0005 | Y189: =VLOOKUP($W189,$AG:$AU,11)/14 -> 816.6441143 | Z189: =VLOOKUP($W189,$AG:$AU,12)/28 -> 852.3229821 | AA189: 1.479848885e-05 | AB189: 2013-09-16 | AC189: =(VLOOKUP($AB189,$AG:$AU,8))/7 -> 0.01149843324 | AD189: =VLOOKUP($AB189,$AG:$AU,9)/14 -> 0.005657961187 | AE189: =VLOOKUP($AB189,$AG:$AU,10)/28 -> 194.250125 | AG189: 2013-09-16 | AH189: 776.9890016 | AI189: 816.6384563 | AJ189: 658.0728571 | AL189: 2010-08-27 | AM189: 0.08569975879 | AN189: 0.08048903266 | AO189: 0.07921145662 | AP189: 5439.0035 | AQ189: 11433.0176 | AR189: 23865.0435 | AS189: 466.121288 | AT189: 920.232527 | AU189: 1890.384858
A190: 2010-08-24 | B190: 777.0009 | C190: 68.000188 | D190: 0.0875162281 | K190: 11.000188 | O190: 57 | W190: 2013-09-23 | X190: =(VLOOKUP($W190,$AG:$AU,10))/7 -> 777.0006 | Y190: =VLOOKUP($W190,$AG:$AU,11)/14 -> 808.7154214 | Z190: =VLOOKUP($W190,$AG:$AU,12)/28 -> 848.3586857 | AA190: 1.500820326e-05 | AB190: 2013-09-23 | AC190: =(VLOOKUP($AB190,$AG:$AU,8))/7 -> 0.01166138293 | AD190: =VLOOKUP($AB190,$AG:$AU,9)/14 -> 0.005705449414 | AE190: =VLOOKUP($AB190,$AG:$AU,10)/28 -> 194.25015 | AG190: 2013-09-23 | AH190: 776.9889386 | AI190: 808.709716 | AJ190: 654.1085357 | AL190: 2010-08-28 | AM190: 0.08606562484 | AN190: 0.08162968054 | AO190: 0.0798762918 | AP190: 5439.0042 | AQ190: 11322.0159 | AR190: 23754.0432 | AS190: 468.111295 | AT190: 924.212541 | AU190: 1897.384886
A191: 2010-08-25 | B191: 777.001 | C191: 68.010189 | D191: 0.08752908812 | K191: 11.000189 | O191: =O190+0.01 -> 57.01 | W191: 2013-09-30 | X191: =(VLOOKUP($W191,$AG:$AU,10))/7 -> 777.0007 | Y191: =VLOOKUP($W191,$AG:$AU,11)/14 -> 800.7867286 | Z191: =VLOOKUP($W191,$AG:$AU,12)/28 -> 844.3943893 | AA191: 1.522207046e-05 | AB191: 2013-09-30 | AC191: =(VLOOKUP($AB191,$AG:$AU,8))/7 -> 0.0118275594 | AD191: =VLOOKUP($AB191,$AG:$AU,9)/14 -> 0.00575338354 | AE191: =VLOOKUP($AB191,$AG:$AU,10)/28 -> 194.250175 | AG191: 2013-09-30 | AH191: 776.9888724 | AI191: 800.7809752 | AJ191: 650.1442143 | AL191: 2010-08-29 | AM191: 0.0864314908 | AN191: 0.08279291583 | AO191: 0.08054736956 | AP191: 5439.0049 | AQ191: 11211.0142 | AR191: 23643.0429 | AS191: 470.101302 | AT191: 928.192555 | AU191: 1904.384914
A192: 2010-08-26 | B192: 777.0011 | C192: 68.02019 | D192: 0.08754194814 | K192: 11.00019 | O192: 57.02 | W192: 2013-10-07 | X192: =(VLOOKUP($W192,$AG:$AU,10))/7 -> 777.0008 | Y192: =VLOOKUP($W192,$AG:$AU,11)/14 -> 792.8580357 | Z192: =VLOOKUP($W192,$AG:$AU,12)/28 -> 840.4300929 | AA192: 1.542431392e-05 | AB192: 2013-10-07 | AC192: =(VLOOKUP($AB192,$AG:$AU,8))/7 -> 0.01198470425 | AD192: =VLOOKUP($AB192,$AG:$AU,9)/14 -> 0.005653097213 | AE192: =VLOOKUP($AB192,$AG:$AU,10)/28 -> 194.2502 | AG192: 2013-10-07 | AH192: 776.9888153 | AI192: 792.8523826 | AJ192: 646.1798929 | AL192: 2010-08-30 | AM192: 0.08679735667 | AN192: 0.08389292976 | AO192: 0.07914336098 | AP192: 5439.0056 | AQ192: 11100.0125 | AR192: 23532.0426 | AS192: 472.091309 | AT192: 931.212569 | AU192: 1862.404942
A193: 2010-08-27 | B193: 777.0012 | C193: 68.030191 | D193: 0.08755480815 | K193: 11.000191 | O193: 57.03 | W193: 2013-10-14 | X193: =(VLOOKUP($W193,$AG:$AU,10))/7 -> 777.0009 | Y193: =VLOOKUP($W193,$AG:$AU,11)/14 -> 784.9293429 | Z193: =VLOOKUP($W193,$AG:$AU,12)/28 -> 836.4657964 | AA193: 1.563064314e-05 | AB193: 2013-10-14 | AC193: =(VLOOKUP($AB193,$AG:$AU,8))/7 -> 0.01214502379 | AD193: =VLOOKUP($AB193,$AG:$AU,9)/14 -> 0.005551860303 | AE193: =VLOOKUP($AB193,$AG:$AU,10)/28 -> 194.250225 | AG193: 2013-10-14 | AH193: 776.988755 | AI193: 784.923791 | AJ193: 642.2155714 | AL193: 2010-08-31 | AM193: 0.08698671961 | AN193: 0.08501516652 | AO193: 0.07772604424 | AP193: 5439.0063 | AQ193: 10989.0108 | AR193: 23421.0423 | AS193: 473.121316 | AT193: 934.232583 | AU193: 1820.42497
A194: 2010-08-28 | B194: 777.0013 | C194: =SUM(K194:Q194) -> 69.000192 | D194: 0.08880318733 | K194: 11.000192 | O194: 58 | W194: 2013-10-21 | X194: =(VLOOKUP($W194,$AG:$AU,10))/7 -> 777.001 | Y194: =VLOOKUP($W194,$AG:$AU,11)/14 -> 777.00065 | Z194: =VLOOKUP($W194,$AG:$AU,12)/28 -> 832.5015 | AA194: 1.585740887e-05 | AB194: 2013-10-21 | AC194: =(VLOOKUP($AB194,$AG:$AU,8))/7 -> 0.01232122255 | AD194: =VLOOKUP($AB194,$AG:$AU,9)/14 -> 0.005599747825 | AE194: =VLOOKUP($AB194,$AG:$AU,10)/28 -> 194.25025 | AG194: 2013-10-21 | AH194: 776.9886788 | AI194: 776.9950503 | AJ194: 638.25125 | AL194: 2010-09-01 | AM194: 0.08735258532 | AN194: 0.08624855784 | AO194: 0.07839646956 | AP194: 5439.007 | AQ194: 10878.0091 | AR194: 23310.042 | AS194: 475.111323 | AT194: 938.212597 | AU194: 1827.424998
A195: 2010-08-29 | B195: 777.0014 | C195: 69.010193 | D195: =C195/B195 -> 0.08881604718 | K195: 11.000193 | O195: =O194+0.01 -> 58.01 | W195: 2013-10-28 | X195: =(VLOOKUP($W195,$AG:$AU,10))/7 -> 777.0011 | Y195: =VLOOKUP($W195,$AG:$AU,11)/14 -> 777.00075 | Z195: =VLOOKUP($W195,$AG:$AU,12)/28 -> 828.5372036 | AA195: 1.592467386e-05 | AB195: 2013-10-28 | AC195: =(VLOOKUP($AB195,$AG:$AU,8))/7 -> 0.01237348911 | AD195: =VLOOKUP($AB195,$AG:$AU,9)/14 -> 0.005648093602 | AE195: =VLOOKUP($AB195,$AG:$AU,10)/28 -> 194.250275 | AG195: 2013-10-28 | AH195: 776.9887265 | AI195: 776.9951019 | AJ195: 634.2869286 | AL195: 2010-09-02 | AM195: 0.08771845092 | AN195: 0.08661442375 | AO195: 0.07907331043 | AP195: 5439.0077 | AQ195: 10878.0105 | AR195: 23199.0417 | AS195: 477.10133 | AT195: 942.192611 | AU195: 1834.425026
A196: 2010-08-30 | B196: =B195+0.0001 -> 777.0015 | C196: 122.000194 | D196: 0.1570141036 | K196: =K195+0.000001 -> 11.000194 | O196: 111 | W196: 2013-11-04 | X196: =(VLOOKUP($W196,$AG:$AU,10))/7 -> 777.0012 | Y196: =VLOOKUP($W196,$AG:$AU,11)/14 -> 777.00085 | Z196: =VLOOKUP($W196,$AG:$AU,12)/28 -> 824.5729071 | AA196: 1.687116597e-05 | AB196: 2013-11-04 | AC196: =(VLOOKUP($AB196,$AG:$AU,8))/7 -> 0.0131089162 | AD196: =VLOOKUP($AB196,$AG:$AU,9)/14 -> 0.005860810987 | AE196: =VLOOKUP($AB196,$AG:$AU,10)/28 -> 194.2503 | AG196: 2013-11-04 | AH196: =X196-AC196 -> 776.9880911 | AI196: =Y196-AD196 -> 776.9949892 | AJ196: 630.3226071 | AL196: 2010-09-03 | AM196: 0.09782506256 | AN196: 0.09176241341 | AO196: 0.08205135382 | AP196: 5439.0084 | AQ196: 10878.0119 | AR196: 23088.0414 | AS196: 532.071337 | AT196: 998.192625 | AU196: 1894.405054
A197: 2010-08-31 | B197: 777.0016 | C197: 122.010195 | D197: 0.1570269546 | K197: 11.000195 | O197: 111.01 | W197: =W196+7 -> 2013-11-11 | X197: =(VLOOKUP($W197,$AG:$AU,10))/7 -> 777.0013 | Y197: =VLOOKUP($W197,$AG:$AU,11)/14 -> 777.00095 | Z197: =VLOOKUP($W197,$AG:$AU,12)/28 -> 820.6086107 | AA197: 1.781765758e-05 | AB197: =AB196+7 -> 2013-11-11 | AC197: =(VLOOKUP($AB197,$AG:$AU,8))/7 -> 0.01384434311 | AD197: =VLOOKUP($AB197,$AG:$AU,9)/14 -> 0.006075583615 | AE197: =VLOOKUP($AB197,$AG:$AU,10)/28 -> 194.250325 | AG197: =AG196+7 -> 2013-11-11 | AH197: 776.9874557 | AI197: 776.9948744 | AJ197: 626.3582857 | AL197: 2010-09-04 | AM197: 0.1077551689 | AN197: 0.09691040174 | AO197: 0.08505817061 | AP197: 5439.0091 | AQ197: 10878.0133 | AR197: 22977.0411 | AS197: 586.081344 | AT197: 1054.192639 | AU197: 1954.385082
A198: 2010-09-01 | B198: 777.0017 | C198: 70.000196 | D198: 0.09009014523 | K198: 11.000196 | O198: 59 | W198: 2013-11-18 | X198: =(VLOOKUP($W198,$AG:$AU,10))/7 -> 777.0014 | Y198: =VLOOKUP($W198,$AG:$AU,11)/14 -> 777.00105 | Z198: =VLOOKUP($W198,$AG:$AU,12)/28 -> 816.6443143 | AA198: 1.788492202e-05 | AB198: 2013-11-18 | AC198: =(VLOOKUP($AB198,$AG:$AU,8))/7 -> 0.01389660945 | AD198: =VLOOKUP($AB198,$AG:$AU,9)/14 -> 0.006126943342 | AE198: =VLOOKUP($AB198,$AG:$AU,10)/28 -> 194.25035 | AG198: 2013-11-18 | AH198: 776.9875034 | AI198: 776.9949231 | AJ198: 622.3939643 | AL198: 2010-09-05 | AM198: 0.1081210317 | AN198: 0.09727626614 | AO198: 0.08577720678 | AP198: 5439.0098 | AQ198: 10878.0147 | AR198: 22866.0408 | AS198: 588.071351 | AT198: 1058.172653 | AU198: 1961.38511
A199: 2010-09-02 | B199: 777.0018 | C199: 70.010197 | D199: 0.09010300491 | K199: 11.000197 | O199: =O198+0.01 -> 59.01 | W199: 2013-11-25 | X199: =(VLOOKUP($W199,$AG:$AU,10))/7 -> 777.0015 | Y199: =VLOOKUP($W199,$AG:$AU,11)/14 -> 777.00115 | Z199: =VLOOKUP($W199,$AG:$AU,12)/28 -> 812.6800179 | AA199: 1.795218642e-05 | AB199: 2013-11-25 | AC199: =(VLOOKUP($AB199,$AG:$AU,8))/7 -> 0.01394887578 | AD199: =VLOOKUP($AB199,$AG:$AU,9)/14 -> 0.006178804139 | AE199: =VLOOKUP($AB199,$AG:$AU,10)/28 -> 194.250375 | AG199: 2013-11-25 | AH199: 776.9875511 | AI199: 776.9949712 | AJ199: 618.4296429 | AL199: 2010-09-06 | AM199: 0.1084868944 | AN199: 0.09764213044 | AO199: 0.08650325795 | AP199: 5439.0105 | AQ199: 10878.0161 | AR199: 22755.0405 | AS199: 590.061358 | AT199: 1062.152667 | AU199: 1968.385138
A200: 2010-09-03 | B200: 777.0019 | C200: 70.020198 | D200: 0.09011586458 | K200: 11.000198 | O200: 59.02 | W200: 2013-12-02 | X200: =(VLOOKUP($W200,$AG:$AU,10))/7 -> 777.0016 | Y200: =VLOOKUP($W200,$AG:$AU,11)/14 -> 777.00125 | Z200: =VLOOKUP($W200,$AG:$AU,12)/28 -> 808.7157214 | AA200: 1.800322516e-05 | AB200: 2013-12-02 | AC200: =(VLOOKUP($AB200,$AG:$AU,8))/7 -> 0.01398853475 | AD200: =VLOOKUP($AB200,$AG:$AU,9)/14 -> 0.006231173376 | AE200: =VLOOKUP($AB200,$AG:$AU,10)/28 -> 194.2504 | AG200: 2013-12-02 | AH200: 776.9876115 | AI200: 776.9950188 | AJ200: 614.4653214 | AL200: 2010-09-07 | AM200: 0.1088527571 | AN200: 0.09791974328 | AO200: 0.08723642727 | AP200: 5439.0112 | AQ200: 10878.0175 | AR200: 22644.0402 | AS200: 592.051365 | AT200: 1065.172681 | AU200: 1975.385166
... 925 more rows

Sheet C R
B1: Date | C1: 1-week ratio | D1: 2-week ratio | E1: 4-week ratio | F1: Ave Rev | G1: Ave Cost | H1: Profit
B2: 2010-02-21 | C2: =VLOOKUP(B2,Data!AL:AU,2) ->  | D2: =VLOOKUP(B2,Data!AL:AU,3) ->  | E2: =VLOOKUP(B2,Data!AL:AU,4) ->  | F2: =VLOOKUP(B2,Data!AL:AU,5) ->  | G2: =VLOOKUP(B2,Data!AL:AU,8) ->  | H2: =F2-G2 -> 
B3: =B2+7 -> 2010-02-28 | C3: =VLOOKUP(B3,Data!AL:AU,2) -> 0.03618711232 | D3: =VLOOKUP(B3,Data!AL:AU,3) -> 0 | E3: =VLOOKUP(B3,Data!AL:AU,4) -> 0 | F3: =VLOOKUP(B3,Data!AL:AU,5) -> 6082.0003 | G3: =VLOOKUP(B3,Data!AL:AU,8) -> 220.090028 | H3: =F3-G3 -> 5861.910272
B4: 2010-03-07 | C4: =VLOOKUP(B4,Data!AL:AU,2) -> 0.02898605079 | D4: =VLOOKUP(B4,Data!AL:AU,3) -> 0.03271566432 | E4: =VLOOKUP(B4,Data!AL:AU,4) -> 0 | F4: =VLOOKUP(B4,Data!AL:AU,5) -> 5661.0015 | G4: =VLOOKUP(B4,Data!AL:AU,8) -> 164.090077 | H4: 5496.911423
B5: 2010-03-14 | C5: =VLOOKUP(B5,Data!AL:AU,2) -> 0.0288405021 | D5: =VLOOKUP(B5,Data!AL:AU,3) -> 0.0289105243 | E5: =VLOOKUP(B5,Data!AL:AU,4) -> 0 | F5: =VLOOKUP(B5,Data!AL:AU,5) -> 6106.0007 | G5: =VLOOKUP(B5,Data!AL:AU,8) -> 176.100126 | H5: 5929.900574
B6: 2010-03-21 | C6: =VLOOKUP(B6,Data!AL:AU,2) -> 0.03492278055 | D6: =VLOOKUP(B6,Data!AL:AU,3) -> 0.03190879097 | E6: =VLOOKUP(B6,Data!AL:AU,4) -> 0.03230252096 | F6: =VLOOKUP(B6,Data!AL:AU,5) -> 6216.0049 | G6: =VLOOKUP(B6,Data!AL:AU,8) -> 217.080175 | H6: 5998.924725
B7: 2010-03-28 | C7: =VLOOKUP(B7,Data!AL:AU,2) -> 0.03535066372 | D7: =VLOOKUP(B7,Data!AL:AU,3) -> 0.03512672484 | E7: =VLOOKUP(B7,Data!AL:AU,4) -> 0.0320330853 | F7: =VLOOKUP(B7,Data!AL:AU,5) -> 5661.0033 | G7: =VLOOKUP(B7,Data!AL:AU,8) -> 200.120224 | H7: 5460.883076
B8: 2010-04-04 | C8: =VLOOKUP(B8,Data!AL:AU,2) -> 0.0391781676 | D8: =VLOOKUP(B8,Data!AL:AU,3) -> 0.03722614105 | E8: =VLOOKUP(B8,Data!AL:AU,4) -> 0.03442875496 | F8: =VLOOKUP(B8,Data!AL:AU,5) -> 5439.0056 | G8: =VLOOKUP(B8,Data!AL:AU,8) -> 213.090273 | H8: 5225.915327
B9: 2010-04-11 | C9: =VLOOKUP(B9,Data!AL:AU,2) -> 0.04138626355 | D9: =VLOOKUP(B9,Data!AL:AU,3) -> 0.04028221607 | E9: =VLOOKUP(B9,Data!AL:AU,4) -> 0.03759130215 | F9: =VLOOKUP(B9,Data!AL:AU,5) -> 5439.0105 | G9: =VLOOKUP(B9,Data!AL:AU,8) -> 225.100322 | H9: 5213.910178
B10: 2010-04-18 | C10: =VLOOKUP(B10,Data!AL:AU,2) -> 0.03390680678 | D10: =VLOOKUP(B10,Data!AL:AU,3) -> 0.03717907212 | E10: =VLOOKUP(B10,Data!AL:AU,4) -> 0.03720127444 | F10: =VLOOKUP(B10,Data!AL:AU,5) -> 6993.0021 | G10: =VLOOKUP(B10,Data!AL:AU,8) -> 237.110371 | H10: 6755.891729
B11: 2010-04-25 | C11: =VLOOKUP(B11,Data!AL:AU,2) -> 0.04319893002 | D11: =VLOOKUP(B11,Data!AL:AU,3) -> 0.03855287002 | E11: =VLOOKUP(B11,Data!AL:AU,4) -> 0.03930945927 | F11: =VLOOKUP(B11,Data!AL:AU,5) -> 6993.007 | G11: =VLOOKUP(B11,Data!AL:AU,8) -> 302.09042 | H11: 6690.91658
B12: 2010-05-02 | C12: =VLOOKUP(B12,Data!AL:AU,2) -> 0.04919111808 | D12: =VLOOKUP(B12,Data!AL:AU,3) -> 0.04579014608 | E12: =VLOOKUP(B12,Data!AL:AU,4) -> 0.04146530148 | F12: =VLOOKUP(B12,Data!AL:AU,5) -> 5328.0039 | G12: =VLOOKUP(B12,Data!AL:AU,8) -> 262.090469 | H12: 5065.913431
B13: 2010-05-09 | C13: =VLOOKUP(B13,Data!AL:AU,2) -> 0.05879454928 | D13: =VLOOKUP(B13,Data!AL:AU,3) -> 0.05367272043 | E13: =VLOOKUP(B13,Data!AL:AU,4) -> 0.0448528088 | F13: =VLOOKUP(B13,Data!AL:AU,5) -> 4662.0056 | G13: =VLOOKUP(B13,Data!AL:AU,8) -> 274.100518 | H13: 4387.905082
B14: 2010-05-16 | C14: =VLOOKUP(B14,Data!AL:AU,2) -> 0.06137063977 | D14: =VLOOKUP(B14,Data!AL:AU,3) -> 0.0600825952 | E14: =VLOOKUP(B14,Data!AL:AU,4) -> 0.05194689635 | F14: =VLOOKUP(B14,Data!AL:AU,5) -> 4662.0105 | G14: =VLOOKUP(B14,Data!AL:AU,8) -> 286.110567 | H14: 4375.899933
B15: 2010-05-23 | C15: =VLOOKUP(B15,Data!AL:AU,2) -> 0.06245962922 | D15: =VLOOKUP(B15,Data!AL:AU,3) -> 0.06192154044 | E15: =VLOOKUP(B15,Data!AL:AU,4) -> 0.0576792933 | F15: =VLOOKUP(B15,Data!AL:AU,5) -> 4773.0129 | G15: =VLOOKUP(B15,Data!AL:AU,8) -> 298.120616 | H15: 4474.892284
B16: 2010-05-30 | C16: =VLOOKUP(B16,Data!AL:AU,2) -> 0.05719626859 | D16: =VLOOKUP(B16,Data!AL:AU,3) -> 0.05965632045 | E16: =VLOOKUP(B16,Data!AL:AU,4) -> 0.05985976978 | F16: =VLOOKUP(B16,Data!AL:AU,5) -> 5439.0028 | G16: =VLOOKUP(B16,Data!AL:AU,8) -> 311.090665 | H16: 5127.912135
B17: 2010-06-06 | C17: =VLOOKUP(B17,Data!AL:AU,2) -> 0.05793349291 | D17: =VLOOKUP(B17,Data!AL:AU,3) -> 0.05756488091 | E17: =VLOOKUP(B17,Data!AL:AU,4) -> 0.05958846758 | F17: =VLOOKUP(B17,Data!AL:AU,5) -> 5439.0077 | G17: =VLOOKUP(B17,Data!AL:AU,8) -> 315.100714 | H17: 5123.906986
B18: 2010-06-13 | C18: =VLOOKUP(B18,Data!AL:AU,2) -> 0.06161242631 | D18: =VLOOKUP(B18,Data!AL:AU,3) -> 0.05977296043 | E18: =VLOOKUP(B18,Data!AL:AU,4) -> 0.05971648213 | F18: =VLOOKUP(B18,Data!AL:AU,5) -> 5439.0126 | G18: =VLOOKUP(B18,Data!AL:AU,8) -> 335.110763 | H18: 5103.901837
B19: 2010-06-20 | C19: =VLOOKUP(B19,Data!AL:AU,2) -> 0.1049335116 | D19: =VLOOKUP(B19,Data!AL:AU,3) -> 0.07799588781 | E19: =VLOOKUP(B19,Data!AL:AU,4) -> 0.06667113039 | F19: =VLOOKUP(B19,Data!AL:AU,5) -> 3308.0072 | G19: =VLOOKUP(B19,Data!AL:AU,8) -> 347.120812 | H19: 2960.886388
B20: 2010-06-27 | C20: =VLOOKUP(B20,Data!AL:AU,2) -> 0.7677774762 | D20: =VLOOKUP(B20,Data!AL:AU,3) -> 0.1872410745 | E20: =VLOOKUP(B20,Data!AL:AU,4) -> 0.09262505724 | F20: =VLOOKUP(B20,Data!AL:AU,5) -> 469.0042 | G20: =VLOOKUP(B20,Data!AL:AU,8) -> 360.090861 | H20: 108.913339
B21: 2010-07-04 | C21: =VLOOKUP(B21,Data!AL:AU,2) -> 0.2213179248 | D21: =VLOOKUP(B21,Data!AL:AU,3) -> 0.3300077913 | E21: =VLOOKUP(B21,Data!AL:AU,4) -> 0.1315073739 | F21: =VLOOKUP(B21,Data!AL:AU,5) -> 1889.0061 | G21: =VLOOKUP(B21,Data!AL:AU,8) -> 418.07091 | H21: =F21-G21 -> 1470.93519
B22: 2010-07-11 | C22: =VLOOKUP(B22,Data!AL:AU,2) -> 0.07062156864 | D22: =VLOOKUP(B22,Data!AL:AU,3) -> 0.1094679064 | E22: =VLOOKUP(B22,Data!AL:AU,4) -> 0.1359199178 | F22: =VLOOKUP(B22,Data!AL:AU,5) -> 5439.0035 | G22: =VLOOKUP(B22,Data!AL:AU,8) -> 384.110959 | H22: =F22-G22 -> 5054.892541
B23: 2010-07-18 | C23: =VLOOKUP(B23,Data!AL:AU,2) -> 0.07282963711 | D23: =VLOOKUP(B23,Data!AL:AU,3) -> 0.07172560337 | E23: =VLOOKUP(B23,Data!AL:AU,4) -> 0.1177388278 | F23: =VLOOKUP(B23,Data!AL:AU,5) -> 5439.0084 | G23: =VLOOKUP(B23,Data!AL:AU,8) -> 396.121008 | H23: =F23-G23 -> 5042.887392
B24: 2010-07-25 | C24: =VLOOKUP(B24,Data!AL:AU,2) -> 0.06581256737 | D24: =VLOOKUP(B24,Data!AL:AU,3) -> 0.06908720202 | E24: =VLOOKUP(B24,Data!AL:AU,4) -> 0.08467535332 | F24: =VLOOKUP(B24,Data!AL:AU,5) -> 6216.0021 | G24: =VLOOKUP(B24,Data!AL:AU,8) -> 409.091057 | H24: =F24-G24 -> 5806.911043
B25: 2010-08-01 | C25: =VLOOKUP(B25,Data!AL:AU,2) -> 0.06774463188 | D25: =VLOOKUP(B25,Data!AL:AU,3) -> 0.06677860001 | E25: =VLOOKUP(B25,Data!AL:AU,4) -> 0.06908720202 | F25: =VLOOKUP(B25,Data!AL:AU,5) -> 6216.007 | G25: =VLOOKUP(B25,Data!AL:AU,8) -> 421.101106 | H25: =F25-G25 -> 5794.905894
B26: 2010-08-08 | C26: =VLOOKUP(B26,Data!AL:AU,2) -> 0.08543599394 | D26: =VLOOKUP(B26,Data!AL:AU,3) -> 0.0765903164 | E26: =VLOOKUP(B26,Data!AL:AU,4) -> 0.07295977834 | F26: =VLOOKUP(B26,Data!AL:AU,5) -> 6216.0119 | G26: =VLOOKUP(B26,Data!AL:AU,8) -> 531.071155 | H26: =F26-G26 -> 5684.940745
B27: 2010-08-15 | C27: =VLOOKUP(B27,Data!AL:AU,2) -> 0.07160875177 | D27: =VLOOKUP(B27,Data!AL:AU,3) -> 0.07852237013 | E27: =VLOOKUP(B27,Data!AL:AU,4) -> 0.0726504897 | F27: =VLOOKUP(B27,Data!AL:AU,5) -> 6216.0168 | G27: =VLOOKUP(B27,Data!AL:AU,8) -> 445.121204 | H27: =F27-G27 -> 5770.895596
B28: 2010-08-22 | C28: =VLOOKUP(B28,Data!AL:AU,2) -> 0.07936426107 | D28: =VLOOKUP(B28,Data!AL:AU,3) -> 0.07534288376 | E28: =VLOOKUP(B28,Data!AL:AU,4) -> 0.07597794017 | F28: =VLOOKUP(B28,Data!AL:AU,5) -> 5772.0093 | G28: =VLOOKUP(B28,Data!AL:AU,8) -> 458.091253 | H28: =F28-G28 -> 5313.918047
B29: 2010-08-29 | C29: =VLOOKUP(B29,Data!AL:AU,2) -> 0.0864314908 | D29: =VLOOKUP(B29,Data!AL:AU,3) -> 0.08279291583 | E29: =VLOOKUP(B29,Data!AL:AU,4) -> 0.08054736956 | F29: =VLOOKUP(B29,Data!AL:AU,5) -> 5439.0049 | G29: =VLOOKUP(B29,Data!AL:AU,8) -> 470.101302 | H29: =F29-G29 -> 4968.903598
B30: 2010-09-05 | C30: =VLOOKUP(B30,Data!AL:AU,2) -> 0.1081210317 | D30: =VLOOKUP(B30,Data!AL:AU,3) -> 0.09727626614 | E30: =VLOOKUP(B30,Data!AL:AU,4) -> 0.08577720678 | F30: =VLOOKUP(B30,Data!AL:AU,5) -> 5439.0098 | G30: =VLOOKUP(B30,Data!AL:AU,8) -> 588.071351 | H30: =F30-G30 -> 4850.938449
B31: 2010-09-12 | C31: =VLOOKUP(B31,Data!AL:AU,2) -> 0.09084759414 | D31: =VLOOKUP(B31,Data!AL:AU,3) -> 0.09948430903 | E31: =VLOOKUP(B31,Data!AL:AU,4) -> 0.09101280202 | F31: =VLOOKUP(B31,Data!AL:AU,5) -> 5439.0147 | G31: =VLOOKUP(B31,Data!AL:AU,8) -> 494.1214 | H31: =F31-G31 -> 4944.8933
B32: 2010-09-19 | C32: =VLOOKUP(B32,Data!AL:AU,2) -> 0.09517452677 | D32: =VLOOKUP(B32,Data!AL:AU,3) -> 0.09298875711 | E32: =VLOOKUP(B32,Data!AL:AU,4) -> 0.09514350358 | F32: =VLOOKUP(B32,Data!AL:AU,5) -> 5328.0165 | G32: =VLOOKUP(B32,Data!AL:AU,8) -> 507.091449 | H32: =F32-G32 -> 4820.925051
B33: 2010-09-26 | C33: =VLOOKUP(B33,Data!AL:AU,2) -> 0.0933293086 | D33: =VLOOKUP(B33,Data!AL:AU,3) -> 0.0943134261 | E33: =VLOOKUP(B33,Data!AL:AU,4) -> 0.09700888676 | F33: =VLOOKUP(B33,Data!AL:AU,5) -> 4662.0028 | G33: =VLOOKUP(B33,Data!AL:AU,8) -> 435.101498 | H33: =F33-G33 -> 4226.901302
B34: 2010-10-03 | C34: =VLOOKUP(B34,Data!AL:AU,2) -> 0.09590536433 | D34: =VLOOKUP(B34,Data!AL:AU,3) -> 0.09461733714 | E34: =VLOOKUP(B34,Data!AL:AU,4) -> 0.09374456149 | F34: =VLOOKUP(B34,Data!AL:AU,5) -> 4662.0077 | G34: =VLOOKUP(B34,Data!AL:AU,8) -> 447.111547 | H34: =F34-G34 -> 4214.896153
B35: 2010-10-10 | C35: =VLOOKUP(B35,Data!AL:AU,2) -> 0.116499384 | D35: =VLOOKUP(B35,Data!AL:AU,3) -> 0.1062023796 | E35: =VLOOKUP(B35,Data!AL:AU,4) -> 0.1000529216 | F35: =VLOOKUP(B35,Data!AL:AU,5) -> 4662.0126 | G35: =VLOOKUP(B35,Data!AL:AU,8) -> 543.121596 | H35: =F35-G35 -> 4118.891004
B36: 2010-10-17 | C36: =VLOOKUP(B36,Data!AL:AU,2) -> 0.1282860146 | D36: =VLOOKUP(B36,Data!AL:AU,3) -> 0.1223927024 | E36: =VLOOKUP(B36,Data!AL:AU,4) -> 0.1085050344 | F36: =VLOOKUP(B36,Data!AL:AU,5) -> 4662.0175 | G36: =VLOOKUP(B36,Data!AL:AU,8) -> 598.071645 | H36: =F36-G36 -> 4063.945855
B37: 2010-10-24 | C37: =VLOOKUP(B37,Data!AL:AU,2) -> 0.3796385031 | D37: =VLOOKUP(B37,Data!AL:AU,3) -> 0.1927179194 | E37: =VLOOKUP(B37,Data!AL:AU,4) -> 0.1409850689 | F37: =VLOOKUP(B37,Data!AL:AU,5) -> 1607.0069 | G37: =VLOOKUP(B37,Data!AL:AU,8) -> 610.081694 | H37: =F37-G37 -> 996.925206
B38: 2010-10-31 | C38: =VLOOKUP(B38,Data!AL:AU,2) -> 1.506761832 | D38: =VLOOKUP(B38,Data!AL:AU,3) -> 0.5974829159 | E38: =VLOOKUP(B38,Data!AL:AU,4) -> 0.2060249117 | F38: =VLOOKUP(B38,Data!AL:AU,5) -> 385.0056 | G38: =VLOOKUP(B38,Data!AL:AU,8) -> 580.111743 | H38: =F38-G38 -> -195.106143
B39: 2010-11-07 | C39: =VLOOKUP(B39,Data!AL:AU,2) -> 0.1484013215 | D39: =VLOOKUP(B39,Data!AL:AU,3) -> 0.2679385364 | E39: =VLOOKUP(B39,Data!AL:AU,4) -> 0.2236357931 | F39: =VLOOKUP(B39,Data!AL:AU,5) -> 3990.0035 | G39: =VLOOKUP(B39,Data!AL:AU,8) -> 592.121792 | H39: =F39-G39 -> 3397.881708
B40: 2010-11-14 | C40: =VLOOKUP(B40,Data!AL:AU,2) -> 0.1113938176 | D40: =VLOOKUP(B40,Data!AL:AU,3) -> 0.1270656418 | E40: =VLOOKUP(B40,Data!AL:AU,4) -> 0.2091644079 | F40: =VLOOKUP(B40,Data!AL:AU,5) -> 5432.0056 | G40: =VLOOKUP(B40,Data!AL:AU,8) -> 605.091841 | H40: =F40-G40 -> 4826.913759
B41: 2010-11-21 | C41: =VLOOKUP(B41,Data!AL:AU,2) -> 0.1404768805 | D41: =VLOOKUP(B41,Data!AL:AU,3) -> 0.1259353556 | E41: =VLOOKUP(B41,Data!AL:AU,4) -> 0.1667033969 | F41: =VLOOKUP(B41,Data!AL:AU,5) -> 5432.0105 | G41: =VLOOKUP(B41,Data!AL:AU,8) -> 763.07189 | H41: =F41-G41 -> 4668.93861
B42: 2010-11-28 | C42: =VLOOKUP(B42,Data!AL:AU,2) -> 0.102477883 | D42: =VLOOKUP(B42,Data!AL:AU,3) -> 0.1203165079 | E42: =VLOOKUP(B42,Data!AL:AU,4) -> 0.1233456288 | F42: =VLOOKUP(B42,Data!AL:AU,5) -> 6139.0021 | G42: =VLOOKUP(B42,Data!AL:AU,8) -> 629.111939 | H42: =F42-G42 -> 5509.890161
B43: 2010-12-05 | C43: =VLOOKUP(B43,Data!AL:AU,2) -> 0.1044341516 | D43: =VLOOKUP(B43,Data!AL:AU,3) -> 0.1034560177 | E43: =VLOOKUP(B43,Data!AL:AU,4) -> 0.1140089355 | F43: =VLOOKUP(B43,Data!AL:AU,5) -> 6139.007 | G43: =VLOOKUP(B43,Data!AL:AU,8) -> 641.121988 | H43: =F43-G43 -> 5497.885012
B44: 2010-12-12 | C44: =VLOOKUP(B44,Data!AL:AU,2) -> 0.1651131382 | D44: =VLOOKUP(B44,Data!AL:AU,3) -> 0.135651866 | E44: =VLOOKUP(B44,Data!AL:AU,4) -> 0.1283239523 | F44: =VLOOKUP(B44,Data!AL:AU,5) -> 6505.0065 | G44: =VLOOKUP(B44,Data!AL:AU,8) -> 1074.062037 | H44: =F44-G44 -> 5430.944463
B45: 2010-12-19 | C45: =VLOOKUP(B45,Data!AL:AU,2) -> 0.09525263634 | D45: =VLOOKUP(B45,Data!AL:AU,3) -> 0.1289200432 | E45: =VLOOKUP(B45,Data!AL:AU,4) -> 0.1167906478 | F45: =VLOOKUP(B45,Data!AL:AU,5) -> 6993.0042 | G45: =VLOOKUP(B45,Data!AL:AU,8) -> 666.102086 | H45: =F45-G45 -> 6326.902114
B46: 2010-12-26 | C46: =VLOOKUP(B46,Data!AL:AU,2) -> 0.09697000609 | D46: =VLOOKUP(B46,Data!AL:AU,3) -> 0.09611132152 | E46: =VLOOKUP(B46,Data!AL:AU,4) -> 0.114885286 | F46: =VLOOKUP(B46,Data!AL:AU,5) -> 6993.0091 | G46: =VLOOKUP(B46,Data!AL:AU,8) -> 678.112135 | H46: =F46-G46 -> 6314.896965
B47: 2011-01-02 | C47: =VLOOKUP(B47,Data!AL:AU,2) -> 0.09868737343 | D47: =VLOOKUP(B47,Data!AL:AU,3) -> 0.09782869006 | E47: =VLOOKUP(B47,Data!AL:AU,4) -> 0.1130983343 | F47: =VLOOKUP(B47,Data!AL:AU,5) -> 6993.014 | G47: =VLOOKUP(B47,Data!AL:AU,8) -> 690.122184 | H47: =F47-G47 -> 6302.891816
B48: 2011-01-09 | C48: =VLOOKUP(B48,Data!AL:AU,2) -> 0.09421023702 | D48: =VLOOKUP(B48,Data!AL:AU,3) -> 0.09637602416 | E48: =VLOOKUP(B48,Data!AL:AU,4) -> 0.09624585998 | F48: =VLOOKUP(B48,Data!AL:AU,5) -> 7463.0131 | G48: =VLOOKUP(B48,Data!AL:AU,8) -> 703.092233 | H48: =F48-G48 -> 6759.920867
B49: 2011-01-16 | C49: =VLOOKUP(B49,Data!AL:AU,2) -> 0.08278559762 | D49: =VLOOKUP(B49,Data!AL:AU,3) -> 0.08808105415 | E49: =VLOOKUP(B49,Data!AL:AU,4) -> 0.09261226301 | F49: =VLOOKUP(B49,Data!AL:AU,5) -> 8638.0035 | G49: =VLOOKUP(B49,Data!AL:AU,8) -> 715.102282 | H49: =F49-G49 -> 7922.901218
B50: 2011-01-23 | C50: =VLOOKUP(B50,Data!AL:AU,2) -> 0.0863720312 | D50: =VLOOKUP(B50,Data!AL:AU,3) -> 0.08457881492 | E50: =VLOOKUP(B50,Data!AL:AU,4) -> 0.08995321826 | F50: =VLOOKUP(B50,Data!AL:AU,5) -> 8638.0084 | G50: =VLOOKUP(B50,Data!AL:AU,8) -> 746.082331 | H50: =F50-G50 -> 7891.926069
B51: 2011-01-30 | C51: =VLOOKUP(B51,Data!AL:AU,2) -> 0.08556624704 | D51: =VLOOKUP(B51,Data!AL:AU,3) -> 0.08596913901 | E51: =VLOOKUP(B51,Data!AL:AU,4) -> 0.08698792265 | F51: =VLOOKUP(B51,Data!AL:AU,5) -> 8638.0133 | G51: =VLOOKUP(B51,Data!AL:AU,8) -> 739.12238 | H51: =F51-G51 -> 7898.89092
B52: 2011-02-06 | C52: =VLOOKUP(B52,Data!AL:AU,2) -> 0.08706770599 | D52: =VLOOKUP(B52,Data!AL:AU,3) -> 0.08631697673 | E52: =VLOOKUP(B52,Data!AL:AU,4) -> 0.08544789632 | F52: =VLOOKUP(B52,Data!AL:AU,5) -> 8638.0182 | G52: =VLOOKUP(B52,Data!AL:AU,8) -> 752.092429 | H52: =F52-G52 -> 7885.925771
B53: 2011-02-13 | C53: =VLOOKUP(B53,Data!AL:AU,2) -> 0.1295966579 | D53: =VLOOKUP(B53,Data!AL:AU,3) -> 0.1043203894 | E53: =VLOOKUP(B53,Data!AL:AU,4) -> 0.09435383303 | F53: =VLOOKUP(B53,Data!AL:AU,5) -> 5896.0045 | G53: =VLOOKUP(B53,Data!AL:AU,8) -> 764.102478 | H53: =F53-G53 -> 5131.902022
B54: 2011-02-20 | C54: =VLOOKUP(B54,Data!AL:AU,2) -> 0.1423260949 | D54: =VLOOKUP(B54,Data!AL:AU,3) -> 0.1357047675 | E54: =VLOOKUP(B54,Data!AL:AU,4) -> 0.1058832384 | F54: =VLOOKUP(B54,Data!AL:AU,5) -> 5439.0063 | G54: =VLOOKUP(B54,Data!AL:AU,8) -> 774.112527 | H54: =F54-G54 -> 4664.893773
B55: 2011-02-27 | C55: =VLOOKUP(B55,Data!AL:AU,2) -> 0.1437986699 | D55: =VLOOKUP(B55,Data!AL:AU,3) -> 0.1430623827 | E55: =VLOOKUP(B55,Data!AL:AU,4) -> 0.1209044998 | F55: =VLOOKUP(B55,Data!AL:AU,5) -> 5439.0112 | G55: =VLOOKUP(B55,Data!AL:AU,8) -> 782.122576 | H55: =F55-G55 -> 4656.888624
B56: 2011-03-06 | C56: =VLOOKUP(B56,Data!AL:AU,2) -> 0.1472863125 | D56: =VLOOKUP(B56,Data!AL:AU,3) -> 0.145542492 | E56: =VLOOKUP(B56,Data!AL:AU,4) -> 0.1405224352 | F56: =VLOOKUP(B56,Data!AL:AU,5) -> 5439.0161 | G56: =VLOOKUP(B56,Data!AL:AU,8) -> 801.092625 | H56: =F56-G56 -> 4637.923475
B57: 2011-03-13 | C57: =VLOOKUP(B57,Data!AL:AU,2) -> 0.1494943068 | D57: =VLOOKUP(B57,Data!AL:AU,3) -> 0.1483903101 | E57: =VLOOKUP(B57,Data!AL:AU,4) -> 0.1457263488 | F57: =VLOOKUP(B57,Data!AL:AU,5) -> 5439.021 | G57: =VLOOKUP(B57,Data!AL:AU,8) -> 813.102674 | H57: =F57-G57 -> 4625.918326
B58: 2011-03-20 | C58: =VLOOKUP(B58,Data!AL:AU,2) -> 0.1651873652 | D58: =VLOOKUP(B58,Data!AL:AU,3) -> 0.1570069347 | E58: =VLOOKUP(B58,Data!AL:AU,4) -> 0.1511552937 | F58: =VLOOKUP(B58,Data!AL:AU,5) -> 4995.0111 | G58: =VLOOKUP(B58,Data!AL:AU,8) -> 825.112723 | H58: =F58-G58 -> 4169.898377
B59: 2011-03-27 | C59: =VLOOKUP(B59,Data!AL:AU,2) -> 0.1795628254 | D59: =VLOOKUP(B59,Data!AL:AU,3) -> 0.1721272384 | E59: =VLOOKUP(B59,Data!AL:AU,4) -> 0.1595530714 | F59: =VLOOKUP(B59,Data!AL:AU,5) -> 4662.0049 | G59: =VLOOKUP(B59,Data!AL:AU,8) -> 837.122772 | H59: =F59-G59 -> 3824.882128
B60: 2011-04-03 | C60: =VLOOKUP(B60,Data!AL:AU,2) -> 0.1823447091 | D60: =VLOOKUP(B60,Data!AL:AU,3) -> 0.180953768 | E60: =VLOOKUP(B60,Data!AL:AU,4) -> 0.1683076786 | F60: =VLOOKUP(B60,Data!AL:AU,5) -> 4662.0098 | G60: =VLOOKUP(B60,Data!AL:AU,8) -> 850.092821 | H60: =F60-G60 -> 3811.916979
B61: 2011-04-10 | C61: =VLOOKUP(B61,Data!AL:AU,2) -> 0.1531665971 | D61: =VLOOKUP(B61,Data!AL:AU,3) -> 0.1667830536 | E61: =VLOOKUP(B61,Data!AL:AU,4) -> 0.1694098561 | F61: =VLOOKUP(B61,Data!AL:AU,5) -> 5328.0081 | G61: =VLOOKUP(B61,Data!AL:AU,8) -> 816.07287 | H61: =F61-G61 -> 4511.93523
B62: 2011-04-17 | C62: =VLOOKUP(B62,Data!AL:AU,2) -> 0.1406229615 | D62: =VLOOKUP(B62,Data!AL:AU,3) -> 0.1464123344 | E62: =VLOOKUP(B62,Data!AL:AU,4) -> 0.1618457453 | F62: =VLOOKUP(B62,Data!AL:AU,5) -> 6216.0042 | G62: =VLOOKUP(B62,Data!AL:AU,8) -> 874.112919 | H62: =F62-G62 -> 5341.891281
B63: 2011-04-24 | C63: =VLOOKUP(B63,Data!AL:AU,2) -> 0.1425549663 | D63: =VLOOKUP(B63,Data!AL:AU,3) -> 0.1415889643 | E63: =VLOOKUP(B63,Data!AL:AU,4) -> 0.1528140581 | F63: =VLOOKUP(B63,Data!AL:AU,5) -> 6216.0091 | G63: =VLOOKUP(B63,Data!AL:AU,8) -> 886.122968 | H63: =F63-G63 -> 5329.886132
B64: 2011-05-01 | C64: =VLOOKUP(B64,Data!AL:AU,2) -> 0.1499985422 | D64: =VLOOKUP(B64,Data!AL:AU,3) -> 0.1462090863 | E64: =VLOOKUP(B64,Data!AL:AU,4) -> 0.146307861 | F64: =VLOOKUP(B64,Data!AL:AU,5) -> 5994.0117 | G64: =VLOOKUP(B64,Data!AL:AU,8) -> 899.093017 | H64: =F64-G64 -> 5094.918683
B65: 2011-05-08 | C65: =VLOOKUP(B65,Data!AL:AU,2) -> 0.1954316857 | D65: =VLOOKUP(B65,Data!AL:AU,3) -> 0.1698755274 | E65: =VLOOKUP(B65,Data!AL:AU,4) -> 0.1546443031 | F65: =VLOOKUP(B65,Data!AL:AU,5) -> 4662.0028 | G65: =VLOOKUP(B65,Data!AL:AU,8) -> 911.103066 | H65: =F65-G65 -> 3750.899734
B66: 2011-05-15 | C66: =VLOOKUP(B66,Data!AL:AU,2) -> 0.1653950754 | D66: =VLOOKUP(B66,Data!AL:AU,3) -> 0.1804133727 | E66: =VLOOKUP(B66,Data!AL:AU,4) -> 0.1610191848 | F66: =VLOOKUP(B66,Data!AL:AU,5) -> 4662.0077 | G66: =VLOOKUP(B66,Data!AL:AU,8) -> 771.073115 | H66: =F66-G66 -> 3890.934585
B67: 2011-05-22 | C67: =VLOOKUP(B67,Data!AL:AU,2) -> 0.2005835771 | D67: =VLOOKUP(B67,Data!AL:AU,3) -> 0.1829893355 | E67: =VLOOKUP(B67,Data!AL:AU,4) -> 0.1759953072 | F67: =VLOOKUP(B67,Data!AL:AU,5) -> 4662.0126 | G67: =VLOOKUP(B67,Data!AL:AU,8) -> 935.123164 | H67: =F67-G67 -> 3726.889436
B68: 2011-05-29 | C68: =VLOOKUP(B68,Data!AL:AU,2) -> 0.2033654342 | D68: =VLOOKUP(B68,Data!AL:AU,3) -> 0.2019745064 | E68: =VLOOKUP(B68,Data!AL:AU,4) -> 0.1911939509 | F68: =VLOOKUP(B68,Data!AL:AU,5) -> 4662.0175 | G68: =VLOOKUP(B68,Data!AL:AU,8) -> 948.093213 | H68: =F68-G68 -> 3713.924287
B69: 2011-06-05 | C69: =VLOOKUP(B69,Data!AL:AU,2) -> 0.240265817 | D69: =VLOOKUP(B69,Data!AL:AU,3) -> 0.2203963558 | E69: =VLOOKUP(B69,Data!AL:AU,4) -> 0.2010001263 | F69: =VLOOKUP(B69,Data!AL:AU,5) -> 3996.0044 | G69: =VLOOKUP(B69,Data!AL:AU,8) -> 960.103262 | H69: =F69-G69 -> 3035.901138
B70: 2011-06-12 | C70: =VLOOKUP(B70,Data!AL:AU,2) -> 0.2502218107 | D70: =VLOOKUP(B70,Data!AL:AU,3) -> 0.2451737025 | E70: =VLOOKUP(B70,Data!AL:AU,4) -> 0.2217625052 | F70: =VLOOKUP(B70,Data!AL:AU,5) -> 3885.0063 | G70: =VLOOKUP(B70,Data!AL:AU,8) -> 972.113311 | H70: =F70-G70 -> 2912.892989
B71: 2011-06-19 | C71: =VLOOKUP(B71,Data!AL:AU,2) -> 0.1961624615 | D71: =VLOOKUP(B71,Data!AL:AU,3) -> 0.2231921191 | E71: =VLOOKUP(B71,Data!AL:AU,4) -> 0.2217186761 | F71: =VLOOKUP(B71,Data!AL:AU,5) -> 3885.0112 | G71: =VLOOKUP(B71,Data!AL:AU,8) -> 762.09336 | H71: =F71-G71 -> 3122.91784
B72: 2011-06-26 | C72: =VLOOKUP(B72,Data!AL:AU,2) -> 0.179656305 | D72: =VLOOKUP(B72,Data!AL:AU,3) -> 0.1864529655 | E72: =VLOOKUP(B72,Data!AL:AU,4) -> 0.2131784238 | F72: =VLOOKUP(B72,Data!AL:AU,5) -> 5550.0051 | G72: =VLOOKUP(B72,Data!AL:AU,8) -> 997.093409 | H72: =F72-G72 -> 4552.911691
B73: 2011-07-03 | C73: =VLOOKUP(B73,Data!AL:AU,2) -> 0.1623395349 | D73: =VLOOKUP(B73,Data!AL:AU,3) -> 0.1705078228 | E73: =VLOOKUP(B73,Data!AL:AU,4) -> 0.1914618212 | F73: =VLOOKUP(B73,Data!AL:AU,5) -> 6216.0056 | G73: =VLOOKUP(B73,Data!AL:AU,8) -> 1009.103458 | H73: =F73-G73 -> 5206.902142
B74: 2011-07-10 | C74: =VLOOKUP(B74,Data!AL:AU,2) -> 0.138525105 | D74: =VLOOKUP(B74,Data!AL:AU,3) -> 0.1504323152 | E74: =VLOOKUP(B74,Data!AL:AU,4) -> 0.165974224 | F74: =VLOOKUP(B74,Data!AL:AU,5) -> 6216.0105 | G74: =VLOOKUP(B74,Data!AL:AU,8) -> 861.073507 | H74: =F74-G74 -> 5354.936993
B75: 2011-07-17 | C75: =VLOOKUP(B75,Data!AL:AU,2) -> 0.1662035065 | D75: =VLOOKUP(B75,Data!AL:AU,3) -> 0.1523643112 | E75: =VLOOKUP(B75,Data!AL:AU,4) -> 0.1611863803 | F75: =VLOOKUP(B75,Data!AL:AU,5) -> 6216.0154 | G75: =VLOOKUP(B75,Data!AL:AU,8) -> 1033.123556 | H75: =F75-G75 -> 5182.891844
B76: 2011-07-24 | C76: =VLOOKUP(B76,Data!AL:AU,2) -> 0.1682899274 | D76: =VLOOKUP(B76,Data!AL:AU,3) -> 0.1672467174 | E76: =VLOOKUP(B76,Data!AL:AU,4) -> 0.1588395229 | F76: =VLOOKUP(B76,Data!AL:AU,5) -> 6216.0203 | G76: =VLOOKUP(B76,Data!AL:AU,8) -> 1046.093605 | H76: =F76-G76 -> 5169.926695
B77: 2011-07-31 | C77: =VLOOKUP(B77,Data!AL:AU,2) -> 0.1702219055 | D77: =VLOOKUP(B77,Data!AL:AU,3) -> 0.1692559168 | E77: =VLOOKUP(B77,Data!AL:AU,4) -> 0.1608101207 | F77: =VLOOKUP(B77,Data!AL:AU,5) -> 6216.0252 | G77: =VLOOKUP(B77,Data!AL:AU,8) -> 1058.103654 | H77: =F77-G77 -> 5157.921546
B78: 2011-08-07 | C78: =VLOOKUP(B78,Data!AL:AU,2) -> 0.1565442392 | D78: =VLOOKUP(B78,Data!AL:AU,3) -> 0.1633830697 | E78: =VLOOKUP(B78,Data!AL:AU,4) -> 0.165314892 | F78: =VLOOKUP(B78,Data!AL:AU,5) -> 6216.0301 | G78: =VLOOKUP(B78,Data!AL:AU,8) -> 973.083703 | H78: =F78-G78 -> 5242.946397
B79: 2011-08-14 | C79: =VLOOKUP(B79,Data!AL:AU,2) -> 0.1839401884 | D79: =VLOOKUP(B79,Data!AL:AU,3) -> 0.1698651951 | E79: =VLOOKUP(B79,Data!AL:AU,4) -> 0.1695564207 | F79: =VLOOKUP(B79,Data!AL:AU,5) -> 5883.0197 | G79: =VLOOKUP(B79,Data!AL:AU,8) -> 1082.123752 | H79: =F79-G79 -> 4800.895948
B80: 2011-08-21 | C80: =VLOOKUP(B80,Data!AL:AU,2) -> 0.2013408633 | D80: =VLOOKUP(B80,Data!AL:AU,3) -> 0.1922993249 | E80: =VLOOKUP(B80,Data!AL:AU,4) -> 0.177165567 | F80: =VLOOKUP(B80,Data!AL:AU,5) -> 5439.0042 | G80: =VLOOKUP(B80,Data!AL:AU,8) -> 1095.093801 | H80: =F80-G80 -> 4343.910399
B81: 2011-08-28 | C81: =VLOOKUP(B81,Data!AL:AU,2) -> 0.1886508794 | D81: =VLOOKUP(B81,Data!AL:AU,3) -> 0.1949958685 | E81: =VLOOKUP(B81,Data!AL:AU,4) -> 0.1817627905 | F81: =VLOOKUP(B81,Data!AL:AU,5) -> 5439.0091 | G81: =VLOOKUP(B81,Data!AL:AU,8) -> 1026.07385 | H81: =F81-G81 -> 4412.93525
B82: 2011-09-04 | C82: =VLOOKUP(B82,Data!AL:AU,2) -> 0.2057567601 | D82: =VLOOKUP(B82,Data!AL:AU,3) -> 0.1972038236 | E82: =VLOOKUP(B82,Data!AL:AU,4) -> 0.1947025293 | F82: =VLOOKUP(B82,Data!AL:AU,5) -> 5439.014 | G82: =VLOOKUP(B82,Data!AL:AU,8) -> 1119.113899 | H82: =F82-G82 -> 4319.900101
B83: 2011-09-11 | C83: =VLOOKUP(B83,Data!AL:AU,2) -> 0.1610757315 | D83: =VLOOKUP(B83,Data!AL:AU,3) -> 0.1834162358 | E83: =VLOOKUP(B83,Data!AL:AU,4) -> 0.1892060469 | F83: =VLOOKUP(B83,Data!AL:AU,5) -> 5439.0189 | G83: =VLOOKUP(B83,Data!AL:AU,8) -> 876.093948 | H83: =F83-G83 -> 4562.924952
B84: 2011-09-18 | C84: =VLOOKUP(B84,Data!AL:AU,2) -> 0.2103491434 | D84: =VLOOKUP(B84,Data!AL:AU,3) -> 0.1857124485 | E84: =VLOOKUP(B84,Data!AL:AU,4) -> 0.1914581309 | F84: =VLOOKUP(B84,Data!AL:AU,5) -> 5439.0238 | G84: =VLOOKUP(B84,Data!AL:AU,8) -> 1144.093997 | H84: =F84-G84 -> 4294.929803
B85: 2011-09-25 | C85: =VLOOKUP(B85,Data!AL:AU,2) -> 0.1963722026 | D85: =VLOOKUP(B85,Data!AL:AU,3) -> 0.2033606698 | E85: =VLOOKUP(B85,Data!AL:AU,4) -> 0.1933884618 | F85: =VLOOKUP(B85,Data!AL:AU,5) -> 5439.0287 | G85: =VLOOKUP(B85,Data!AL:AU,8) -> 1068.074046 | H85: =F85-G85 -> 4370.954654
B86: 2011-10-02 | C86: =VLOOKUP(B86,Data!AL:AU,2) -> 0.2147650081 | D86: =VLOOKUP(B86,Data!AL:AU,3) -> 0.2055686095 | E86: =VLOOKUP(B86,Data!AL:AU,4) -> 0.195640538 | F86: =VLOOKUP(B86,Data!AL:AU,5) -> 5439.0336 | G86: =VLOOKUP(B86,Data!AL:AU,8) -> 1168.114095 | H86: =F86-G86 -> 4270.919505
B87: 2011-10-09 | C87: =VLOOKUP(B87,Data!AL:AU,2) -> 0.2169729345 | D87: =VLOOKUP(B87,Data!AL:AU,3) -> 0.2158689718 | E87: =VLOOKUP(B87,Data!AL:AU,4) -> 0.2096148264 | F87: =VLOOKUP(B87,Data!AL:AU,5) -> 5439.0385 | G87: =VLOOKUP(B87,Data!AL:AU,8) -> 1180.124144 | H87: =F87-G87 -> 4258.914356
B88: 2011-10-16 | C88: =VLOOKUP(B88,Data!AL:AU,2) -> 0.1619888146 | D88: =VLOOKUP(B88,Data!AL:AU,3) -> 0.1894808622 | E88: =VLOOKUP(B88,Data!AL:AU,4) -> 0.1975247286 | F88: =VLOOKUP(B88,Data!AL:AU,5) -> 5439.0434 | G88: =VLOOKUP(B88,Data!AL:AU,8) -> 881.064193 | H88: =F88-G88 -> 4557.979207
B89: 2011-10-23 | C89: =VLOOKUP(B89,Data!AL:AU,2) -> 0.1779800325 | D89: =VLOOKUP(B89,Data!AL:AU,3) -> 0.170856645 | E89: =VLOOKUP(B89,Data!AL:AU,4) -> 0.1920644029 | F89: =VLOOKUP(B89,Data!AL:AU,5) -> 6771.0081 | G89: =VLOOKUP(B89,Data!AL:AU,8) -> 1205.104242 | H89: =F89-G89 -> 5565.903858
B90: 2011-10-30 | C90: =VLOOKUP(B90,Data!AL:AU,2) -> 0.1571690692 | D90: =VLOOKUP(B90,Data!AL:AU,3) -> 0.1674067221 | E90: =VLOOKUP(B90,Data!AL:AU,4) -> 0.1771511976 | F90: =VLOOKUP(B90,Data!AL:AU,5) -> 6993.0063 | G90: =VLOOKUP(B90,Data!AL:AU,8) -> 1099.084291 | H90: =F90-G90 -> 5893.922009
B91: 2011-11-06 | C91: =VLOOKUP(B91,Data!AL:AU,2) -> 0.1285704133 | D91: =VLOOKUP(B91,Data!AL:AU,3) -> 0.1428697362 | E91: =VLOOKUP(B91,Data!AL:AU,4) -> 0.1559145025 | F91: =VLOOKUP(B91,Data!AL:AU,5) -> 6993.0112 | G91: =VLOOKUP(B91,Data!AL:AU,8) -> 899.09434 | H91: =F91-G91 -> 6093.91686
B92: 2011-11-13 | C92: =VLOOKUP(B92,Data!AL:AU,2) -> 0.1458675877 | D92: =VLOOKUP(B92,Data!AL:AU,3) -> 0.1372190035 | E92: =VLOOKUP(B92,Data!AL:AU,4) -> 0.1521921051 | F92: =VLOOKUP(B92,Data!AL:AU,5) -> 6993.0161 | G92: =VLOOKUP(B92,Data!AL:AU,8) -> 1020.054389 | H92: =F92-G92 -> 5972.961711
B93: 2011-11-20 | C93: =VLOOKUP(B93,Data!AL:AU,2) -> 0.1614601812 | D93: =VLOOKUP(B93,Data!AL:AU,3) -> 0.1536638872 | E93: =VLOOKUP(B93,Data!AL:AU,4) -> 0.1482668155 | F93: =VLOOKUP(B93,Data!AL:AU,5) -> 6993.021 | G93: =VLOOKUP(B93,Data!AL:AU,8) -> 1129.094438 | H93: =F93-G93 -> 5863.926562
B94: 2011-11-27 | C94: =VLOOKUP(B94,Data!AL:AU,2) -> 0.1453011188 | D94: =VLOOKUP(B94,Data!AL:AU,3) -> 0.1533806472 | E94: =VLOOKUP(B94,Data!AL:AU,4) -> 0.145299831 | F94: =VLOOKUP(B94,Data!AL:AU,5) -> 6993.0259 | G94: =VLOOKUP(B94,Data!AL:AU,8) -> 1016.094487 | H94: =F94-G94 -> 5976.931413
B95: 2011-12-04 | C95: =VLOOKUP(B95,Data!AL:AU,2) -> 0.1827711864 | D95: =VLOOKUP(B95,Data!AL:AU,3) -> 0.1640361592 | E95: =VLOOKUP(B95,Data!AL:AU,4) -> 0.1588500268 | F95: =VLOOKUP(B95,Data!AL:AU,5) -> 6993.0308 | G95: =VLOOKUP(B95,Data!AL:AU,8) -> 1278.124536 | H95: =F95-G95 -> 5714.906264
B96: 2011-12-11 | C96: =VLOOKUP(B96,Data!AL:AU,2) -> 0.2005424727 | D96: =VLOOKUP(B96,Data!AL:AU,3) -> 0.1912896421 | E96: =VLOOKUP(B96,Data!AL:AU,4) -> 0.1719514478 | F96: =VLOOKUP(B96,Data!AL:AU,5) -> 6438.0107 | G96: =VLOOKUP(B96,Data!AL:AU,8) -> 1291.094585 | H96: =F96-G96 -> 5146.916115
B97: 2011-12-18 | C97: =VLOOKUP(B97,Data!AL:AU,2) -> 0.2096369788 | D97: =VLOOKUP(B97,Data!AL:AU,3) -> 0.2050099476 | E97: =VLOOKUP(B97,Data!AL:AU,4) -> 0.1834986804 | F97: =VLOOKUP(B97,Data!AL:AU,5) -> 6216.0056 | G97: =VLOOKUP(B97,Data!AL:AU,8) -> 1303.104634 | H97: =F97-G97 -> 4912.900966
B98: 2011-12-25 | C98: =VLOOKUP(B98,Data!AL:AU,2) -> 0.1900116937 | D98: =VLOOKUP(B98,Data!AL:AU,3) -> 0.1998243324 | E98: =VLOOKUP(B98,Data!AL:AU,4) -> 0.1953921503 | F98: =VLOOKUP(B98,Data!AL:AU,5) -> 6216.0105 | G98: =VLOOKUP(B98,Data!AL:AU,8) -> 1181.114683 | H98: =F98-G98 -> 5034.895817
B99: 2012-01-01 | C99: =VLOOKUP(B99,Data!AL:AU,2) -> 0.05294786303 | D99: =VLOOKUP(B99,Data!AL:AU,3) -> 0.1214797513 | E99: =VLOOKUP(B99,Data!AL:AU,4) -> 0.1636144355 | F99: =VLOOKUP(B99,Data!AL:AU,5) -> 6216.0154 | G99: =VLOOKUP(B99,Data!AL:AU,8) -> 329.124732 | H99: =F99-G99 -> 5886.890668
B100: 2012-01-08 | C100: =VLOOKUP(B100,Data!AL:AU,2) -> 0.0462506181 | D100: =VLOOKUP(B100,Data!AL:AU,3) -> 0.04959923925 | E100: =VLOOKUP(B100,Data!AL:AU,4) -> 0.1247117266 | F100: =VLOOKUP(B100,Data!AL:AU,5) -> 6216.0203 | G100: =VLOOKUP(B100,Data!AL:AU,8) -> 287.494781 | H100: =F100-G100 -> 5928.525519
B101: 2012-01-15 | C101: =VLOOKUP(B101,Data!AL:AU,2) -> 0.04632941803 | D101: =VLOOKUP(B101,Data!AL:AU,3) -> 0.04629001808 | E101: =VLOOKUP(B101,Data!AL:AU,4) -> 0.08388485508 | F101: =VLOOKUP(B101,Data!AL:AU,5) -> 6216.0252 | G101: =VLOOKUP(B101,Data!AL:AU,8) -> 287.98483 | H101: =F101-G101 -> 5928.04037
B102: 2012-01-22 | C102: =VLOOKUP(B102,Data!AL:AU,2) -> 0.9366003641 | D102: =VLOOKUP(B102,Data!AL:AU,3) -> 0.08835948755 | E102: =VLOOKUP(B102,Data!AL:AU,4) -> 0.06293918848 | F102: =VLOOKUP(B102,Data!AL:AU,5) -> 308.0021 | G102: =VLOOKUP(B102,Data!AL:AU,8) -> 288.474879 | H102: =F102-G102 -> 19.527221
B103: 2012-01-29 | C103: =VLOOKUP(B103,Data!AL:AU,2) -> 0.8756361723 | D103: =VLOOKUP(B103,Data!AL:AU,3) -> 0.9050670023 | E103: =VLOOKUP(B103,Data!AL:AU,4) -> 0.08821076636 | F103: =VLOOKUP(B103,Data!AL:AU,5) -> 330.0057 | G103: =VLOOKUP(B103,Data!AL:AU,8) -> 288.964928 | H103: =F103-G103 -> 41.040772
B104: 2012-02-05 | C104: =VLOOKUP(B104,Data!AL:AU,2) -> 0.6265221271 | D104: =VLOOKUP(B104,Data!AL:AU,3) -> 0.7303203248 | E104: =VLOOKUP(B104,Data!AL:AU,4) -> 0.1578559271 | F104: =VLOOKUP(B104,Data!AL:AU,5) -> 462.0028 | G104: =VLOOKUP(B104,Data!AL:AU,8) -> 289.454977 | H104: =F104-G104 -> 172.547823
B105: 2012-02-12 | C105: =VLOOKUP(B105,Data!AL:AU,2) -> 0.5990521735 | D105: =VLOOKUP(B105,Data!AL:AU,3) -> 0.6124676845 | E105: =VLOOKUP(B105,Data!AL:AU,4) -> 0.730320371 | F105: =VLOOKUP(B105,Data!AL:AU,5) -> 484.0063 | G105: =VLOOKUP(B105,Data!AL:AU,8) -> 289.945026 | H105: =F105-G105 -> 194.061274
B106: 2012-02-19 | C106: =VLOOKUP(B106,Data!AL:AU,2) -> 0.4714833683 | D106: =VLOOKUP(B106,Data!AL:AU,3) -> 0.5276139088 | E106: =VLOOKUP(B106,Data!AL:AU,4) -> 0.6124678787 | F106: =VLOOKUP(B106,Data!AL:AU,5) -> 616.0028 | G106: =VLOOKUP(B106,Data!AL:AU,8) -> 290.435075 | H106: =F106-G106 -> 325.567725
B107: 2012-02-26 | C107: =VLOOKUP(B107,Data!AL:AU,2) -> 0.1426101242 | D107: =VLOOKUP(B107,Data!AL:AU,3) -> 0.2188851144 | E107: =VLOOKUP(B107,Data!AL:AU,4) -> 0.3222529994 | F107: =VLOOKUP(B107,Data!AL:AU,5) -> 2040.0033 | G107: =VLOOKUP(B107,Data!AL:AU,8) -> 290.925124 | H107: =F107-G107 -> 1749.078176
B108: 2012-03-04 | C108: =VLOOKUP(B108,Data!AL:AU,2) -> 0.09376277785 | D108: =VLOOKUP(B108,Data!AL:AU,3) -> 0.1131195356 | E108: =VLOOKUP(B108,Data!AL:AU,4) -> 0.1860942987 | F108: =VLOOKUP(B108,Data!AL:AU,5) -> 3108.0049 | G108: =VLOOKUP(B108,Data!AL:AU,8) -> 291.415173 | H108: =F108-G108 -> 2816.589727
B109: 2012-03-11 | C109: =VLOOKUP(B109,Data!AL:AU,2) -> 0.09392030295 | D109: =VLOOKUP(B109,Data!AL:AU,3) -> 0.09384154046 | E109: =VLOOKUP(B109,Data!AL:AU,4) -> 0.1312756834 | F109: =VLOOKUP(B109,Data!AL:AU,5) -> 3108.0098 | G109: =VLOOKUP(B109,Data!AL:AU,8) -> 291.905222 | H109: =F109-G109 -> 2816.104578
B110: 2012-03-18 | C110: =VLOOKUP(B110,Data!AL:AU,2) -> 0.09407782756 | D110: =VLOOKUP(B110,Data!AL:AU,3) -> 0.09399906532 | E110: =VLOOKUP(B110,Data!AL:AU,4) -> 0.102660809 | F110: =VLOOKUP(B110,Data!AL:AU,5) -> 3108.0147 | G110: =VLOOKUP(B110,Data!AL:AU,8) -> 292.395271 | H110: =F110-G110 -> 2815.619429
B111: 2012-03-25 | C111: =VLOOKUP(B111,Data!AL:AU,2) -> 0.09423535167 | D111: =VLOOKUP(B111,Data!AL:AU,3) -> 0.09415658968 | E111: =VLOOKUP(B111,Data!AL:AU,4) -> 0.09399906532 | F111: =VLOOKUP(B111,Data!AL:AU,5) -> 3108.0196 | G111: =VLOOKUP(B111,Data!AL:AU,8) -> 292.88532 | H111: =F111-G111 -> 2815.13428
B112: 2012-04-01 | C112: =VLOOKUP(B112,Data!AL:AU,2) -> 0.08810016376 | D112: =VLOOKUP(B112,Data!AL:AU,3) -> 0.09106197875 | E112: =VLOOKUP(B112,Data!AL:AU,4) -> 0.09250475642 | F112: =VLOOKUP(B112,Data!AL:AU,5) -> 3330.0207 | G112: =VLOOKUP(B112,Data!AL:AU,8) -> 293.375369 | H112: =F112-G112 -> 3036.645331
B113: 2012-04-08 | C113: =VLOOKUP(B113,Data!AL:AU,2) -> 0.06303415734 | D113: =VLOOKUP(B113,Data!AL:AU,3) -> 0.07347836089 | E113: =VLOOKUP(B113,Data!AL:AU,4) -> 0.0825250991 | F113: =VLOOKUP(B113,Data!AL:AU,5) -> 4662.0028 | G113: =VLOOKUP(B113,Data!AL:AU,8) -> 293.865418 | H113: =F113-G113 -> 4368.137382
B114: 2012-04-15 | C114: =VLOOKUP(B114,Data!AL:AU,2) -> 0.07577753829 | D114: =VLOOKUP(B114,Data!AL:AU,3) -> 0.06940585116 | E114: =VLOOKUP(B114,Data!AL:AU,4) -> 0.07825133859 | F114: =VLOOKUP(B114,Data!AL:AU,5) -> 4662.0077 | G114: =VLOOKUP(B114,Data!AL:AU,8) -> 353.275467 | H114: =F114-G114 -> 4308.732233
B115: 2012-04-22 | C115: =VLOOKUP(B115,Data!AL:AU,2) -> 0.1366824955 | D115: =VLOOKUP(B115,Data!AL:AU,3) -> 0.1062300329 | E115: =VLOOKUP(B115,Data!AL:AU,4) -> 0.09111387036 | F115: =VLOOKUP(B115,Data!AL:AU,5) -> 4662.0126 | G115: =VLOOKUP(B115,Data!AL:AU,8) -> 637.215516 | H115: =F115-G115 -> 4024.797084
B116: 2012-04-29 | C116: =VLOOKUP(B116,Data!AL:AU,2) -> 0.136787467 | D116: =VLOOKUP(B116,Data!AL:AU,3) -> 0.1367349813 | E116: =VLOOKUP(B116,Data!AL:AU,4) -> 0.1030704516 | F116: =VLOOKUP(B116,Data!AL:AU,5) -> 4662.0175 | G116: =VLOOKUP(B116,Data!AL:AU,8) -> 637.705565 | H116: =F116-G116 -> 4024.311935
B117: 2012-05-06 | C117: =VLOOKUP(B117,Data!AL:AU,2) -> 0.1368924384 | D117: =VLOOKUP(B117,Data!AL:AU,3) -> 0.1368399527 | E117: =VLOOKUP(B117,Data!AL:AU,4) -> 0.1215350089 | F117: =VLOOKUP(B117,Data!AL:AU,5) -> 4662.0224 | G117: =VLOOKUP(B117,Data!AL:AU,8) -> 638.195614 | H117: =F117-G117 -> 4023.826786
B118: 2012-05-13 | C118: =VLOOKUP(B118,Data!AL:AU,2) -> 0.1369974095 | D118: =VLOOKUP(B118,Data!AL:AU,3) -> 0.1369449239 | E118: =VLOOKUP(B118,Data!AL:AU,4) -> 0.1368399527 | F118: =VLOOKUP(B118,Data!AL:AU,5) -> 4662.0273 | G118: =VLOOKUP(B118,Data!AL:AU,8) -> 638.685663 | H118: =F118-G118 -> 4023.341637
B119: 2012-05-20 | C119: =VLOOKUP(B119,Data!AL:AU,2) -> 0.1371023804 | D119: =VLOOKUP(B119,Data!AL:AU,3) -> 0.137049895 | E119: =VLOOKUP(B119,Data!AL:AU,4) -> 0.1369449239 | F119: =VLOOKUP(B119,Data!AL:AU,5) -> 4662.0322 | G119: =VLOOKUP(B119,Data!AL:AU,8) -> 639.175712 | H119: =F119-G119 -> 4022.856488
B120: 2012-05-27 | C120: =VLOOKUP(B120,Data!AL:AU,2) -> 0.1108219908 | D120: =VLOOKUP(B120,Data!AL:AU,3) -> 0.1225643249 | E120: =VLOOKUP(B120,Data!AL:AU,4) -> 0.1293506792 | F120: =VLOOKUP(B120,Data!AL:AU,5) -> 5772.0111 | G120: =VLOOKUP(B120,Data!AL:AU,8) -> 639.665761 | H120: =F120-G120 -> 5132.345339
B121: 2012-06-03 | C121: =VLOOKUP(B121,Data!AL:AU,2) -> 0.1029850761 | D121: =VLOOKUP(B121,Data!AL:AU,3) -> 0.1067584074 | E121: =VLOOKUP(B121,Data!AL:AU,4) -> 0.1200109704 | F121: =VLOOKUP(B121,Data!AL:AU,5) -> 6216.0056 | G121: =VLOOKUP(B121,Data!AL:AU,8) -> 640.15581 | H121: =F121-G121 -> 5575.84979
B122: 2012-06-10 | C122: =VLOOKUP(B122,Data!AL:AU,2) -> 0.1030638315 | D122: =VLOOKUP(B122,Data!AL:AU,3) -> 0.1030244539 | E122: =VLOOKUP(B122,Data!AL:AU,4) -> 0.1119407195 | F122: =VLOOKUP(B122,Data!AL:AU,5) -> 6216.0105 | G122: =VLOOKUP(B122,Data!AL:AU,8) -> 640.645859 | H122: =F122-G122 -> 5575.364641
B123: 2012-06-17 | C123: =VLOOKUP(B123,Data!AL:AU,2) -> 0.1031425868 | D123: =VLOOKUP(B123,Data!AL:AU,3) -> 0.1031032092 | E123: =VLOOKUP(B123,Data!AL:AU,4) -> 0.1048975786 | F123: =VLOOKUP(B123,Data!AL:AU,5) -> 6216.0154 | G123: =VLOOKUP(B123,Data!AL:AU,8) -> 641.135908 | H123: =F123-G123 -> 5574.879492
B124: 2012-06-24 | C124: =VLOOKUP(B124,Data!AL:AU,2) -> 0.1179675877 | D124: =VLOOKUP(B124,Data!AL:AU,3) -> 0.1100609128 | E124: =VLOOKUP(B124,Data!AL:AU,4) -> 0.1064291924 | F124: =VLOOKUP(B124,Data!AL:AU,5) -> 5439.0021 | G124: =VLOOKUP(B124,Data!AL:AU,8) -> 641.625957 | H124: =F124-G124 -> 4797.376143
B125: 2012-07-01 | C125: =VLOOKUP(B125,Data!AL:AU,2) -> 0.1180575804 | D125: =VLOOKUP(B125,Data!AL:AU,3) -> 0.118012584 | E125: =VLOOKUP(B125,Data!AL:AU,4) -> 0.1100609128 | F125: =VLOOKUP(B125,Data!AL:AU,5) -> 5439.007 | G125: =VLOOKUP(B125,Data!AL:AU,8) -> 642.116006 | H125: =F125-G125 -> 4796.890994
B126: 2012-07-08 | C126: =VLOOKUP(B126,Data!AL:AU,2) -> 0.1181475729 | D126: =VLOOKUP(B126,Data!AL:AU,3) -> 0.1181025767 | E126: =VLOOKUP(B126,Data!AL:AU,4) -> 0.1139430958 | F126: =VLOOKUP(B126,Data!AL:AU,5) -> 5439.0119 | G126: =VLOOKUP(B126,Data!AL:AU,8) -> 642.606055 | H126: =F126-G126 -> 4796.405845
B127: 2012-07-15 | C127: =VLOOKUP(B127,Data!AL:AU,2) -> 0.1182375653 | D127: =VLOOKUP(B127,Data!AL:AU,3) -> 0.1181925691 | E127: =VLOOKUP(B127,Data!AL:AU,4) -> 0.1181025767 | F127: =VLOOKUP(B127,Data!AL:AU,5) -> 5439.0168 | G127: =VLOOKUP(B127,Data!AL:AU,8) -> 643.096104 | H127: =F127-G127 -> 4795.920696
B128: 2012-07-22 | C128: =VLOOKUP(B128,Data!AL:AU,2) -> 0.1183275575 | D128: =VLOOKUP(B128,Data!AL:AU,3) -> 0.1182825614 | E128: =VLOOKUP(B128,Data!AL:AU,4) -> 0.1181925691 | F128: =VLOOKUP(B128,Data!AL:AU,5) -> 5439.0217 | G128: =VLOOKUP(B128,Data!AL:AU,8) -> 643.586153 | H128: =F128-G128 -> 4795.435547
B129: 2012-07-29 | C129: =VLOOKUP(B129,Data!AL:AU,2) -> 0.1184175496 | D129: =VLOOKUP(B129,Data!AL:AU,3) -> 0.1183725536 | E129: =VLOOKUP(B129,Data!AL:AU,4) -> 0.1182825614 | F129: =VLOOKUP(B129,Data!AL:AU,5) -> 5439.0266 | G129: =VLOOKUP(B129,Data!AL:AU,8) -> 644.076202 | H129: =F129-G129 -> 4794.950398
B130: 2012-08-05 | C130: =VLOOKUP(B130,Data!AL:AU,2) -> 0.1185075415 | D130: =VLOOKUP(B130,Data!AL:AU,3) -> 0.1184625455 | E130: =VLOOKUP(B130,Data!AL:AU,4) -> 0.1183725536 | F130: =VLOOKUP(B130,Data!AL:AU,5) -> 5439.0315 | G130: =VLOOKUP(B130,Data!AL:AU,8) -> 644.566251 | H130: =F130-G130 -> 4794.465249
B131: 2012-08-12 | C131: =VLOOKUP(B131,Data!AL:AU,2) -> 0.1185975332 | D131: =VLOOKUP(B131,Data!AL:AU,3) -> 0.1185525373 | E131: =VLOOKUP(B131,Data!AL:AU,4) -> 0.1184625455 | F131: =VLOOKUP(B131,Data!AL:AU,5) -> 5439.0364 | G131: =VLOOKUP(B131,Data!AL:AU,8) -> 645.0563 | H131: =F131-G131 -> 4793.9801
B132: 2012-08-19 | C132: =VLOOKUP(B132,Data!AL:AU,2) -> 0.1186875248 | D132: =VLOOKUP(B132,Data!AL:AU,3) -> 0.118642529 | E132: =VLOOKUP(B132,Data!AL:AU,4) -> 0.1185525373 | F132: =VLOOKUP(B132,Data!AL:AU,5) -> 5439.0413 | G132: =VLOOKUP(B132,Data!AL:AU,8) -> 645.546349 | H132: =F132-G132 -> 4793.494951
B133: 2012-08-26 | C133: =VLOOKUP(B133,Data!AL:AU,2) -> 0.1187775162 | D133: =VLOOKUP(B133,Data!AL:AU,3) -> 0.1187325205 | E133: =VLOOKUP(B133,Data!AL:AU,4) -> 0.118642529 | F133: =VLOOKUP(B133,Data!AL:AU,5) -> 5439.0462 | G133: =VLOOKUP(B133,Data!AL:AU,8) -> 646.036398 | H133: =F133-G133 -> 4793.009802
B134: 2012-09-02 | C134: =VLOOKUP(B134,Data!AL:AU,2) -> 0.09245334661 | D134: =VLOOKUP(B134,Data!AL:AU,3) -> 0.1039702239 | E134: =VLOOKUP(B134,Data!AL:AU,4) -> 0.1108173115 | F134: =VLOOKUP(B134,Data!AL:AU,5) -> 6993.0021 | G134: =VLOOKUP(B134,Data!AL:AU,8) -> 646.526447 | H134: =F134-G134 -> 6346.475653
B135: 2012-09-09 | C135: =VLOOKUP(B135,Data!AL:AU,2) -> 0.09252335884 | D135: =VLOOKUP(B135,Data!AL:AU,3) -> 0.09248835274 | E135: =VLOOKUP(B135,Data!AL:AU,4) -> 0.1039702239 | F135: =VLOOKUP(B135,Data!AL:AU,5) -> 6993.007 | G135: =VLOOKUP(B135,Data!AL:AU,8) -> 647.016496 | H135: =F135-G135 -> 6345.990504
B136: 2012-09-16 | C136: =VLOOKUP(B136,Data!AL:AU,2) -> 0.09259337096 | D136: =VLOOKUP(B136,Data!AL:AU,3) -> 0.09255836491 | E136: =VLOOKUP(B136,Data!AL:AU,4) -> 0.09792865869 | F136: =VLOOKUP(B136,Data!AL:AU,5) -> 6993.0119 | G136: =VLOOKUP(B136,Data!AL:AU,8) -> 647.506545 | H136: =F136-G136 -> 6345.505355
B137: 2012-09-23 | C137: =VLOOKUP(B137,Data!AL:AU,2) -> 0.09266338299 | D137: =VLOOKUP(B137,Data!AL:AU,3) -> 0.09262837699 | E137: =VLOOKUP(B137,Data!AL:AU,4) -> 0.09255836491 | F137: =VLOOKUP(B137,Data!AL:AU,5) -> 6993.0168 | G137: =VLOOKUP(B137,Data!AL:AU,8) -> 647.996594 | H137: =F137-G137 -> 6345.020206
B138: 2012-09-30 | C138: =VLOOKUP(B138,Data!AL:AU,2) -> 0.09273339492 | D138: =VLOOKUP(B138,Data!AL:AU,3) -> 0.09269838897 | E138: =VLOOKUP(B138,Data!AL:AU,4) -> 0.09262837699 | F138: =VLOOKUP(B138,Data!AL:AU,5) -> 6993.0217 | G138: =VLOOKUP(B138,Data!AL:AU,8) -> 648.486643 | H138: =F138-G138 -> 6344.535057
B139: 2012-10-07 | C139: =VLOOKUP(B139,Data!AL:AU,2) -> 0.09280340675 | D139: =VLOOKUP(B139,Data!AL:AU,3) -> 0.09276840085 | E139: =VLOOKUP(B139,Data!AL:AU,4) -> 0.09269838897 | F139: =VLOOKUP(B139,Data!AL:AU,5) -> 6993.0266 | G139: =VLOOKUP(B139,Data!AL:AU,8) -> 648.976692 | H139: =F139-G139 -> 6344.049908
B140: 2012-10-14 | C140: =VLOOKUP(B140,Data!AL:AU,2) -> 0.07923555628 | D140: =VLOOKUP(B140,Data!AL:AU,3) -> 0.08601947914 | E140: =VLOOKUP(B140,Data!AL:AU,4) -> 0.08935893171 | F140: =VLOOKUP(B140,Data!AL:AU,5) -> 6993.0315 | G140: =VLOOKUP(B140,Data!AL:AU,8) -> 554.096741 | H140: =F140-G140 -> 6438.934759
B141: 2012-10-21 | C141: =VLOOKUP(B141,Data!AL:AU,2) -> 0.05236141361 | D141: =VLOOKUP(B141,Data!AL:AU,3) -> 0.0647612025 | E141: =VLOOKUP(B141,Data!AL:AU,4) -> 0.07820258641 | F141: =VLOOKUP(B141,Data!AL:AU,5) -> 8163.0109 | G141: =VLOOKUP(B141,Data!AL:AU,8) -> 427.42679 | H141: =F141-G141 -> 7735.58411
B142: 2012-10-28 | C142: =VLOOKUP(B142,Data!AL:AU,2) -> 0.0495790246 | D142: =VLOOKUP(B142,Data!AL:AU,3) -> 0.05093145103 | E142: =VLOOKUP(B142,Data!AL:AU,4) -> 0.06687498613 | F142: =VLOOKUP(B142,Data!AL:AU,5) -> 8631.0056 | G142: =VLOOKUP(B142,Data!AL:AU,8) -> 427.916839 | H142: =F142-G142 -> 8203.088761
B143: 2012-11-04 | C143: =VLOOKUP(B143,Data!AL:AU,2) -> 0.06149914503 | D143: =VLOOKUP(B143,Data!AL:AU,3) -> 0.05490286517 | E143: =VLOOKUP(B143,Data!AL:AU,4) -> 0.05976134538 | F143: =VLOOKUP(B143,Data!AL:AU,5) -> 6966.0625 | G143: =VLOOKUP(B143,Data!AL:AU,8) -> 428.406888 | H143: =F143-G143 -> 6537.655612
B144: 2012-11-11 | C144: =VLOOKUP(B144,Data!AL:AU,2) -> 0.06807358428 | D144: =VLOOKUP(B144,Data!AL:AU,3) -> 0.06462144743 | E144: =VLOOKUP(B144,Data!AL:AU,4) -> 0.05697322143 | F144: =VLOOKUP(B144,Data!AL:AU,5) -> 6300.49 | G144: =VLOOKUP(B144,Data!AL:AU,8) -> 428.896937 | H144: =F144-G144 -> 5871.593063
B145: 2012-11-18 | C145: =VLOOKUP(B145,Data!AL:AU,2) -> 0.06814606395 | D145: =VLOOKUP(B145,Data!AL:AU,3) -> 0.06810982552 | E145: =VLOOKUP(B145,Data!AL:AU,4) -> 0.06080484187 | F145: =VLOOKUP(B145,Data!AL:AU,5) -> 6300.98 | G145: =VLOOKUP(B145,Data!AL:AU,8) -> 429.386986 | H145: =F145-G145 -> 5871.593014
B146: 2012-11-25 | C146: =VLOOKUP(B146,Data!AL:AU,2) -> 0.06821853234 | D146: =VLOOKUP(B146,Data!AL:AU,3) -> 0.06818229955 | E146: =VLOOKUP(B146,Data!AL:AU,4) -> 0.06635616684 | F146: =VLOOKUP(B146,Data!AL:AU,5) -> 6301.47 | G146: =VLOOKUP(B146,Data!AL:AU,8) -> 429.877035 | H146: =F146-G146 -> 5871.592965
B147: 2012-12-02 | C147: =VLOOKUP(B147,Data!AL:AU,2) -> 0.06829098947 | D147: =VLOOKUP(B147,Data!AL:AU,3) -> 0.06825476231 | E147: =VLOOKUP(B147,Data!AL:AU,4) -> 0.06818229955 | F147: =VLOOKUP(B147,Data!AL:AU,5) -> 6301.96 | G147: =VLOOKUP(B147,Data!AL:AU,8) -> 430.367084 | H147: =F147-G147 -> 5871.592916
B148: 2012-12-09 | C148: =VLOOKUP(B148,Data!AL:AU,2) -> 0.06836343533 | D148: =VLOOKUP(B148,Data!AL:AU,3) -> 0.06832721381 | E148: =VLOOKUP(B148,Data!AL:AU,4) -> 0.06825476231 | F148: =VLOOKUP(B148,Data!AL:AU,5) -> 6302.45 | G148: =VLOOKUP(B148,Data!AL:AU,8) -> 430.857133 | H148: =F148-G148 -> 5871.592867
B149: 2012-12-16 | C149: =VLOOKUP(B149,Data!AL:AU,2) -> 0.06843586993 | D149: =VLOOKUP(B149,Data!AL:AU,3) -> 0.06839965404 | E149: =VLOOKUP(B149,Data!AL:AU,4) -> 0.06832721381 | F149: =VLOOKUP(B149,Data!AL:AU,5) -> 6302.94 | G149: =VLOOKUP(B149,Data!AL:AU,8) -> 431.347182 | H149: =F149-G149 -> 5871.592818
B150: 2012-12-23 | C150: =VLOOKUP(B150,Data!AL:AU,2) -> 0.07715608932 | D150: =VLOOKUP(B150,Data!AL:AU,3) -> 0.07253729772 | E150: =VLOOKUP(B150,Data!AL:AU,4) -> 0.0703717322 | F150: =VLOOKUP(B150,Data!AL:AU,5) -> 5596.93 | G150: =VLOOKUP(B150,Data!AL:AU,8) -> 431.837231 | H150: =F150-G150 -> 5165.092769
B151: 2012-12-30 | C151: =VLOOKUP(B151,Data!AL:AU,2) -> 0.09286536553 | D151: =VLOOKUP(B151,Data!AL:AU,3) -> 0.08428940789 | E151: =VLOOKUP(B151,Data!AL:AU,4) -> 0.075526663 | F151: =VLOOKUP(B151,Data!AL:AU,5) -> 4655.42 | G151: =VLOOKUP(B151,Data!AL:AU,8) -> 432.32728 | H151: =F151-G151 -> 4223.09272
B152: 2013-01-06 | C152: =VLOOKUP(B152,Data!AL:AU,2) -> 0.09296084525 | D152: =VLOOKUP(B152,Data!AL:AU,3) -> 0.0929131079 | E152: =VLOOKUP(B152,Data!AL:AU,4) -> 0.08148190682 | F152: =VLOOKUP(B152,Data!AL:AU,5) -> 4655.91 | G152: =VLOOKUP(B152,Data!AL:AU,8) -> 432.817329 | H152: =F152-G152 -> 4223.092671
B153: 2013-01-13 | C153: =VLOOKUP(B153,Data!AL:AU,2) -> 0.09305630487 | D153: =VLOOKUP(B153,Data!AL:AU,3) -> 0.09300857757 | E153: =VLOOKUP(B153,Data!AL:AU,4) -> 0.08843952402 | F153: =VLOOKUP(B153,Data!AL:AU,5) -> 4656.4 | G153: =VLOOKUP(B153,Data!AL:AU,8) -> 433.307378 | H153: =F153-G153 -> 4223.092622
B154: 2013-01-20 | C154: =VLOOKUP(B154,Data!AL:AU,2) -> 0.0931517444 | D154: =VLOOKUP(B154,Data!AL:AU,3) -> 0.09310402715 | E154: =VLOOKUP(B154,Data!AL:AU,4) -> 0.09300857757 | F154: =VLOOKUP(B154,Data!AL:AU,5) -> 4656.89 | G154: =VLOOKUP(B154,Data!AL:AU,8) -> 433.797427 | H154: =F154-G154 -> 4223.092573
B155: 2013-01-27 | C155: =VLOOKUP(B155,Data!AL:AU,2) -> 0.09324716386 | D155: =VLOOKUP(B155,Data!AL:AU,3) -> 0.09319945664 | E155: =VLOOKUP(B155,Data!AL:AU,4) -> 0.09310402715 | F155: =VLOOKUP(B155,Data!AL:AU,5) -> 4657.38 | G155: =VLOOKUP(B155,Data!AL:AU,8) -> 434.287476 | H155: =F155-G155 -> 4223.092524
B156: 2013-02-03 | C156: =VLOOKUP(B156,Data!AL:AU,2) -> 0.09334256323 | D156: =VLOOKUP(B156,Data!AL:AU,3) -> 0.09329486605 | E156: =VLOOKUP(B156,Data!AL:AU,4) -> 0.09319945664 | F156: =VLOOKUP(B156,Data!AL:AU,5) -> 4657.87 | G156: =VLOOKUP(B156,Data!AL:AU,8) -> 434.777525 | H156: =F156-G156 -> 4223.092475
B157: 2013-02-10 | C157: =VLOOKUP(B157,Data!AL:AU,2) -> 0.09343794254 | D157: =VLOOKUP(B157,Data!AL:AU,3) -> 0.09339025539 | E157: =VLOOKUP(B157,Data!AL:AU,4) -> 0.09329486605 | F157: =VLOOKUP(B157,Data!AL:AU,5) -> 4658.36 | G157: =VLOOKUP(B157,Data!AL:AU,8) -> 435.267574 | H157: =F157-G157 -> 4223.092426
B158: 2013-02-17 | C158: =VLOOKUP(B158,Data!AL:AU,2) -> 0.09353330178 | D158: =VLOOKUP(B158,Data!AL:AU,3) -> 0.09348562467 | E158: =VLOOKUP(B158,Data!AL:AU,4) -> 0.09339025539 | F158: =VLOOKUP(B158,Data!AL:AU,5) -> 4658.85 | G158: =VLOOKUP(B158,Data!AL:AU,8) -> 435.757623 | H158: =F158-G158 -> 4223.092377
B159: 2013-02-24 | C159: =VLOOKUP(B159,Data!AL:AU,2) -> 0.09362864097 | D159: =VLOOKUP(B159,Data!AL:AU,3) -> 0.09358097388 | E159: =VLOOKUP(B159,Data!AL:AU,4) -> 0.09348562467 | F159: =VLOOKUP(B159,Data!AL:AU,5) -> 4659.34 | G159: =VLOOKUP(B159,Data!AL:AU,8) -> 436.247672 | H159: =F159-G159 -> 4223.092328
B160: 2013-03-03 | C160: =VLOOKUP(B160,Data!AL:AU,2) -> 0.1084494143 | D160: =VLOOKUP(B160,Data!AL:AU,3) -> 0.100499674 | E160: =VLOOKUP(B160,Data!AL:AU,4) -> 0.09686978037 | F160: =VLOOKUP(B160,Data!AL:AU,5) -> 4027.11 | G160: =VLOOKUP(B160,Data!AL:AU,8) -> 436.737721 | H160: =F160-G160 -> 3590.372279
B161: 2013-03-10 | C161: =VLOOKUP(B161,Data!AL:AU,2) -> 1.890469431 | D161: =VLOOKUP(B161,Data!AL:AU,3) -> 0.2052337834 | E161: =VLOOKUP(B161,Data!AL:AU,4) -> 0.1286016645 | F161: =VLOOKUP(B161,Data!AL:AU,5) -> 231.28 | G161: =VLOOKUP(B161,Data!AL:AU,8) -> 437.22777 | H161: =F161-G161 -> -205.94777
B162: 2013-03-17 | C162: =VLOOKUP(B162,Data!AL:AU,2) -> 1.888587043 | D162: =VLOOKUP(B162,Data!AL:AU,3) -> 1.889527241 | E162: =VLOOKUP(B162,Data!AL:AU,4) -> 0.1910411478 | F162: =VLOOKUP(B162,Data!AL:AU,5) -> 231.77 | G162: =VLOOKUP(B162,Data!AL:AU,8) -> 437.717819 | H162: =F162-G162 -> -205.947819
B163: 2013-03-24 | C163: =VLOOKUP(B163,Data!AL:AU,2) -> 1.886712598 | D163: =VLOOKUP(B163,Data!AL:AU,3) -> 1.887648831 | E163: =VLOOKUP(B163,Data!AL:AU,4) -> 0.3705496711 | F163: =VLOOKUP(B163,Data!AL:AU,5) -> 232.26 | G163: =VLOOKUP(B163,Data!AL:AU,8) -> 438.207868 | H163: =F163-G163 -> -205.947868
B164: 2013-03-31 | C164: =VLOOKUP(B164,Data!AL:AU,2) -> 1.884846045 | D164: =VLOOKUP(B164,Data!AL:AU,3) -> 1.885778338 | E164: =VLOOKUP(B164,Data!AL:AU,4) -> 1.887648831 | F164: =VLOOKUP(B164,Data!AL:AU,5) -> 232.75 | G164: =VLOOKUP(B164,Data!AL:AU,8) -> 438.697917 | H164: =F164-G164 -> -205.947917
B165: 2013-04-07 | C165: =VLOOKUP(B165,Data!AL:AU,2) -> 1.882987335 | D165: =VLOOKUP(B165,Data!AL:AU,3) -> 1.883915713 | E165: =VLOOKUP(B165,Data!AL:AU,4) -> 1.885778338 | F165: =VLOOKUP(B165,Data!AL:AU,5) -> 233.24 | G165: =VLOOKUP(B165,Data!AL:AU,8) -> 439.187966 | H165: =F165-G165 -> -205.947966
B166: 2013-04-14 | C166: =VLOOKUP(B166,Data!AL:AU,2) -> 1.881136418 | D166: =VLOOKUP(B166,Data!AL:AU,3) -> 1.882060905 | E166: =VLOOKUP(B166,Data!AL:AU,4) -> 1.883915713 | F166: =VLOOKUP(B166,Data!AL:AU,5) -> 233.73 | G166: =VLOOKUP(B166,Data!AL:AU,8) -> 439.678015 | H166: =F166-G166 -> -205.948015
B167: 2013-04-21 | C167: =VLOOKUP(B167,Data!AL:AU,2) -> 0.2935902138 | D167: =VLOOKUP(B167,Data!AL:AU,3) -> 0.5077040716 | E167: =VLOOKUP(B167,Data!AL:AU,4) -> 0.7993396766 | F167: =VLOOKUP(B167,Data!AL:AU,5) -> 1499.26 | G167: =VLOOKUP(B167,Data!AL:AU,8) -> 440.168064 | H167: =F167-G167 -> 1059.091936
B168: 2013-04-28 | C168: =VLOOKUP(B168,Data!AL:AU,2) -> 0.0945141641 | D168: =VLOOKUP(B168,Data!AL:AU,3) -> 0.1429538995 | E168: =VLOOKUP(B168,Data!AL:AU,4) -> 0.2654704564 | F168: =VLOOKUP(B168,Data!AL:AU,5) -> 4662.35 | G168: =VLOOKUP(B168,Data!AL:AU,8) -> 440.658113 | H168: =F168-G168 -> 4221.691887
B169: 2013-05-05 | C169: =VLOOKUP(B169,Data!AL:AU,2) -> 0.09460932865 | D169: =VLOOKUP(B169,Data!AL:AU,3) -> 0.09456174888 | E169: =VLOOKUP(B169,Data!AL:AU,4) -> 0.1593076215 | F169: =VLOOKUP(B169,Data!AL:AU,5) -> 4662.84 | G169: =VLOOKUP(B169,Data!AL:AU,8) -> 441.148162 | H169: =F169-G169 -> 4221.691838
B170: 2013-05-12 | C170: =VLOOKUP(B170,Data!AL:AU,2) -> 0.0947044732 | D170: =VLOOKUP(B170,Data!AL:AU,3) -> 0.09465690342 | E170: =VLOOKUP(B170,Data!AL:AU,4) -> 0.1138712294 | F170: =VLOOKUP(B170,Data!AL:AU,5) -> 4663.33 | G170: =VLOOKUP(B170,Data!AL:AU,8) -> 441.638211 | H170: =F170-G170 -> 4221.691789
B171: 2013-05-19 | C171: =VLOOKUP(B171,Data!AL:AU,2) -> 0.09479959775 | D171: =VLOOKUP(B171,Data!AL:AU,3) -> 0.09475203798 | E171: =VLOOKUP(B171,Data!AL:AU,4) -> 0.09465690342 | F171: =VLOOKUP(B171,Data!AL:AU,5) -> 4663.82 | G171: =VLOOKUP(B171,Data!AL:AU,8) -> 442.12826 | H171: =F171-G171 -> 4221.69174
B172: 2013-05-26 | C172: =VLOOKUP(B172,Data!AL:AU,2) -> 0.09489470232 | D172: =VLOOKUP(B172,Data!AL:AU,3) -> 0.09484715254 | E172: =VLOOKUP(B172,Data!AL:AU,4) -> 0.09475203798 | F172: =VLOOKUP(B172,Data!AL:AU,5) -> 4664.31 | G172: =VLOOKUP(B172,Data!AL:AU,8) -> 442.618309 | H172: =F172-G172 -> 4221.691691
B173: 2013-06-02 | C173: =VLOOKUP(B173,Data!AL:AU,2) -> 0.09498978691 | D173: =VLOOKUP(B173,Data!AL:AU,3) -> 0.09494224712 | E173: =VLOOKUP(B173,Data!AL:AU,4) -> 0.09484715254 | F173: =VLOOKUP(B173,Data!AL:AU,5) -> 4664.8 | G173: =VLOOKUP(B173,Data!AL:AU,8) -> 443.108358 | H173: =F173-G173 -> 4221.691642
B174: 2013-06-09 | C174: =VLOOKUP(B174,Data!AL:AU,2) -> 0.08324874066 | D174: =VLOOKUP(B174,Data!AL:AU,3) -> 0.08872932658 | E174: =VLOOKUP(B174,Data!AL:AU,4) -> 0.09168291801 | F174: =VLOOKUP(B174,Data!AL:AU,5) -> 5328.59 | G174: =VLOOKUP(B174,Data!AL:AU,8) -> 443.598407 | H174: =F174-G174 -> 4884.991593
B175: 2013-06-16 | C175: =VLOOKUP(B175,Data!AL:AU,2) -> 0.08163946004 | D175: =VLOOKUP(B175,Data!AL:AU,3) -> 0.08243580304 | E175: =VLOOKUP(B175,Data!AL:AU,4) -> 0.08824125045 | F175: =VLOOKUP(B175,Data!AL:AU,5) -> 5439.63 | G175: =VLOOKUP(B175,Data!AL:AU,8) -> 444.088456 | H175: =F175-G175 -> 4995.541544
B176: 2013-06-23 | C176: =VLOOKUP(B176,Data!AL:AU,2) -> 0.08172218719 | D176: =VLOOKUP(B176,Data!AL:AU,3) -> 0.08168082548 | E176: =VLOOKUP(B176,Data!AL:AU,4) -> 0.08505542175 | F176: =VLOOKUP(B176,Data!AL:AU,5) -> 5440.12 | G176: =VLOOKUP(B176,Data!AL:AU,8) -> 444.578505 | H176: =F176-G176 -> 4995.541495
B177: 2013-06-30 | C177: =VLOOKUP(B177,Data!AL:AU,2) -> 0.08180489945 | D177: =VLOOKUP(B177,Data!AL:AU,3) -> 0.08176354518 | E177: =VLOOKUP(B177,Data!AL:AU,4) -> 0.08209792724 | F177: =VLOOKUP(B177,Data!AL:AU,5) -> 5440.61 | G177: =VLOOKUP(B177,Data!AL:AU,8) -> 445.068554 | H177: =F177-G177 -> 4995.541446
B178: 2013-07-07 | C178: =VLOOKUP(B178,Data!AL:AU,2) -> 0.08188759681 | D178: =VLOOKUP(B178,Data!AL:AU,3) -> 0.08184624999 | E178: =VLOOKUP(B178,Data!AL:AU,4) -> 0.08176354518 | F178: =VLOOKUP(B178,Data!AL:AU,5) -> 5441.1 | G178: =VLOOKUP(B178,Data!AL:AU,8) -> 445.558603 | H178: =F178-G178 -> 4995.541397
B179: 2013-07-14 | C179: =VLOOKUP(B179,Data!AL:AU,2) -> 0.08197027927 | D179: =VLOOKUP(B179,Data!AL:AU,3) -> 0.0819289399 | E179: =VLOOKUP(B179,Data!AL:AU,4) -> 0.08184624999 | F179: =VLOOKUP(B179,Data!AL:AU,5) -> 5441.59 | G179: =VLOOKUP(B179,Data!AL:AU,8) -> 446.048652 | H179: =F179-G179 -> 4995.541348
B180: 2013-07-21 | C180: =VLOOKUP(B180,Data!AL:AU,2) -> 0.08205294685 | D180: =VLOOKUP(B180,Data!AL:AU,3) -> 0.08201161492 | E180: =VLOOKUP(B180,Data!AL:AU,4) -> 0.0819289399 | F180: =VLOOKUP(B180,Data!AL:AU,5) -> 5442.08 | G180: =VLOOKUP(B180,Data!AL:AU,8) -> 446.538701 | H180: =F180-G180 -> 4995.541299
B181: 2013-07-28 | C181: =VLOOKUP(B181,Data!AL:AU,2) -> 0.08213559954 | D181: =VLOOKUP(B181,Data!AL:AU,3) -> 0.08209427506 | E181: =VLOOKUP(B181,Data!AL:AU,4) -> 0.08201161492 | F181: =VLOOKUP(B181,Data!AL:AU,5) -> 5442.57 | G181: =VLOOKUP(B181,Data!AL:AU,8) -> 447.02875 | H181: =F181-G181 -> 4995.54125
B182: 2013-08-04 | C182: =VLOOKUP(B182,Data!AL:AU,2) -> 0.08221823735 | D182: =VLOOKUP(B182,Data!AL:AU,3) -> 0.08217692031 | E182: =VLOOKUP(B182,Data!AL:AU,4) -> 0.08209427506 | F182: =VLOOKUP(B182,Data!AL:AU,5) -> 5443.06 | G182: =VLOOKUP(B182,Data!AL:AU,8) -> 447.518799 | H182: =F182-G182 -> 4995.541201
B183: 2013-08-11 | C183: =VLOOKUP(B183,Data!AL:AU,2) -> 0.08230086028 | D183: =VLOOKUP(B183,Data!AL:AU,3) -> 0.08225955068 | E183: =VLOOKUP(B183,Data!AL:AU,4) -> 0.08217692031 | F183: =VLOOKUP(B183,Data!AL:AU,5) -> 5443.55 | G183: =VLOOKUP(B183,Data!AL:AU,8) -> 448.008848 | H183: =F183-G183 -> 4995.541152
B184: 2013-08-18 | C184: =VLOOKUP(B184,Data!AL:AU,2) -> 0.05649146933 | D184: =VLOOKUP(B184,Data!AL:AU,3) -> 0.06952940513 | E184: =VLOOKUP(B184,Data!AL:AU,4) -> 0.07588521435 | F184: =VLOOKUP(B184,Data!AL:AU,5) -> 5332.29 | G184: =VLOOKUP(B184,Data!AL:AU,8) -> 301.228897 | H184: =F184-G184 -> 5031.061103
B185: 2013-08-25 | C185: =VLOOKUP(B185,Data!AL:AU,2) -> 0.03710822731 | D185: =VLOOKUP(B185,Data!AL:AU,3) -> 0.04744954941 | E185: =VLOOKUP(B185,Data!AL:AU,4) -> 0.06559808833 | F185: =VLOOKUP(B185,Data!AL:AU,5) -> 4662.28 | G185: =VLOOKUP(B185,Data!AL:AU,8) -> 173.008946 | H185: =F185-G185 -> 4489.271054
B186: 2013-09-01 | C186: =VLOOKUP(B186,Data!AL:AU,2) -> 0.02402198586 | D186: =VLOOKUP(B186,Data!AL:AU,3) -> 0.03056476276 | E186: =VLOOKUP(B186,Data!AL:AU,4) -> 0.05145322849 | F186: =VLOOKUP(B186,Data!AL:AU,5) -> 4662.77 | G186: =VLOOKUP(B186,Data!AL:AU,8) -> 112.008995 | H186: =F186-G186 -> 4550.761005
B187: 2013-09-08 | C187: =VLOOKUP(B187,Data!AL:AU,2) -> 0.02401947221 | D187: =VLOOKUP(B187,Data!AL:AU,3) -> 0.02402072897 | E187: =VLOOKUP(B187,Data!AL:AU,4) -> 0.03614048642 | F187: =VLOOKUP(B187,Data!AL:AU,5) -> 4663.26 | G187: =VLOOKUP(B187,Data!AL:AU,8) -> 112.009044 | H187: =F187-G187 -> 4551.250956
B188: 2013-09-15 | C188: =VLOOKUP(B188,Data!AL:AU,2) -> 0.02402339169 | D188: =VLOOKUP(B188,Data!AL:AU,3) -> 0.02402143206 | E188: =VLOOKUP(B188,Data!AL:AU,4) -> 0.02729275362 | F188: =VLOOKUP(B188,Data!AL:AU,5) -> 4663.75 | G188: =VLOOKUP(B188,Data!AL:AU,8) -> 112.039093 | H188: =F188-G188 -> 4551.710907
B189: 2013-09-22 | C189: =VLOOKUP(B189,Data!AL:AU,2) -> 0.186126602 | D189: =VLOOKUP(B189,Data!AL:AU,3) -> 0.1050792545 | E189: =VLOOKUP(B189,Data!AL:AU,4) -> 0.06455425018 | F189: =VLOOKUP(B189,Data!AL:AU,5) -> 4664.24 | G189: =VLOOKUP(B189,Data!AL:AU,8) -> 868.139142 | H189: =F189-G189 -> 3796.100858
B190: 2013-09-29 | C190: =VLOOKUP(B190,Data!AL:AU,2) -> 0.1516849187 | D190: =VLOOKUP(B190,Data!AL:AU,3) -> 0.1689048558 | E190: =VLOOKUP(B190,Data!AL:AU,4) -> 0.09647075469 | F190: =VLOOKUP(B190,Data!AL:AU,5) -> 4664.73 | G190: =VLOOKUP(B190,Data!AL:AU,8) -> 707.569191 | H190: =F190-G190 -> 3957.160809
B191: 2013-10-06 | C191: =VLOOKUP(B191,Data!AL:AU,2) -> 0.1517740299 | D191: =VLOOKUP(B191,Data!AL:AU,3) -> 0.1517294767 | E191: =VLOOKUP(B191,Data!AL:AU,4) -> 0.1284068159 | F191: =VLOOKUP(B191,Data!AL:AU,5) -> 4665.22 | G191: =VLOOKUP(B191,Data!AL:AU,8) -> 708.05924 | H191: =F191-G191 -> 3957.16076
B192: 2013-10-13 | C192: =VLOOKUP(B192,Data!AL:AU,2) -> 0.1518631224 | D192: =VLOOKUP(B192,Data!AL:AU,3) -> 0.1518185785 | E192: =VLOOKUP(B192,Data!AL:AU,4) -> 0.1603608198 | F192: =VLOOKUP(B192,Data!AL:AU,5) -> 4665.71 | G192: =VLOOKUP(B192,Data!AL:AU,8) -> 708.549289 | H192: =F192-G192 -> 3957.160711
B193: 2013-10-20 | C193: =VLOOKUP(B193,Data!AL:AU,2) -> 0.1519521962 | D193: =VLOOKUP(B193,Data!AL:AU,3) -> 0.1519076617 | E193: =VLOOKUP(B193,Data!AL:AU,4) -> 0.1518185785 | F193: =VLOOKUP(B193,Data!AL:AU,5) -> 4666.2 | G193: =VLOOKUP(B193,Data!AL:AU,8) -> 709.039338 | H193: =F193-G193 -> 3957.160662
B194: 2013-10-27 | C194: =VLOOKUP(B194,Data!AL:AU,2) -> 0.1520412513 | D194: =VLOOKUP(B194,Data!AL:AU,3) -> 0.1519967261 | E194: =VLOOKUP(B194,Data!AL:AU,4) -> 0.1519076617 | F194: =VLOOKUP(B194,Data!AL:AU,5) -> 4666.69 | G194: =VLOOKUP(B194,Data!AL:AU,8) -> 709.529387 | H194: =F194-G194 -> 3957.160613
B195: 2013-11-03 | C195: =VLOOKUP(B195,Data!AL:AU,2) -> 0.1121934219 | D195: =VLOOKUP(B195,Data!AL:AU,3) -> 0.1291059954 | E195: =VLOOKUP(B195,Data!AL:AU,4) -> 0.1395739315 | F195: =VLOOKUP(B195,Data!AL:AU,5) -> 6328.53 | G195: =VLOOKUP(B195,Data!AL:AU,8) -> 710.019436 | H195: =F195-G195 -> 5618.510564
B196: 2013-11-10 | C196: =VLOOKUP(B196,Data!AL:AU,2) -> 0.1015948222 | D196: =VLOOKUP(B196,Data!AL:AU,3) -> 0.1066295845 | E196: =VLOOKUP(B196,Data!AL:AU,4) -> 0.1253189209 | F196: =VLOOKUP(B196,Data!AL:AU,5) -> 6993.56 | G196: =VLOOKUP(B196,Data!AL:AU,8) -> 710.509485 | H196: =F196-G196 -> 6283.050515
B197: 2013-11-17 | C197: =VLOOKUP(B197,Data!AL:AU,2) -> 0.1016577711 | D197: =VLOOKUP(B197,Data!AL:AU,3) -> 0.1016262978 | E197: =VLOOKUP(B197,Data!AL:AU,4) -> 0.1137204169 | F197: =VLOOKUP(B197,Data!AL:AU,5) -> 6994.05 | G197: =VLOOKUP(B197,Data!AL:AU,8) -> 710.999534 | H197: =F197-G197 -> 6283.050466
B198: 2013-11-24 | C198: =VLOOKUP(B198,Data!AL:AU,2) -> 0.1017207112 | D198: =VLOOKUP(B198,Data!AL:AU,3) -> 0.1016892422 | E198: =VLOOKUP(B198,Data!AL:AU,4) -> 0.1040991304 | F198: =VLOOKUP(B198,Data!AL:AU,5) -> 6994.54 | G198: =VLOOKUP(B198,Data!AL:AU,8) -> 711.489583 | H198: =F198-G198 -> 6283.050417
B199: 2013-12-01 | C199: =VLOOKUP(B199,Data!AL:AU,2) -> 0.1017836424 | D199: =VLOOKUP(B199,Data!AL:AU,3) -> 0.1017521779 | E199: =VLOOKUP(B199,Data!AL:AU,4) -> 0.1016892422 | F199: =VLOOKUP(B199,Data!AL:AU,5) -> 6995.03 | G199: =VLOOKUP(B199,Data!AL:AU,8) -> 711.979632 | H199: =F199-G199 -> 6283.050368
B200: 2013-12-08 | C200: =VLOOKUP(B200,Data!AL:AU,2) -> 0.1018465648 | D200: =VLOOKUP(B200,Data!AL:AU,3) -> 0.1018151047 | E200: =VLOOKUP(B200,Data!AL:AU,4) -> 0.1017521779 | F200: =VLOOKUP(B200,Data!AL:AU,5) -> 6995.52 | G200: =VLOOKUP(B200,Data!AL:AU,8) -> 712.469681 | H200: =F200-G200 -> 6283.050319
... 122 more rows
